Workbook

Sheet COMMENCER
B1: À PROPOS DE CE MODÈLE
B2: Utilisez ce classeur Budget de dépenses de l’entreprise pour assurer le suivi des dépenses prévues, des dépenses réelles et des écarts de dépenses.
B3: Entrez le nom de la société et ajoutez un logo.
B4: Entrez les détails dans les tables des feuilles de calcul Dépenses prévues et Dépenses réelles.
B5: Les tables sont automatiquement mises à jour dans les feuilles de calcul Écarts de dépenses et Analyse des dépenses.
B6: Remarque :
B7: Des instructions supplémentaires sont disponibles dans la colonne A de chaque feuille de calcul. Ce texte a été intentionnellement masqué. Pour supprimer le texte, sélectionnez la colonne A et choisissez SUPPRIMER. Pour afficher le texte, sélectionnez la colonne A et changez la couleur de la police.
B8: Pour en savoir plus sur les tables, appuyez sur MAJ, puis sur F10 au sein d’une table, et sélectionnez les options TABLE et TEXTE DE REMPLACEMENT.

Sheet DÉPENSES PRÉVUES
A1: Entrez les dépenses prévues dans les tables Coûts employés, Coûts bureau, Coûts marketing et Coûts formation/déplacements de cette feuille de calcul. Les totaux sont calculés automatiquement. Des instructions utiles sur l’utilisation de cette feuille de calcul sont disponibles dans les cellules dans cette colonne. Appuyez sur la flèche Bas pour commencer.
A2: Entrez le nom de la société dans la cellule de droite et le logo dans la cellule N2. Le titre de cette feuille de calcul figure dans la cellule K2. | B2: Nom de la société | K2: Détail des dépenses prévues | N2: L’espace réservé au logo figure dans cette cellule.
A3: Un conseil apparaît dans la cellule K3. | K3: Les cellules ombrées correspondent aux calculs.
A4: L’étiquette Dépenses prévues se trouve dans la cellule de droite, les mois dans les cellules C4 à N4, l’étiquette Année dans la cellule O4 et les instructions d’utilisation de ce modèle dans la cellule R4. | B4: DÉPENSES PRÉVUES | C4: JAN | D4: FÉV | E4: MAR | F4: AVR | G4: MAI | H4: JUIN | I4: JUIL | J4: AOÛ | K4: SEPT | L4: OCT | M4: NOV | N4: DÉC | O4: ANNÉE | R4: Conseil : COMMENT UTILISER CE MODÈLE Entrez des données dans les cellules blanches des feuilles de calcul DÉPENSES PRÉVUES et DÉPENSES RÉELLES. Les ÉCARTS DE DÉPENSES et l’ANALYSE DES DÉPENSES seront alors calculés pour vous. Si vous ajoutez une ligne sur une feuille, elle doit aussi l’être sur les autres feuilles.
A5: Entrez les coûts employés dans la table Prévisions employés en commençant par la cellule de droite. L’instruction suivante figure dans la cellule A10. | B5: Coûts employés | C5: Jan | D5: Fév | E5: Mar | F5: Avr | G5: Mai | H5: Juin | I5: Juil | J5: Août | K5: Sept | L5: Oct | M5: Nov | N5: Déc | O5: ANNÉE
B6: Salaires | C6: 85,000.00 € | D6: 85,000.00 € | E6: 85,000.00 € | F6: 87,500.00 € | G6: 87,500.00 € | H6: 87,500.00 € | I6: 87,500.00 € | J6: 92,400.00 € | K6: 92,400.00 € | L6: 92,400.00 € | M6: 92,400.00 € | N6: 92,400.00 € | O6: =SUM(C6:N6) -> 1,067,000.00 €
B7: Bénéfices | C7: =C6*0.27 -> 22,950.00 € | D7: 22,950.00 € | E7: 22,950.00 € | F7: 23,625.00 € | G7: 23,625.00 € | H7: 23,625.00 € | I7: 23,625.00 € | J7: 24,948.00 € | K7: 24,948.00 € | L7: 24,948.00 € | M7: 24,948.00 € | N7: 24,948.00 € | O7: =SUM(C7:N7) -> 288,090.00 €
B8: Sous-total | C8: =SUBTOTAL(109,PrévisionsEmployés[Jan]) -> 107,950.00 € | D8: =SUBTOTAL(109,PrévisionsEmployés[Fév]) -> 107,950.00 € | E8: =SUBTOTAL(109,PrévisionsEmployés[Mar]) -> 107,950.00 € | F8: =SUBTOTAL(109,PrévisionsEmployés[Avr]) -> 111,125.00 € | G8: =SUBTOTAL(109,PrévisionsEmployés[Mai]) -> 111,125.00 € | H8: =SUBTOTAL(109,PrévisionsEmployés[Juin]) -> 111,125.00 € | I8: =SUBTOTAL(109,PrévisionsEmployés[Juil]) -> 111,125.00 € | J8: =SUBTOTAL(109,PrévisionsEmployés[Août]) -> 117,348.00 € | K8: =SUBTOTAL(109,PrévisionsEmployés[Sept]) -> 117,348.00 € | L8: =SUBTOTAL(109,PrévisionsEmployés[Oct]) -> 117,348.00 € | M8: =SUBTOTAL(109,PrévisionsEmployés[Nov]) -> 117,348.00 € | N8: =SUBTOTAL(109,PrévisionsEmployés[Déc]) -> 117,348.00 € | O8: =SUBTOTAL(109,PrévisionsEmployés[ANNÉE]) -> 1,355,090.00 €
A10: Entrez des coûts bureau dans la table Prévisions bureau en commençant par la cellule de droite. L’instruction suivante figure dans la cellule A21. | B10: Coûts bureau | C10: Jan | D10: Fév | E10: Mar | F10: Avr | G10: Mai | H10: Juin | I10: Juil | J10: Août | K10: Sept | L10: Oct | M10: Nov | N10: Déc | O10: ANNÉE
B11: Location des bureaux | C11: 9,800.00 € | D11: 9,800.00 € | E11: 9,800.00 € | F11: 9,800.00 € | G11: 9,800.00 € | H11: 9,800.00 € | I11: 9,800.00 € | J11: 9,800.00 € | K11: 9,800.00 € | L11: 9,800.00 € | M11: 9,800.00 € | N11: 9,800.00 € | O11: =SUM(C11:N11) -> 117,600.00 €
B12: Gaz | D12: 400.00 € | E12: 400.00 € | F12: 100.00 € | G12: 100.00 € | H12: 100.00 € | I12: 100.00 € | J12: 100.00 € | K12: 100.00 € | L12: 100.00 € | M12: 400.00 € | N12: 400.00 € | O12: 2,300.00 €
B13: Électricité | C13: 300.00 € | D13: 300.00 € | E13: 300.00 € | F13: 300.00 € | G13: 300.00 € | H13: 300.00 € | I13: 300.00 € | J13: 300.00 € | K13: 300.00 € | L13: 300.00 € | M13: 300.00 € | N13: 300.00 € | O13: 3,600.00 €
B14: Eau | C14: 40.00 € | D14: 40.00 € | E14: 40.00 € | F14: 40.00 € | G14: 40.00 € | H14: 40.00 € | I14: 40.00 € | J14: 40.00 € | K14: 40.00 € | L14: 40.00 € | M14: 40.00 € | N14: 40.00 € | O14: 480.00 €
B15: Téléphone | C15: 250.00 € | D15: 250.00 € | E15: 250.00 € | F15: 250.00 € | G15: 250.00 € | H15: 250.00 € | I15: 250.00 € | J15: 250.00 € | K15: 250.00 € | L15: 250.00 € | M15: 250.00 € | N15: 250.00 € | O15: 3,000.00 €
B16: Accès à Internet | C16: 180.00 € | D16: 180.00 € | E16: 180.00 € | F16: 180.00 € | G16: 180.00 € | H16: 180.00 € | I16: 180.00 € | J16: 180.00 € | K16: 180.00 € | L16: 180.00 € | M16: 180.00 € | N16: 180.00 € | O16: 2,160.00 €
B17: Fournitures de bureau | C17: 200.00 € | D17: 200.00 € | E17: 200.00 € | F17: 200.00 € | G17: 200.00 € | H17: 200.00 € | I17: 200.00 € | J17: 200.00 € | K17: 200.00 € | L17: 200.00 € | M17: 200.00 € | N17: 200.00 € | O17: 2,400.00 €
B18: Sécurité | C18: 600.00 € | D18: 600.00 € | E18: 600.00 € | F18: 600.00 € | G18: 600.00 € | H18: 600.00 € | I18: 600.00 € | J18: 600.00 € | K18: 600.00 € | L18: 600.00 € | M18: 600.00 € | N18: 600.00 € | O18: 7,200.00 €
B19: Sous-total | C19: =SUBTOTAL(109,PrévisionsBureau[Jan]) -> 11,370.00 € | D19: =SUBTOTAL(109,PrévisionsBureau[Fév]) -> 11,770.00 € | E19: =SUBTOTAL(109,PrévisionsBureau[Mar]) -> 11,770.00 € | F19: =SUBTOTAL(109,PrévisionsBureau[Avr]) -> 11,470.00 € | G19: =SUBTOTAL(109,PrévisionsBureau[Mai]) -> 11,470.00 € | H19: =SUBTOTAL(109,PrévisionsBureau[Juin]) -> 11,470.00 € | I19: =SUBTOTAL(109,PrévisionsBureau[Juil]) -> 11,470.00 € | J19: =SUBTOTAL(109,PrévisionsBureau[Août]) -> 11,470.00 € | K19: =SUBTOTAL(109,PrévisionsBureau[Sept]) -> 11,470.00 € | L19: =SUBTOTAL(109,PrévisionsBureau[Oct]) -> 11,470.00 € | M19: =SUBTOTAL(109,PrévisionsBureau[Nov]) -> 11,770.00 € | N19: =SUBTOTAL(109,PrévisionsBureau[Déc]) -> 11,770.00 € | O19: =SUBTOTAL(109,PrévisionsBureau[ANNÉE]) -> 138,740.00 €
A21: Entrez les coûts marketing dans la table Prévisions marketing en commençant par la cellule de droite. L’instruction suivante figure dans la cellule A30. | B21: Coûts marketing | C21: Jan | D21: Fév | E21: Mar | F21: Avr | G21: Mai | H21: Juin | I21: Juil | J21: Août | K21: Sept | L21: Oct | M21: Nov | N21: Déc | O21: ANNÉE
B22: Hébergement du site web | C22: 500.00 € | D22: 500.00 € | E22: 500.00 € | F22: 500.00 € | G22: 500.00 € | H22: 500.00 € | I22: 500.00 € | J22: 500.00 € | K22: 500.00 € | L22: 500.00 € | M22: 500.00 € | N22: 500.00 € | O22: =SUM(C22:N22) -> 6,000.00 €
B23: Mises à jour du site web | C23: 200.00 € | D23: 200.00 € | E23: 200.00 € | F23: 200.00 € | G23: 200.00 € | H23: 1,000.00 € | I23: 200.00 € | J23: 200.00 € | K23: 200.00 € | L23: 200.00 € | M23: 200.00 € | N23: 1,000.00 € | O23: 4,000.00 €
B24: Préparation contrat de garantie | C24: 5,000.00 € | D24: 0.00 € | E24: 0.00 € | F24: 5,000.00 € | G24: 0.00 € | H24: 0.00 € | I24: 5,000.00 € | J24: 0.00 € | K24: 0.00 € | L24: 5,000.00 € | M24: 0.00 € | N24: 0.00 € | O24: 20,000.00 €
B25: Impression contrat de garantie | C25: 200.00 € | D25: 200.00 € | E25: 200.00 € | F25: 200.00 € | G25: 200.00 € | H25: 200.00 € | I25: 200.00 € | J25: 200.00 € | K25: 200.00 € | L25: 200.00 € | M25: 200.00 € | N25: 200.00 € | O25: 2,400.00 €
B26: Événements marketing | C26: 2,000.00 € | D26: 2,000.00 € | E26: 2,000.00 € | F26: 5,000.00 € | G26: 2,000.00 € | H26: 2,000.00 € | I26: 2,000.00 € | J26: 5,000.00 € | K26: 2,000.00 € | L26: 2,000.00 € | M26: 2,000.00 € | N26: 5,000.00 € | O26: 33,000.00 €
B27: Dépenses diverses | C27: 200.00 € | D27: 200.00 € | E27: 200.00 € | F27: 200.00 € | G27: 200.00 € | H27: 200.00 € | I27: 200.00 € | J27: 200.00 € | K27: 200.00 € | L27: 200.00 € | M27: 200.00 € | N27: 200.00 € | O27: 2,400.00 €
B28: Sous-total | C28: =SUBTOTAL(109,PrévisionsMarketing[Jan]) -> 8,100.00 € | D28: =SUBTOTAL(109,PrévisionsMarketing[Fév]) -> 3,100.00 € | E28: =SUBTOTAL(109,PrévisionsMarketing[Mar]) -> 3,100.00 € | F28: =SUBTOTAL(109,PrévisionsMarketing[Avr]) -> 11,100.00 € | G28: =SUBTOTAL(109,PrévisionsMarketing[Mai]) -> 3,100.00 € | H28: =SUBTOTAL(109,PrévisionsMarketing[Juin]) -> 3,900.00 € | I28: =SUBTOTAL(109,PrévisionsMarketing[Juil]) -> 8,100.00 € | J28: =SUBTOTAL(109,PrévisionsMarketing[Août]) -> 6,100.00 € | K28: =SUBTOTAL(109,PrévisionsMarketing[Sept]) -> 3,100.00 € | L28: =SUBTOTAL(109,PrévisionsMarketing[Oct]) -> 8,100.00 € | M28: =SUBTOTAL(109,PrévisionsMarketing[Nov]) -> 3,100.00 € | N28: =SUBTOTAL(109,PrévisionsMarketing[Déc]) -> 6,900.00 € | O28: =SUBTOTAL(109,PrévisionsMarketing[ANNÉE]) -> 67,800.00 €
A30: Entrez les coûts relatifs à la formation et aux déplacements dans la table Prévisions formation et déplacements en commençant par la cellule de droite. L’instruction suivante figure dans la cellule A35. | B30: Formation/Déplacements | C30: Jan | D30: Fév | E30: Mar | F30: Avr | G30: Mai | H30: Juin | I30: Juil | J30: Août | K30: Sept | L30: Oct | M30: Nov | N30: Déc | O30: ANNÉE
B31: Sessions de formation | C31: 2,000.00 € | D31: 2,000.00 € | E31: 2,000.00 € | F31: 2,000.00 € | G31: 2,000.00 € | H31: 2,000.00 € | I31: 2,000.00 € | J31: 2,000.00 € | K31: 2,000.00 € | L31: 2,000.00 € | M31: 2,000.00 € | N31: 2,000.00 € | O31: =SUM(C31:N31) -> 24,000.00 €
B32: Frais de déplacement liés aux formations | C32: 2,000.00 € | D32: 2,000.00 € | E32: 2,000.00 € | F32: 2,000.00 € | G32: 2,000.00 € | H32: 2,000.00 € | I32: 2,000.00 € | J32: 2,000.00 € | K32: 2,000.00 € | L32: 2,000.00 € | M32: 2,000.00 € | N32: 2,000.00 € | O32: =SUM(C32:N32) -> 24,000.00 €
B33: Sous-total | C33: =SUBTOTAL(109,PrévisionsFormationEtDéplacements[Jan]) -> 4,000.00 € | D33: =SUBTOTAL(109,PrévisionsFormationEtDéplacements[Fév]) -> 4,000.00 € | E33: =SUBTOTAL(109,PrévisionsFormationEtDéplacements[Mar]) -> 4,000.00 € | F33: =SUBTOTAL(109,PrévisionsFormationEtDéplacements[Avr]) -> 4,000.00 € | G33: =SUBTOTAL(109,PrévisionsFormationEtDéplacements[Mai]) -> 4,000.00 € | H33: =SUBTOTAL(109,PrévisionsFormationEtDéplacements[Juin]) -> 4,000.00 € | I33: =SUBTOTAL(109,PrévisionsFormationEtDéplacements[Juil]) -> 4,000.00 € | J33: =SUBTOTAL(109,PrévisionsFormationEtDéplacements[Août]) -> 4,000.00 € | K33: =SUBTOTAL(109,PrévisionsFormationEtDéplacements[Sept]) -> 4,000.00 € | L33: =SUBTOTAL(109,PrévisionsFormationEtDéplacements[Oct]) -> 4,000.00 € | M33: =SUBTOTAL(109,PrévisionsFormationEtDéplacements[Nov]) -> 4,000.00 € | N33: =SUBTOTAL(109,PrévisionsFormationEtDéplacements[Déc]) -> 4,000.00 € | O33: =SUBTOTAL(109,PrévisionsFormationEtDéplacements[ANNÉE]) -> 48,000.00 €
A35: Les totaux sont automatiquement calculés dans la table Total dépenses prévues en commençant par la cellule de droite. | B35: TOTAUX | C35: Jan | D35: Fév | E35: Mar | F35: Avr | G35: Mai | H35: Juin | I35: Juil | J35: Août | K35: Sept | L35: Oct | M35: Nov | N35: Déc | O35: Année
B36: Dépenses mensuelles prévues | C36: =PrévisionsFormationEtDéplacements[[#Totals],[Jan]]+PrévisionsMarketing[[#Totals],[Jan]]+PrévisionsBureau[[#Totals],[Jan]]+PrévisionsEmployés[[#Totals],[Jan]] -> 131,420.00 € | D36: =PrévisionsFormationEtDéplacements[[#Totals],[Fév]]+PrévisionsMarketing[[#Totals],[Fév]]+PrévisionsBureau[[#Totals],[Fév]]+PrévisionsEmployés[[#Totals],[Fév]] -> 126,820.00 € | E36: =PrévisionsFormationEtDéplacements[[#Totals],[Mar]]+PrévisionsMarketing[[#Totals],[Mar]]+PrévisionsBureau[[#Totals],[Mar]]+PrévisionsEmployés[[#Totals],[Mar]] -> 126,820.00 € | F36: =PrévisionsFormationEtDéplacements[[#Totals],[Avr]]+PrévisionsMarketing[[#Totals],[Avr]]+PrévisionsBureau[[#Totals],[Avr]]+PrévisionsEmployés[[#Totals],[Avr]] -> 137,695.00 € | G36: =PrévisionsFormationEtDéplacements[[#Totals],[Mai]]+PrévisionsMarketing[[#Totals],[Mai]]+PrévisionsBureau[[#Totals],[Mai]]+PrévisionsEmployés[[#Totals],[Mai]] -> 129,695.00 € | H36: =PrévisionsFormationEtDéplacements[[#Totals],[Juin]]+PrévisionsMarketing[[#Totals],[Juin]]+PrévisionsBureau[[#Totals],[Juin]]+PrévisionsEmployés[[#Totals],[Juin]] -> 130,495.00 € | I36: =PrévisionsFormationEtDéplacements[[#Totals],[Juil]]+PrévisionsMarketing[[#Totals],[Juil]]+PrévisionsBureau[[#Totals],[Juil]]+PrévisionsEmployés[[#Totals],[Juil]] -> 134,695.00 € | J36: =PrévisionsFormationEtDéplacements[[#Totals],[Août]]+PrévisionsMarketing[[#Totals],[Août]]+PrévisionsBureau[[#Totals],[Août]]+PrévisionsEmployés[[#Totals],[Août]] -> 138,918.00 € | K36: =PrévisionsFormationEtDéplacements[[#Totals],[Sept]]+PrévisionsMarketing[[#Totals],[Sept]]+PrévisionsBureau[[#Totals],[Sept]]+PrévisionsEmployés[[#Totals],[Sept]] -> 135,918.00 € | L36: =PrévisionsFormationEtDéplacements[[#Totals],[Oct]]+PrévisionsMarketing[[#Totals],[Oct]]+PrévisionsBureau[[#Totals],[Oct]]+PrévisionsEmployés[[#Totals],[Oct]] -> 140,918.00 € | M36: =PrévisionsFormationEtDéplacements[[#Totals],[Nov]]+PrévisionsMarketing[[#Totals],[Nov]]+PrévisionsBureau[[#Totals],[Nov]]+PrévisionsEmployés[[#Totals],[Nov]] -> 136,218.00 € | N36: =PrévisionsFormationEtDéplacements[[#Totals],[Déc]]+PrévisionsMarketing[[#Totals],[Déc]]+PrévisionsBureau[[#Totals],[Déc]]+PrévisionsEmployés[[#Totals],[Déc]] -> 140,018.00 € | O36: =PrévisionsFormationEtDéplacements[[#Totals],[ANNÉE]]+PrévisionsMarketing[[#Totals],[ANNÉE]]+PrévisionsBureau[[#Totals],[ANNÉE]]+PrévisionsEmployés[[#Totals],[ANNÉE]] -> 1,609,630.00 €
B37: TOTAL des dépenses prévues | C37: =SUM($C$36:C36) -> 131,420.00 € | D37: =SUM($C$36:D36) -> 258,240.00 € | E37: =SUM($C$36:E36) -> 385,060.00 € | F37: =SUM($C$36:F36) -> 522,755.00 € | G37: =SUM($C$36:G36) -> 652,450.00 € | H37: =SUM($C$36:H36) -> 782,945.00 € | I37: =SUM($C$36:I36) -> 917,640.00 € | J37: =SUM($C$36:J36) -> 1,056,558.00 € | K37: =SUM($C$36:K36) -> 1,192,476.00 € | L37: =SUM($C$36:L36) -> 1,333,394.00 € | M37: =SUM($C$36:M36) -> 1,469,612.00 € | N37: =SUM($C$36:N36) -> 1,609,630.00 €

Sheet DÉPENSES RÉELLES
A1: Entrez les dépenses réelles dans les tables Coûts employés, Coûts bureau, Coûts marketing et Coûts formation/déplacements de cette feuille de calcul. Les totaux sont calculés automatiquement. Des instructions utiles sur l’utilisation de cette feuille de calcul sont disponibles dans les cellules dans cette colonne. Appuyez sur la flèche Bas pour commencer.
A2: Le nom de la société est automatiquement mis à jour dans la cellule de droite. Le titre de cette feuille de calcul figure dans la cellule K2. Entrez le logo dans la cellule N2. | B2: ='DÉPENSES PRÉVUES'!B2:D3 -> Nom de la société | K2: =titre_feuille_de_calcul -> Détail des dépenses prévues | N2: L’espace réservé au logo figure dans cette cellule.
A3: Un conseil apparaît dans la cellule K3. | K3: Les cellules ombrées correspondent aux calculs.
A4: L’étiquette Dépenses réelles se trouve dans la cellule de droite, les mois dans les cellules C4 à N4 et l’étiquette Année dans la cellule O4. | B4: DÉPENSES RÉELLES | C4: JAN | D4: FÉV | E4: MAR | F4: AVR | G4: MAI | H4: JUIN | I4: JUIL | J4: AOÛ | K4: SEPT | L4: OCT | M4: NOV | N4: DÉC | O4: ANNÉE
A5: Entrez les coûts employés dans la table Dépenses réelles employés en commençant par la cellule de droite. L’instruction suivante figure dans la cellule A10. | B5: Coûts employés | C5: Jan | D5: Fév | E5: Mar | F5: Avr | G5: Mai | H5: Juin | I5: Juil | J5: Août | K5: Sept | L5: Oct | M5: Nov | N5: Déc | O5: ANNÉE
B6: Salaires | C6: 85,000.00 € | D6: 85,000.00 € | E6: 85,000.00 € | F6: 88,000.00 € | G6: 88,000.00 € | H6: 88,000.00 € | O6: =SUM(C6:N6) -> 519,000.00 €
B7: Bénéfices | C7: =C6*0.27 -> 22,950.00 € | D7: 22,950.00 € | E7: 22,950.00 € | F7: 23,760.00 € | G7: 23,760.00 € | H7: 23,760.00 € | I7: 0.00 € | J7: 0.00 € | K7: 0.00 € | L7: 0.00 € | M7: 0.00 € | N7: 0.00 € | O7: =SUM(C7:N7) -> 140,130.00 €
B8: Sous-total | C8: =SUBTOTAL(109,DépensesRéellesEmployés[Jan]) -> 107,950.00 € | D8: =SUBTOTAL(109,DépensesRéellesEmployés[Fév]) -> 107,950.00 € | E8: =SUBTOTAL(109,DépensesRéellesEmployés[Mar]) -> 107,950.00 € | F8: =SUBTOTAL(109,DépensesRéellesEmployés[Avr]) -> 111,760.00 € | G8: =SUBTOTAL(109,DépensesRéellesEmployés[Mai]) -> 111,760.00 € | H8: =SUBTOTAL(109,DépensesRéellesEmployés[Juin]) -> 111,760.00 € | I8: =SUBTOTAL(109,DépensesRéellesEmployés[Juil]) -> 0.00 € | J8: =SUBTOTAL(109,DépensesRéellesEmployés[Août]) -> 0.00 € | K8: =SUBTOTAL(109,DépensesRéellesEmployés[Sept]) -> 0.00 € | L8: =SUBTOTAL(109,DépensesRéellesEmployés[Oct]) -> 0.00 € | M8: =SUBTOTAL(109,DépensesRéellesEmployés[Nov]) -> 0.00 € | N8: =SUBTOTAL(109,DépensesRéellesEmployés[Déc]) -> 0.00 € | O8: =SUBTOTAL(109,DépensesRéellesEmployés[ANNÉE]) -> 659,130.00 €
A10: Entrez des coûts bureau dans la table Dépenses réelles bureau en commençant par la cellule de droite. L’instruction suivante figure dans la cellule A21. | B10: Coûts bureau | C10: Jan | D10: Fév | E10: Mar | F10: Avr | G10: Mai | H10: Juin | I10: Juil | J10: Août | K10: Sept | L10: Oct | M10: Nov | N10: Déc | O10: ANNÉE
B11: Location des bureaux | C11: 9,800.00 € | D11: 9,800.00 € | E11: 9,800.00 € | F11: 9,800.00 € | G11: 9,800.00 € | H11: 9,800.00 € | O11: =SUM(C11:N11) -> 58,800.00 €
B12: Gaz | C12: 4.00 € | D12: 430.00 € | E12: 385.00 € | F12: 230.00 € | G12: 87.00 € | H12: 88.00 € | O12: 1,224.00 €
B13: Électricité | C13: 288.00 € | D13: 278.00 € | E13: 268.00 € | F13: 299.00 € | G13: 306.00 € | H13: 290.00 € | O13: 1,729.00 €
B14: Eau | C14: 35.00 € | D14: 33.00 € | E14: 34.00 € | F14: 36.00 € | G14: 34.00 € | H14: 36.00 € | O14: 208.00 €
B15: Téléphone | C15: 224.00 € | D15: 235.00 € | E15: 265.00 € | F15: 245.00 € | G15: 245.00 € | H15: 220.00 € | O15: 1,434.00 €
B16: Accès à Internet | C16: 180.00 € | D16: 180.00 € | E16: 180.00 € | F16: 180.00 € | G16: 180.00 € | H16: 180.00 € | O16: 1,080.00 €
B17: Fournitures de bureau | C17: 256.00 € | D17: 142.00 € | E17: 160.00 € | F17: 221.00 € | G17: 256.00 € | H17: 240.00 € | O17: 1,275.00 €
B18: Sécurité | C18: 600.00 € | D18: 600.00 € | E18: 600.00 € | F18: 600.00 € | G18: 600.00 € | H18: 600.00 € | O18: 3,600.00 €
B19: Sous-total | C19: =SUBTOTAL(109,DépensesRéellesBureau[Jan]) -> 11,387.00 € | D19: =SUBTOTAL(109,DépensesRéellesBureau[Fév]) -> 11,698.00 € | E19: =SUBTOTAL(109,DépensesRéellesBureau[Mar]) -> 11,692.00 € | F19: =SUBTOTAL(109,DépensesRéellesBureau[Avr]) -> 11,611.00 € | G19: =SUBTOTAL(109,DépensesRéellesBureau[Mai]) -> 11,508.00 € | H19: =SUBTOTAL(109,DépensesRéellesBureau[Juin]) -> 11,454.00 € | I19: =SUBTOTAL(109,DépensesRéellesBureau[Juil]) -> 0.00 € | J19: =SUBTOTAL(109,DépensesRéellesBureau[Août]) -> 0.00 € | K19: =SUBTOTAL(109,DépensesRéellesBureau[Sept]) -> 0.00 € | L19: =SUBTOTAL(109,DépensesRéellesBureau[Oct]) -> 0.00 € | M19: =SUBTOTAL(109,DépensesRéellesBureau[Nov]) -> 0.00 € | N19: =SUBTOTAL(109,DépensesRéellesBureau[Déc]) -> 0.00 € | O19: =SUBTOTAL(109,DépensesRéellesBureau[ANNÉE]) -> 69,350.00 €
A21: Entrez les coûts marketing dans la table Dépenses réelles marketing en commençant par la cellule de droite. L’instruction suivante figure dans la cellule A30. | B21: Coûts marketing | C21: Jan | D21: Fév | E21: Mar | F21: Avr | G21: Mai | H21: Juin | I21: Juil | J21: Août | K21: Sept | L21: Oct | M21: Nov | N21: Déc | O21: ANNÉE
B22: Hébergement du site web | C22: 500.00 € | D22: 500.00 € | E22: 500.00 € | F22: 500.00 € | G22: 500.00 € | H22: 500.00 € | O22: =SUM(C22:N22) -> 3,000.00 €
B23: Mises à jour du site web | C23: 200.00 € | D23: 200.00 € | E23: 200.00 € | F23: 200.00 € | G23: 200.00 € | H23: 1,500.00 € | O23: 2,500.00 €
B24: Préparation contrat de garantie | C24: 4,800.00 € | D24: 0.00 € | E24: 0.00 € | F24: 5,500.00 € | G24: 0.00 € | H24: 0.00 € | O24: 10,300.00 €
B25: Impression contrat de garantie | C25: 100.00 € | D25: 500.00 € | E25: 100.00 € | F25: 100.00 € | G25: 600.00 € | H25: 180.00 € | O25: 1,580.00 €
B26: Événements marketing | C26: 1,800.00 € | D26: 2,200.00 € | E26: 2,200.00 € | F26: 4,700.00 € | G26: 1,500.00 € | H26: 2,300.00 € | O26: 14,700.00 €
B27: Dépenses diverses | C27: 145.00 € | D27: 156.00 € | E27: 123.00 € | F27: 223.00 € | G27: 187.00 € | H27: 245.00 € | O27: 1,079.00 €
B28: Sous-total | C28: =SUBTOTAL(109,DépensesRéellesMarketing[Jan]) -> 7,545.00 € | D28: =SUBTOTAL(109,DépensesRéellesMarketing[Fév]) -> 3,556.00 € | E28: =SUBTOTAL(109,DépensesRéellesMarketing[Mar]) -> 3,123.00 € | F28: =SUBTOTAL(109,DépensesRéellesMarketing[Avr]) -> 11,223.00 € | G28: =SUBTOTAL(109,DépensesRéellesMarketing[Mai]) -> 2,987.00 € | H28: =SUBTOTAL(109,DépensesRéellesMarketing[Juin]) -> 4,725.00 € | I28: =SUBTOTAL(109,DépensesRéellesMarketing[Juil]) -> 0.00 € | J28: =SUBTOTAL(109,DépensesRéellesMarketing[Août]) -> 0.00 € | K28: =SUBTOTAL(109,DépensesRéellesMarketing[Sept]) -> 0.00 € | L28: =SUBTOTAL(109,DépensesRéellesMarketing[Oct]) -> 0.00 € | M28: =SUBTOTAL(109,DépensesRéellesMarketing[Nov]) -> 0.00 € | N28: =SUBTOTAL(109,DépensesRéellesMarketing[Déc]) -> 0.00 € | O28: =SUBTOTAL(109,DépensesRéellesMarketing[ANNÉE]) -> 33,159.00 €
A30: Entrez les coûts relatifs à la formation ou aux déplacements dans la table Dépenses réelles formation et déplacements en commençant par la cellule de droite. L’instruction suivante figure dans la cellule A35. | B30: Formation/Déplacements | C30: Jan | D30: Fév | E30: Mar | F30: Avr | G30: Mai | H30: Juin | I30: Juil | J30: Août | K30: Sept | L30: Oct | M30: Nov | N30: Déc | O30: ANNÉE
B31: Sessions de formation | C31: 1,600.00 € | D31: 2,400.00 € | E31: 1,400.00 € | F31: 1,600.00 € | G31: 1,200.00 € | H31: 2,800.00 € | O31: =SUM(C31:N31) -> 11,000.00 €
B32: Frais de déplacement liés aux formations | C32: 1,200.00 € | D32: 2,200.00 € | E32: 1,400.00 € | F32: 1,200.00 € | G32: 800.00 € | H32: 3,500.00 € | O32: =SUM(C32:N32) -> 10,300.00 €
B33: Sous-total | C33: =SUBTOTAL(109,DépensesRéellesFormationEtDéplacements[Jan]) -> 2,800.00 € | D33: =SUBTOTAL(109,DépensesRéellesFormationEtDéplacements[Fév]) -> 4,600.00 € | E33: =SUBTOTAL(109,DépensesRéellesFormationEtDéplacements[Mar]) -> 2,800.00 € | F33: =SUBTOTAL(109,DépensesRéellesFormationEtDéplacements[Avr]) -> 2,800.00 € | G33: =SUBTOTAL(109,DépensesRéellesFormationEtDéplacements[Mai]) -> 2,000.00 € | H33: =SUBTOTAL(109,DépensesRéellesFormationEtDéplacements[Juin]) -> 6,300.00 € | I33: =SUBTOTAL(109,DépensesRéellesFormationEtDéplacements[Juil]) -> 0.00 € | J33: =SUBTOTAL(109,DépensesRéellesFormationEtDéplacements[Août]) -> 0.00 € | K33: =SUBTOTAL(109,DépensesRéellesFormationEtDéplacements[Sept]) -> 0.00 € | L33: =SUBTOTAL(109,DépensesRéellesFormationEtDéplacements[Oct]) -> 0.00 € | M33: =SUBTOTAL(109,DépensesRéellesFormationEtDéplacements[Nov]) -> 0.00 € | N33: =SUBTOTAL(109,DépensesRéellesFormationEtDéplacements[Déc]) -> 0.00 € | O33: =SUBTOTAL(109,DépensesRéellesFormationEtDéplacements[ANNÉE]) -> 21,300.00 €
A35: Le total des dépenses réelles est calculé dans la table Total dépenses réelles en commençant par la cellule de droite. | B35: TOTAL des dépenses prévues | C35: Jan | D35: Fév | E35: Mar | F35: Avr | G35: Mai | H35: Juin | I35: Juil | J35: Août | K35: Sept | L35: Oct | M35: Nov | N35: Déc | O35: Année
B36: Dépenses réelles mensuelles | C36: =DépensesRéellesFormationEtDéplacements[[#Totals],[Jan]]+DépensesRéellesMarketing[[#Totals],[Jan]]+DépensesRéellesBureau[[#Totals],[Jan]]+DépensesRéellesEmployés[[#Totals],[Jan]] -> 129,682.00 € | D36: =DépensesRéellesFormationEtDéplacements[[#Totals],[Fév]]+DépensesRéellesMarketing[[#Totals],[Fév]]+DépensesRéellesBureau[[#Totals],[Fév]]+DépensesRéellesEmployés[[#Totals],[Fév]] -> 127,804.00 € | E36: =DépensesRéellesFormationEtDéplacements[[#Totals],[Mar]]+DépensesRéellesMarketing[[#Totals],[Mar]]+DépensesRéellesBureau[[#Totals],[Mar]]+DépensesRéellesEmployés[[#Totals],[Mar]] -> 125,565.00 € | F36: =DépensesRéellesFormationEtDéplacements[[#Totals],[Avr]]+DépensesRéellesMarketing[[#Totals],[Avr]]+DépensesRéellesBureau[[#Totals],[Avr]]+DépensesRéellesEmployés[[#Totals],[Avr]] -> 137,394.00 € | G36: =DépensesRéellesFormationEtDéplacements[[#Totals],[Mai]]+DépensesRéellesMarketing[[#Totals],[Mai]]+DépensesRéellesBureau[[#Totals],[Mai]]+DépensesRéellesEmployés[[#Totals],[Mai]] -> 128,255.00 € | H36: =DépensesRéellesFormationEtDéplacements[[#Totals],[Juin]]+DépensesRéellesMarketing[[#Totals],[Juin]]+DépensesRéellesBureau[[#Totals],[Juin]]+DépensesRéellesEmployés[[#Totals],[Juin]] -> 134,239.00 € | I36: =DépensesRéellesFormationEtDéplacements[[#Totals],[Juil]]+DépensesRéellesMarketing[[#Totals],[Juil]]+DépensesRéellesBureau[[#Totals],[Juil]]+DépensesRéellesEmployés[[#Totals],[Juil]] -> 0.00 € | J36: =DépensesRéellesFormationEtDéplacements[[#Totals],[Août]]+DépensesRéellesMarketing[[#Totals],[Août]]+DépensesRéellesBureau[[#Totals],[Août]]+DépensesRéellesEmployés[[#Totals],[Août]] -> 0.00 € | K36: =DépensesRéellesFormationEtDéplacements[[#Totals],[Sept]]+DépensesRéellesMarketing[[#Totals],[Sept]]+DépensesRéellesBureau[[#Totals],[Sept]]+DépensesRéellesEmployés[[#Totals],[Sept]] -> 0.00 € | L36: =DépensesRéellesFormationEtDéplacements[[#Totals],[Oct]]+DépensesRéellesMarketing[[#Totals],[Oct]]+DépensesRéellesBureau[[#Totals],[Oct]]+DépensesRéellesEmployés[[#Totals],[Oct]] -> 0.00 € | M36: =DépensesRéellesFormationEtDéplacements[[#Totals],[Nov]]+DépensesRéellesMarketing[[#Totals],[Nov]]+DépensesRéellesBureau[[#Totals],[Nov]]+DépensesRéellesEmployés[[#Totals],[Nov]] -> 0.00 € | N36: =DépensesRéellesFormationEtDéplacements[[#Totals],[Déc]]+DépensesRéellesMarketing[[#Totals],[Déc]]+DépensesRéellesBureau[[#Totals],[Déc]]+DépensesRéellesEmployés[[#Totals],[Déc]] -> 0.00 € | O36: =DépensesRéellesFormationEtDéplacements[[#Totals],[ANNÉE]]+DépensesRéellesMarketing[[#Totals],[ANNÉE]]+DépensesRéellesBureau[[#Totals],[ANNÉE]]+DépensesRéellesEmployés[[#Totals],[ANNÉE]] -> 782,939.00 €
B37: TOTAL des dépenses réelles | C37: =SUM($C$36:C36) -> 129,682.00 € | D37: =SUM($C$36:D36) -> 257,486.00 € | E37: =SUM($C$36:E36) -> 383,051.00 € | F37: =SUM($C$36:F36) -> 520,445.00 € | G37: =SUM($C$36:G36) -> 648,700.00 € | H37: =SUM($C$36:H36) -> 782,939.00 € | I37: =SUM($C$36:I36) -> 782,939.00 € | J37: =SUM($C$36:J36) -> 782,939.00 € | K37: =SUM($C$36:K36) -> 782,939.00 € | L37: =SUM($C$36:L36) -> 782,939.00 € | M37: =SUM($C$36:M36) -> 782,939.00 € | N37: =SUM($C$36:N36) -> 782,939.00 €

Sheet ÉCARTS DE DÉPENSES
A1: Les écarts de dépenses sont automatiquement calculés dans les tables les Coûts employés, Coûts bureau, Coûts marketing et Coûts formation/déplacements de cette feuille de calcul. Des instructions utiles sur l’utilisation de cette feuille de calcul sont disponibles dans les cellules dans cette colonne. Appuyez sur la flèche Bas pour commencer.
A2: Le nom de la société est automatiquement mis à jour dans la cellule de droite. Le titre de cette feuille de calcul figure dans la cellule K2. Entrez le logo dans la cellule N2. | B2: ='DÉPENSES PRÉVUES'!B2:D3 -> Nom de la société | K2: =titre_feuille_de_calcul -> Détail des dépenses prévues | N2: L’espace réservé au logo figure dans cette cellule.
A3: Un conseil apparaît dans la cellule K3. | K3: Les cellules ombrées correspondent aux calculs.
A4: L’étiquette Écarts de dépenses se trouve dans la cellule de droite, les mois dans les cellules C4 à N4 et l’étiquette Année dans la cellule O4. | B4: ÉCARTS DE DÉPENSES | C4: JAN | D4: FÉV | E4: MAR | F4: AVR | G4: MAI | H4: JUIN | I4: JUIL | J4: AOÛ | K4: SEPT | L4: OCT | M4: NOV | N4: DÉC | O4: ANNÉE
A5: L’écart relatif aux coûts employés est automatiquement calculé dans la table Écarts employés en commençant par la cellule de droite. L’instruction suivante figure dans la cellule A10. | B5: Coûts employés | C5: Jan | D5: Fév | E5: Mar | F5: Avr | G5: Mai | H5: Juin | I5: Juil | J5: Août | K5: Sept | L5: Oct | M5: Nov | N5: Déc | O5: ANNÉE
B6: Salaires | C6: =INDEX(PrévisionsEmployés[],MATCH(INDEX(ÉcartsEmployés[],ROW()-ROW(ÉcartsEmployés[[#Headers],[Jan]]),1),INDEX(PrévisionsEmployés[],,1),0),MATCH(ÉcartsEmployés[[#Headers],[Jan]],PrévisionsEmployés[#Headers],0))-INDEX(DépensesRéellesEmployés[],MATCH(INDEX(ÉcartsEmployés[],ROW()-ROW(ÉcartsEmployés[[#Headers],[Jan]]),1),INDEX(PrévisionsEmployés[],,1),0),MATCH(ÉcartsEmployés[[#Headers],[Jan]],DépensesRéellesEmployés[#Headers],0)) -> 0.00 € | D6: =INDEX(PrévisionsEmployés[],MATCH(INDEX(ÉcartsEmployés[],ROW()-ROW(ÉcartsEmployés[[#Headers],[Fév]]),1),INDEX(PrévisionsEmployés[],,1),0),MATCH(ÉcartsEmployés[[#Headers],[Fév]],PrévisionsEmployés[#Headers],0))-INDEX(DépensesRéellesEmployés[],MATCH(INDEX(ÉcartsEmployés[],ROW()-ROW(ÉcartsEmployés[[#Headers],[Fév]]),1),INDEX(PrévisionsEmployés[],,1),0),MATCH(ÉcartsEmployés[[#Headers],[Fév]],DépensesRéellesEmployés[#Headers],0)) -> 0.00 € | E6: =INDEX(PrévisionsEmployés[],MATCH(INDEX(ÉcartsEmployés[],ROW()-ROW(ÉcartsEmployés[[#Headers],[Mar]]),1),INDEX(PrévisionsEmployés[],,1),0),MATCH(ÉcartsEmployés[[#Headers],[Mar]],PrévisionsEmployés[#Headers],0))-INDEX(DépensesRéellesEmployés[],MATCH(INDEX(ÉcartsEmployés[],ROW()-ROW(ÉcartsEmployés[[#Headers],[Mar]]),1),INDEX(PrévisionsEmployés[],,1),0),MATCH(ÉcartsEmployés[[#Headers],[Mar]],DépensesRéellesEmployés[#Headers],0)) -> 0.00 € | F6: =INDEX(PrévisionsEmployés[],MATCH(INDEX(ÉcartsEmployés[],ROW()-ROW(ÉcartsEmployés[[#Headers],[Avr]]),1),INDEX(PrévisionsEmployés[],,1),0),MATCH(ÉcartsEmployés[[#Headers],[Avr]],PrévisionsEmployés[#Headers],0))-INDEX(DépensesRéellesEmployés[],MATCH(INDEX(ÉcartsEmployés[],ROW()-ROW(ÉcartsEmployés[[#Headers],[Avr]]),1),INDEX(PrévisionsEmployés[],,1),0),MATCH(ÉcartsEmployés[[#Headers],[Avr]],DépensesRéellesEmployés[#Headers],0)) -> -500.00 € | G6: =INDEX(PrévisionsEmployés[],MATCH(INDEX(ÉcartsEmployés[],ROW()-ROW(ÉcartsEmployés[[#Headers],[Mai]]),1),INDEX(PrévisionsEmployés[],,1),0),MATCH(ÉcartsEmployés[[#Headers],[Mai]],PrévisionsEmployés[#Headers],0))-INDEX(DépensesRéellesEmployés[],MATCH(INDEX(ÉcartsEmployés[],ROW()-ROW(ÉcartsEmployés[[#Headers],[Mai]]),1),INDEX(PrévisionsEmployés[],,1),0),MATCH(ÉcartsEmployés[[#Headers],[Mai]],DépensesRéellesEmployés[#Headers],0)) -> -500.00 € | H6: =INDEX(PrévisionsEmployés[],MATCH(INDEX(ÉcartsEmployés[],ROW()-ROW(ÉcartsEmployés[[#Headers],[Juin]]),1),INDEX(PrévisionsEmployés[],,1),0),MATCH(ÉcartsEmployés[[#Headers],[Juin]],PrévisionsEmployés[#Headers],0))-INDEX(DépensesRéellesEmployés[],MATCH(INDEX(ÉcartsEmployés[],ROW()-ROW(ÉcartsEmployés[[#Headers],[Juin]]),1),INDEX(PrévisionsEmployés[],,1),0),MATCH(ÉcartsEmployés[[#Headers],[Juin]],DépensesRéellesEmployés[#Headers],0)) -> -500.00 € | I6: =INDEX(PrévisionsEmployés[],MATCH(INDEX(ÉcartsEmployés[],ROW()-ROW(ÉcartsEmployés[[#Headers],[Juil]]),1),INDEX(PrévisionsEmployés[],,1),0),MATCH(ÉcartsEmployés[[#Headers],[Juil]],PrévisionsEmployés[#Headers],0))-INDEX(DépensesRéellesEmployés[],MATCH(INDEX(ÉcartsEmployés[],ROW()-ROW(ÉcartsEmployés[[#Headers],[Juil]]),1),INDEX(PrévisionsEmployés[],,1),0),MATCH(ÉcartsEmployés[[#Headers],[Juil]],DépensesRéellesEmployés[#Headers],0)) -> 87,500.00 € | J6: =INDEX(PrévisionsEmployés[],MATCH(INDEX(ÉcartsEmployés[],ROW()-ROW(ÉcartsEmployés[[#Headers],[Août]]),1),INDEX(PrévisionsEmployés[],,1),0),MATCH(ÉcartsEmployés[[#Headers],[Août]],PrévisionsEmployés[#Headers],0))-INDEX(DépensesRéellesEmployés[],MATCH(INDEX(ÉcartsEmployés[],ROW()-ROW(ÉcartsEmployés[[#Headers],[Août]]),1),INDEX(PrévisionsEmployés[],,1),0),MATCH(ÉcartsEmployés[[#Headers],[Août]],DépensesRéellesEmployés[#Headers],0)) -> 92,400.00 € | K6: =INDEX(PrévisionsEmployés[],MATCH(INDEX(ÉcartsEmployés[],ROW()-ROW(ÉcartsEmployés[[#Headers],[Sept]]),1),INDEX(PrévisionsEmployés[],,1),0),MATCH(ÉcartsEmployés[[#Headers],[Sept]],PrévisionsEmployés[#Headers],0))-INDEX(DépensesRéellesEmployés[],MATCH(INDEX(ÉcartsEmployés[],ROW()-ROW(ÉcartsEmployés[[#Headers],[Sept]]),1),INDEX(PrévisionsEmployés[],,1),0),MATCH(ÉcartsEmployés[[#Headers],[Sept]],DépensesRéellesEmployés[#Headers],0)) -> 92,400.00 € | L6: =INDEX(PrévisionsEmployés[],MATCH(INDEX(ÉcartsEmployés[],ROW()-ROW(ÉcartsEmployés[[#Headers],[Oct]]),1),INDEX(PrévisionsEmployés[],,1),0),MATCH(ÉcartsEmployés[[#Headers],[Oct]],PrévisionsEmployés[#Headers],0))-INDEX(DépensesRéellesEmployés[],MATCH(INDEX(ÉcartsEmployés[],ROW()-ROW(ÉcartsEmployés[[#Headers],[Oct]]),1),INDEX(PrévisionsEmployés[],,1),0),MATCH(ÉcartsEmployés[[#Headers],[Oct]],DépensesRéellesEmployés[#Headers],0)) -> 92,400.00 € | M6: =INDEX(PrévisionsEmployés[],MATCH(INDEX(ÉcartsEmployés[],ROW()-ROW(ÉcartsEmployés[[#Headers],[Nov]]),1),INDEX(PrévisionsEmployés[],,1),0),MATCH(ÉcartsEmployés[[#Headers],[Nov]],PrévisionsEmployés[#Headers],0))-INDEX(DépensesRéellesEmployés[],MATCH(INDEX(ÉcartsEmployés[],ROW()-ROW(ÉcartsEmployés[[#Headers],[Nov]]),1),INDEX(PrévisionsEmployés[],,1),0),MATCH(ÉcartsEmployés[[#Headers],[Nov]],DépensesRéellesEmployés[#Headers],0)) -> 92,400.00 € | N6: =INDEX(PrévisionsEmployés[],MATCH(INDEX(ÉcartsEmployés[],ROW()-ROW(ÉcartsEmployés[[#Headers],[Déc]]),1),INDEX(PrévisionsEmployés[],,1),0),MATCH(ÉcartsEmployés[[#Headers],[Déc]],PrévisionsEmployés[#Headers],0))-INDEX(DépensesRéellesEmployés[],MATCH(INDEX(ÉcartsEmployés[],ROW()-ROW(ÉcartsEmployés[[#Headers],[Déc]]),1),INDEX(PrévisionsEmployés[],,1),0),MATCH(ÉcartsEmployés[[#Headers],[Déc]],DépensesRéellesEmployés[#Headers],0)) -> 92,400.00 € | O6: =SUM(ÉcartsEmployés[[#This Row],[Jan]:[Déc]]) -> 548,000.00 €
B7: Bénéfices | C7: =INDEX(PrévisionsEmployés[],MATCH(INDEX(ÉcartsEmployés[],ROW()-ROW(ÉcartsEmployés[[#Headers],[Jan]]),1),INDEX(PrévisionsEmployés[],,1),0),MATCH(ÉcartsEmployés[[#Headers],[Jan]],PrévisionsEmployés[#Headers],0))-INDEX(DépensesRéellesEmployés[],MATCH(INDEX(ÉcartsEmployés[],ROW()-ROW(ÉcartsEmployés[[#Headers],[Jan]]),1),INDEX(PrévisionsEmployés[],,1),0),MATCH(ÉcartsEmployés[[#Headers],[Jan]],DépensesRéellesEmployés[#Headers],0)) -> 0.00 € | D7: =INDEX(PrévisionsEmployés[],MATCH(INDEX(ÉcartsEmployés[],ROW()-ROW(ÉcartsEmployés[[#Headers],[Fév]]),1),INDEX(PrévisionsEmployés[],,1),0),MATCH(ÉcartsEmployés[[#Headers],[Fév]],PrévisionsEmployés[#Headers],0))-INDEX(DépensesRéellesEmployés[],MATCH(INDEX(ÉcartsEmployés[],ROW()-ROW(ÉcartsEmployés[[#Headers],[Fév]]),1),INDEX(PrévisionsEmployés[],,1),0),MATCH(ÉcartsEmployés[[#Headers],[Fév]],DépensesRéellesEmployés[#Headers],0)) -> 0.00 € | E7: =INDEX(PrévisionsEmployés[],MATCH(INDEX(ÉcartsEmployés[],ROW()-ROW(ÉcartsEmployés[[#Headers],[Mar]]),1),INDEX(PrévisionsEmployés[],,1),0),MATCH(ÉcartsEmployés[[#Headers],[Mar]],PrévisionsEmployés[#Headers],0))-INDEX(DépensesRéellesEmployés[],MATCH(INDEX(ÉcartsEmployés[],ROW()-ROW(ÉcartsEmployés[[#Headers],[Mar]]),1),INDEX(PrévisionsEmployés[],,1),0),MATCH(ÉcartsEmployés[[#Headers],[Mar]],DépensesRéellesEmployés[#Headers],0)) -> 0.00 € | F7: =INDEX(PrévisionsEmployés[],MATCH(INDEX(ÉcartsEmployés[],ROW()-ROW(ÉcartsEmployés[[#Headers],[Avr]]),1),INDEX(PrévisionsEmployés[],,1),0),MATCH(ÉcartsEmployés[[#Headers],[Avr]],PrévisionsEmployés[#Headers],0))-INDEX(DépensesRéellesEmployés[],MATCH(INDEX(ÉcartsEmployés[],ROW()-ROW(ÉcartsEmployés[[#Headers],[Avr]]),1),INDEX(PrévisionsEmployés[],,1),0),MATCH(ÉcartsEmployés[[#Headers],[Avr]],DépensesRéellesEmployés[#Headers],0)) -> -135.00 € | G7: =INDEX(PrévisionsEmployés[],MATCH(INDEX(ÉcartsEmployés[],ROW()-ROW(ÉcartsEmployés[[#Headers],[Mai]]),1),INDEX(PrévisionsEmployés[],,1),0),MATCH(ÉcartsEmployés[[#Headers],[Mai]],PrévisionsEmployés[#Headers],0))-INDEX(DépensesRéellesEmployés[],MATCH(INDEX(ÉcartsEmployés[],ROW()-ROW(ÉcartsEmployés[[#Headers],[Mai]]),1),INDEX(PrévisionsEmployés[],,1),0),MATCH(ÉcartsEmployés[[#Headers],[Mai]],DépensesRéellesEmployés[#Headers],0)) -> -135.00 € | H7: =INDEX(PrévisionsEmployés[],MATCH(INDEX(ÉcartsEmployés[],ROW()-ROW(ÉcartsEmployés[[#Headers],[Juin]]),1),INDEX(PrévisionsEmployés[],,1),0),MATCH(ÉcartsEmployés[[#Headers],[Juin]],PrévisionsEmployés[#Headers],0))-INDEX(DépensesRéellesEmployés[],MATCH(INDEX(ÉcartsEmployés[],ROW()-ROW(ÉcartsEmployés[[#Headers],[Juin]]),1),INDEX(PrévisionsEmployés[],,1),0),MATCH(ÉcartsEmployés[[#Headers],[Juin]],DépensesRéellesEmployés[#Headers],0)) -> -135.00 € | I7: =INDEX(PrévisionsEmployés[],MATCH(INDEX(ÉcartsEmployés[],ROW()-ROW(ÉcartsEmployés[[#Headers],[Juil]]),1),INDEX(PrévisionsEmployés[],,1),0),MATCH(ÉcartsEmployés[[#Headers],[Juil]],PrévisionsEmployés[#Headers],0))-INDEX(DépensesRéellesEmployés[],MATCH(INDEX(ÉcartsEmployés[],ROW()-ROW(ÉcartsEmployés[[#Headers],[Juil]]),1),INDEX(PrévisionsEmployés[],,1),0),MATCH(ÉcartsEmployés[[#Headers],[Juil]],DépensesRéellesEmployés[#Headers],0)) -> 23,625.00 € | J7: =INDEX(PrévisionsEmployés[],MATCH(INDEX(ÉcartsEmployés[],ROW()-ROW(ÉcartsEmployés[[#Headers],[Août]]),1),INDEX(PrévisionsEmployés[],,1),0),MATCH(ÉcartsEmployés[[#Headers],[Août]],PrévisionsEmployés[#Headers],0))-INDEX(DépensesRéellesEmployés[],MATCH(INDEX(ÉcartsEmployés[],ROW()-ROW(ÉcartsEmployés[[#Headers],[Août]]),1),INDEX(PrévisionsEmployés[],,1),0),MATCH(ÉcartsEmployés[[#Headers],[Août]],DépensesRéellesEmployés[#Headers],0)) -> 24,948.00 € | K7: =INDEX(PrévisionsEmployés[],MATCH(INDEX(ÉcartsEmployés[],ROW()-ROW(ÉcartsEmployés[[#Headers],[Sept]]),1),INDEX(PrévisionsEmployés[],,1),0),MATCH(ÉcartsEmployés[[#Headers],[Sept]],PrévisionsEmployés[#Headers],0))-INDEX(DépensesRéellesEmployés[],MATCH(INDEX(ÉcartsEmployés[],ROW()-ROW(ÉcartsEmployés[[#Headers],[Sept]]),1),INDEX(PrévisionsEmployés[],,1),0),MATCH(ÉcartsEmployés[[#Headers],[Sept]],DépensesRéellesEmployés[#Headers],0)) -> 24,948.00 € | L7: =INDEX(PrévisionsEmployés[],MATCH(INDEX(ÉcartsEmployés[],ROW()-ROW(ÉcartsEmployés[[#Headers],[Oct]]),1),INDEX(PrévisionsEmployés[],,1),0),MATCH(ÉcartsEmployés[[#Headers],[Oct]],PrévisionsEmployés[#Headers],0))-INDEX(DépensesRéellesEmployés[],MATCH(INDEX(ÉcartsEmployés[],ROW()-ROW(ÉcartsEmployés[[#Headers],[Oct]]),1),INDEX(PrévisionsEmployés[],,1),0),MATCH(ÉcartsEmployés[[#Headers],[Oct]],DépensesRéellesEmployés[#Headers],0)) -> 24,948.00 € | M7: =INDEX(PrévisionsEmployés[],MATCH(INDEX(ÉcartsEmployés[],ROW()-ROW(ÉcartsEmployés[[#Headers],[Nov]]),1),INDEX(PrévisionsEmployés[],,1),0),MATCH(ÉcartsEmployés[[#Headers],[Nov]],PrévisionsEmployés[#Headers],0))-INDEX(DépensesRéellesEmployés[],MATCH(INDEX(ÉcartsEmployés[],ROW()-ROW(ÉcartsEmployés[[#Headers],[Nov]]),1),INDEX(PrévisionsEmployés[],,1),0),MATCH(ÉcartsEmployés[[#Headers],[Nov]],DépensesRéellesEmployés[#Headers],0)) -> 24,948.00 € | N7: =INDEX(PrévisionsEmployés[],MATCH(INDEX(ÉcartsEmployés[],ROW()-ROW(ÉcartsEmployés[[#Headers],[Déc]]),1),INDEX(PrévisionsEmployés[],,1),0),MATCH(ÉcartsEmployés[[#Headers],[Déc]],PrévisionsEmployés[#Headers],0))-INDEX(DépensesRéellesEmployés[],MATCH(INDEX(ÉcartsEmployés[],ROW()-ROW(ÉcartsEmployés[[#Headers],[Déc]]),1),INDEX(PrévisionsEmployés[],,1),0),MATCH(ÉcartsEmployés[[#Headers],[Déc]],DépensesRéellesEmployés[#Headers],0)) -> 24,948.00 € | O7: =SUM(ÉcartsEmployés[[#This Row],[Jan]:[Déc]]) -> 147,960.00 €
B8: Sous-total | C8: =SUBTOTAL(109,ÉcartsEmployés[Jan]) -> 0.00 € | D8: =SUBTOTAL(109,ÉcartsEmployés[Fév]) -> 0.00 € | E8: =SUBTOTAL(109,ÉcartsEmployés[Mar]) -> 0.00 € | F8: =SUBTOTAL(109,ÉcartsEmployés[Avr]) -> -635.00 € | G8: =SUBTOTAL(109,ÉcartsEmployés[Mai]) -> -635.00 € | H8: =SUBTOTAL(109,ÉcartsEmployés[Juin]) -> -635.00 € | I8: =SUBTOTAL(109,ÉcartsEmployés[Juil]) -> 111,125.00 € | J8: =SUBTOTAL(109,ÉcartsEmployés[Août]) -> 117,348.00 € | K8: =SUBTOTAL(109,ÉcartsEmployés[Sept]) -> 117,348.00 € | L8: =SUBTOTAL(109,ÉcartsEmployés[Oct]) -> 117,348.00 € | M8: =SUBTOTAL(109,ÉcartsEmployés[Nov]) -> 117,348.00 € | N8: =SUBTOTAL(109,ÉcartsEmployés[Déc]) -> 117,348.00 € | O8: =SUBTOTAL(109,ÉcartsEmployés[ANNÉE]) -> 695,960.00 €
A10: L’écart relatif aux coûts bureau est automatiquement calculé dans la table Écarts bureau en commençant par la cellule de droite. L’instruction suivante figure dans la cellule A21. | B10: Coûts bureau | C10: Jan | D10: Fév | E10: Mar | F10: Avr | G10: Mai | H10: Juin | I10: Juil | J10: Août | K10: Sept | L10: Oct | M10: Nov | N10: Déc | O10: ANNÉE
B11: Location des bureaux | C11: =INDEX(PrévisionsBureau[],MATCH(INDEX(ÉcartsBureau[],ROW()-ROW(ÉcartsBureau[[#Headers],[Jan]]),1),INDEX(PrévisionsBureau[],,1),0),MATCH(ÉcartsBureau[[#Headers],[Jan]],PrévisionsBureau[#Headers],0))-INDEX(DépensesRéellesBureau[],MATCH(INDEX(ÉcartsBureau[],ROW()-ROW(ÉcartsBureau[[#Headers],[Jan]]),1),INDEX(PrévisionsBureau[],,1),0),MATCH(ÉcartsBureau[[#Headers],[Jan]],DépensesRéellesBureau[#Headers],0)) -> 0.00 € | D11: =INDEX(PrévisionsBureau[],MATCH(INDEX(ÉcartsBureau[],ROW()-ROW(ÉcartsBureau[[#Headers],[Fév]]),1),INDEX(PrévisionsBureau[],,1),0),MATCH(ÉcartsBureau[[#Headers],[Fév]],PrévisionsBureau[#Headers],0))-INDEX(DépensesRéellesBureau[],MATCH(INDEX(ÉcartsBureau[],ROW()-ROW(ÉcartsBureau[[#Headers],[Fév]]),1),INDEX(PrévisionsBureau[],,1),0),MATCH(ÉcartsBureau[[#Headers],[Fév]],DépensesRéellesBureau[#Headers],0)) -> 0.00 € | E11: =INDEX(PrévisionsBureau[],MATCH(INDEX(ÉcartsBureau[],ROW()-ROW(ÉcartsBureau[[#Headers],[Mar]]),1),INDEX(PrévisionsBureau[],,1),0),MATCH(ÉcartsBureau[[#Headers],[Mar]],PrévisionsBureau[#Headers],0))-INDEX(DépensesRéellesBureau[],MATCH(INDEX(ÉcartsBureau[],ROW()-ROW(ÉcartsBureau[[#Headers],[Mar]]),1),INDEX(PrévisionsBureau[],,1),0),MATCH(ÉcartsBureau[[#Headers],[Mar]],DépensesRéellesBureau[#Headers],0)) -> 0.00 € | F11: =INDEX(PrévisionsBureau[],MATCH(INDEX(ÉcartsBureau[],ROW()-ROW(ÉcartsBureau[[#Headers],[Avr]]),1),INDEX(PrévisionsBureau[],,1),0),MATCH(ÉcartsBureau[[#Headers],[Avr]],PrévisionsBureau[#Headers],0))-INDEX(DépensesRéellesBureau[],MATCH(INDEX(ÉcartsBureau[],ROW()-ROW(ÉcartsBureau[[#Headers],[Avr]]),1),INDEX(PrévisionsBureau[],,1),0),MATCH(ÉcartsBureau[[#Headers],[Avr]],DépensesRéellesBureau[#Headers],0)) -> 0.00 € | G11: =INDEX(PrévisionsBureau[],MATCH(INDEX(ÉcartsBureau[],ROW()-ROW(ÉcartsBureau[[#Headers],[Mai]]),1),INDEX(PrévisionsBureau[],,1),0),MATCH(ÉcartsBureau[[#Headers],[Mai]],PrévisionsBureau[#Headers],0))-INDEX(DépensesRéellesBureau[],MATCH(INDEX(ÉcartsBureau[],ROW()-ROW(ÉcartsBureau[[#Headers],[Mai]]),1),INDEX(PrévisionsBureau[],,1),0),MATCH(ÉcartsBureau[[#Headers],[Mai]],DépensesRéellesBureau[#Headers],0)) -> 0.00 € | H11: =INDEX(PrévisionsBureau[],MATCH(INDEX(ÉcartsBureau[],ROW()-ROW(ÉcartsBureau[[#Headers],[Juin]]),1),INDEX(PrévisionsBureau[],,1),0),MATCH(ÉcartsBureau[[#Headers],[Juin]],PrévisionsBureau[#Headers],0))-INDEX(DépensesRéellesBureau[],MATCH(INDEX(ÉcartsBureau[],ROW()-ROW(ÉcartsBureau[[#Headers],[Juin]]),1),INDEX(PrévisionsBureau[],,1),0),MATCH(ÉcartsBureau[[#Headers],[Juin]],DépensesRéellesBureau[#Headers],0)) -> 0.00 € | I11: =INDEX(PrévisionsBureau[],MATCH(INDEX(ÉcartsBureau[],ROW()-ROW(ÉcartsBureau[[#Headers],[Juil]]),1),INDEX(PrévisionsBureau[],,1),0),MATCH(ÉcartsBureau[[#Headers],[Juil]],PrévisionsBureau[#Headers],0))-INDEX(DépensesRéellesBureau[],MATCH(INDEX(ÉcartsBureau[],ROW()-ROW(ÉcartsBureau[[#Headers],[Juil]]),1),INDEX(PrévisionsBureau[],,1),0),MATCH(ÉcartsBureau[[#Headers],[Juil]],DépensesRéellesBureau[#Headers],0)) -> 9,800.00 € | J11: =INDEX(PrévisionsBureau[],MATCH(INDEX(ÉcartsBureau[],ROW()-ROW(ÉcartsBureau[[#Headers],[Août]]),1),INDEX(PrévisionsBureau[],,1),0),MATCH(ÉcartsBureau[[#Headers],[Août]],PrévisionsBureau[#Headers],0))-INDEX(DépensesRéellesBureau[],MATCH(INDEX(ÉcartsBureau[],ROW()-ROW(ÉcartsBureau[[#Headers],[Août]]),1),INDEX(PrévisionsBureau[],,1),0),MATCH(ÉcartsBureau[[#Headers],[Août]],DépensesRéellesBureau[#Headers],0)) -> 9,800.00 € | K11: =INDEX(PrévisionsBureau[],MATCH(INDEX(ÉcartsBureau[],ROW()-ROW(ÉcartsBureau[[#Headers],[Sept]]),1),INDEX(PrévisionsBureau[],,1),0),MATCH(ÉcartsBureau[[#Headers],[Sept]],PrévisionsBureau[#Headers],0))-INDEX(DépensesRéellesBureau[],MATCH(INDEX(ÉcartsBureau[],ROW()-ROW(ÉcartsBureau[[#Headers],[Sept]]),1),INDEX(PrévisionsBureau[],,1),0),MATCH(ÉcartsBureau[[#Headers],[Sept]],DépensesRéellesBureau[#Headers],0)) -> 9,800.00 € | L11: =INDEX(PrévisionsBureau[],MATCH(INDEX(ÉcartsBureau[],ROW()-ROW(ÉcartsBureau[[#Headers],[Oct]]),1),INDEX(PrévisionsBureau[],,1),0),MATCH(ÉcartsBureau[[#Headers],[Oct]],PrévisionsBureau[#Headers],0))-INDEX(DépensesRéellesBureau[],MATCH(INDEX(ÉcartsBureau[],ROW()-ROW(ÉcartsBureau[[#Headers],[Oct]]),1),INDEX(PrévisionsBureau[],,1),0),MATCH(ÉcartsBureau[[#Headers],[Oct]],DépensesRéellesBureau[#Headers],0)) -> 9,800.00 € | M11: =INDEX(PrévisionsBureau[],MATCH(INDEX(ÉcartsBureau[],ROW()-ROW(ÉcartsBureau[[#Headers],[Nov]]),1),INDEX(PrévisionsBureau[],,1),0),MATCH(ÉcartsBureau[[#Headers],[Nov]],PrévisionsBureau[#Headers],0))-INDEX(DépensesRéellesBureau[],MATCH(INDEX(ÉcartsBureau[],ROW()-ROW(ÉcartsBureau[[#Headers],[Nov]]),1),INDEX(PrévisionsBureau[],,1),0),MATCH(ÉcartsBureau[[#Headers],[Nov]],DépensesRéellesBureau[#Headers],0)) -> 9,800.00 € | N11: =INDEX(PrévisionsBureau[],MATCH(INDEX(ÉcartsBureau[],ROW()-ROW(ÉcartsBureau[[#Headers],[Déc]]),1),INDEX(PrévisionsBureau[],,1),0),MATCH(ÉcartsBureau[[#Headers],[Déc]],PrévisionsBureau[#Headers],0))-INDEX(DépensesRéellesBureau[],MATCH(INDEX(ÉcartsBureau[],ROW()-ROW(ÉcartsBureau[[#Headers],[Déc]]),1),INDEX(PrévisionsBureau[],,1),0),MATCH(ÉcartsBureau[[#Headers],[Déc]],DépensesRéellesBureau[#Headers],0)) -> 9,800.00 € | O11: =SUM(ÉcartsBureau[[#This Row],[Jan]:[Déc]]) -> 58,800.00 €
B12: Gaz | C12: =INDEX(PrévisionsBureau[],MATCH(INDEX(ÉcartsBureau[],ROW()-ROW(ÉcartsBureau[[#Headers],[Jan]]),1),INDEX(PrévisionsBureau[],,1),0),MATCH(ÉcartsBureau[[#Headers],[Jan]],PrévisionsBureau[#Headers],0))-INDEX(DépensesRéellesBureau[],MATCH(INDEX(ÉcartsBureau[],ROW()-ROW(ÉcartsBureau[[#Headers],[Jan]]),1),INDEX(PrévisionsBureau[],,1),0),MATCH(ÉcartsBureau[[#Headers],[Jan]],DépensesRéellesBureau[#Headers],0)) -> -4.00 € | D12: =INDEX(PrévisionsBureau[],MATCH(INDEX(ÉcartsBureau[],ROW()-ROW(ÉcartsBureau[[#Headers],[Fév]]),1),INDEX(PrévisionsBureau[],,1),0),MATCH(ÉcartsBureau[[#Headers],[Fév]],PrévisionsBureau[#Headers],0))-INDEX(DépensesRéellesBureau[],MATCH(INDEX(ÉcartsBureau[],ROW()-ROW(ÉcartsBureau[[#Headers],[Fév]]),1),INDEX(PrévisionsBureau[],,1),0),MATCH(ÉcartsBureau[[#Headers],[Fév]],DépensesRéellesBureau[#Headers],0)) -> -30.00 € | E12: =INDEX(PrévisionsBureau[],MATCH(INDEX(ÉcartsBureau[],ROW()-ROW(ÉcartsBureau[[#Headers],[Mar]]),1),INDEX(PrévisionsBureau[],,1),0),MATCH(ÉcartsBureau[[#Headers],[Mar]],PrévisionsBureau[#Headers],0))-INDEX(DépensesRéellesBureau[],MATCH(INDEX(ÉcartsBureau[],ROW()-ROW(ÉcartsBureau[[#Headers],[Mar]]),1),INDEX(PrévisionsBureau[],,1),0),MATCH(ÉcartsBureau[[#Headers],[Mar]],DépensesRéellesBureau[#Headers],0)) -> 15.00 € | F12: =INDEX(PrévisionsBureau[],MATCH(INDEX(ÉcartsBureau[],ROW()-ROW(ÉcartsBureau[[#Headers],[Avr]]),1),INDEX(PrévisionsBureau[],,1),0),MATCH(ÉcartsBureau[[#Headers],[Avr]],PrévisionsBureau[#Headers],0))-INDEX(DépensesRéellesBureau[],MATCH(INDEX(ÉcartsBureau[],ROW()-ROW(ÉcartsBureau[[#Headers],[Avr]]),1),INDEX(PrévisionsBureau[],,1),0),MATCH(ÉcartsBureau[[#Headers],[Avr]],DépensesRéellesBureau[#Headers],0)) -> -130.00 € | G12: =INDEX(PrévisionsBureau[],MATCH(INDEX(ÉcartsBureau[],ROW()-ROW(ÉcartsBureau[[#Headers],[Mai]]),1),INDEX(PrévisionsBureau[],,1),0),MATCH(ÉcartsBureau[[#Headers],[Mai]],PrévisionsBureau[#Headers],0))-INDEX(DépensesRéellesBureau[],MATCH(INDEX(ÉcartsBureau[],ROW()-ROW(ÉcartsBureau[[#Headers],[Mai]]),1),INDEX(PrévisionsBureau[],,1),0),MATCH(ÉcartsBureau[[#Headers],[Mai]],DépensesRéellesBureau[#Headers],0)) -> 13.00 € | H12: =INDEX(PrévisionsBureau[],MATCH(INDEX(ÉcartsBureau[],ROW()-ROW(ÉcartsBureau[[#Headers],[Juin]]),1),INDEX(PrévisionsBureau[],,1),0),MATCH(ÉcartsBureau[[#Headers],[Juin]],PrévisionsBureau[#Headers],0))-INDEX(DépensesRéellesBureau[],MATCH(INDEX(ÉcartsBureau[],ROW()-ROW(ÉcartsBureau[[#Headers],[Juin]]),1),INDEX(PrévisionsBureau[],,1),0),MATCH(ÉcartsBureau[[#Headers],[Juin]],DépensesRéellesBureau[#Headers],0)) -> 12.00 € | I12: =INDEX(PrévisionsBureau[],MATCH(INDEX(ÉcartsBureau[],ROW()-ROW(ÉcartsBureau[[#Headers],[Juil]]),1),INDEX(PrévisionsBureau[],,1),0),MATCH(ÉcartsBureau[[#Headers],[Juil]],PrévisionsBureau[#Headers],0))-INDEX(DépensesRéellesBureau[],MATCH(INDEX(ÉcartsBureau[],ROW()-ROW(ÉcartsBureau[[#Headers],[Juil]]),1),INDEX(PrévisionsBureau[],,1),0),MATCH(ÉcartsBureau[[#Headers],[Juil]],DépensesRéellesBureau[#Headers],0)) -> 100.00 € | J12: =INDEX(PrévisionsBureau[],MATCH(INDEX(ÉcartsBureau[],ROW()-ROW(ÉcartsBureau[[#Headers],[Août]]),1),INDEX(PrévisionsBureau[],,1),0),MATCH(ÉcartsBureau[[#Headers],[Août]],PrévisionsBureau[#Headers],0))-INDEX(DépensesRéellesBureau[],MATCH(INDEX(ÉcartsBureau[],ROW()-ROW(ÉcartsBureau[[#Headers],[Août]]),1),INDEX(PrévisionsBureau[],,1),0),MATCH(ÉcartsBureau[[#Headers],[Août]],DépensesRéellesBureau[#Headers],0)) -> 100.00 € | K12: =INDEX(PrévisionsBureau[],MATCH(INDEX(ÉcartsBureau[],ROW()-ROW(ÉcartsBureau[[#Headers],[Sept]]),1),INDEX(PrévisionsBureau[],,1),0),MATCH(ÉcartsBureau[[#Headers],[Sept]],PrévisionsBureau[#Headers],0))-INDEX(DépensesRéellesBureau[],MATCH(INDEX(ÉcartsBureau[],ROW()-ROW(ÉcartsBureau[[#Headers],[Sept]]),1),INDEX(PrévisionsBureau[],,1),0),MATCH(ÉcartsBureau[[#Headers],[Sept]],DépensesRéellesBureau[#Headers],0)) -> 100.00 € | L12: =INDEX(PrévisionsBureau[],MATCH(INDEX(ÉcartsBureau[],ROW()-ROW(ÉcartsBureau[[#Headers],[Oct]]),1),INDEX(PrévisionsBureau[],,1),0),MATCH(ÉcartsBureau[[#Headers],[Oct]],PrévisionsBureau[#Headers],0))-INDEX(DépensesRéellesBureau[],MATCH(INDEX(ÉcartsBureau[],ROW()-ROW(ÉcartsBureau[[#Headers],[Oct]]),1),INDEX(PrévisionsBureau[],,1),0),MATCH(ÉcartsBureau[[#Headers],[Oct]],DépensesRéellesBureau[#Headers],0)) -> 100.00 € | M12: =INDEX(PrévisionsBureau[],MATCH(INDEX(ÉcartsBureau[],ROW()-ROW(ÉcartsBureau[[#Headers],[Nov]]),1),INDEX(PrévisionsBureau[],,1),0),MATCH(ÉcartsBureau[[#Headers],[Nov]],PrévisionsBureau[#Headers],0))-INDEX(DépensesRéellesBureau[],MATCH(INDEX(ÉcartsBureau[],ROW()-ROW(ÉcartsBureau[[#Headers],[Nov]]),1),INDEX(PrévisionsBureau[],,1),0),MATCH(ÉcartsBureau[[#Headers],[Nov]],DépensesRéellesBureau[#Headers],0)) -> 400.00 € | N12: =INDEX(PrévisionsBureau[],MATCH(INDEX(ÉcartsBureau[],ROW()-ROW(ÉcartsBureau[[#Headers],[Déc]]),1),INDEX(PrévisionsBureau[],,1),0),MATCH(ÉcartsBureau[[#Headers],[Déc]],PrévisionsBureau[#Headers],0))-INDEX(DépensesRéellesBureau[],MATCH(INDEX(ÉcartsBureau[],ROW()-ROW(ÉcartsBureau[[#Headers],[Déc]]),1),INDEX(PrévisionsBureau[],,1),0),MATCH(ÉcartsBureau[[#Headers],[Déc]],DépensesRéellesBureau[#Headers],0)) -> 400.00 € | O12: =SUM(ÉcartsBureau[[#This Row],[Jan]:[Déc]]) -> 1,076.00 €
B13: Électricité | C13: =INDEX(PrévisionsBureau[],MATCH(INDEX(ÉcartsBureau[],ROW()-ROW(ÉcartsBureau[[#Headers],[Jan]]),1),INDEX(PrévisionsBureau[],,1),0),MATCH(ÉcartsBureau[[#Headers],[Jan]],PrévisionsBureau[#Headers],0))-INDEX(DépensesRéellesBureau[],MATCH(INDEX(ÉcartsBureau[],ROW()-ROW(ÉcartsBureau[[#Headers],[Jan]]),1),INDEX(PrévisionsBureau[],,1),0),MATCH(ÉcartsBureau[[#Headers],[Jan]],DépensesRéellesBureau[#Headers],0)) -> 12.00 € | D13: =INDEX(PrévisionsBureau[],MATCH(INDEX(ÉcartsBureau[],ROW()-ROW(ÉcartsBureau[[#Headers],[Fév]]),1),INDEX(PrévisionsBureau[],,1),0),MATCH(ÉcartsBureau[[#Headers],[Fév]],PrévisionsBureau[#Headers],0))-INDEX(DépensesRéellesBureau[],MATCH(INDEX(ÉcartsBureau[],ROW()-ROW(ÉcartsBureau[[#Headers],[Fév]]),1),INDEX(PrévisionsBureau[],,1),0),MATCH(ÉcartsBureau[[#Headers],[Fév]],DépensesRéellesBureau[#Headers],0)) -> 22.00 € | E13: =INDEX(PrévisionsBureau[],MATCH(INDEX(ÉcartsBureau[],ROW()-ROW(ÉcartsBureau[[#Headers],[Mar]]),1),INDEX(PrévisionsBureau[],,1),0),MATCH(ÉcartsBureau[[#Headers],[Mar]],PrévisionsBureau[#Headers],0))-INDEX(DépensesRéellesBureau[],MATCH(INDEX(ÉcartsBureau[],ROW()-ROW(ÉcartsBureau[[#Headers],[Mar]]),1),INDEX(PrévisionsBureau[],,1),0),MATCH(ÉcartsBureau[[#Headers],[Mar]],DépensesRéellesBureau[#Headers],0)) -> 32.00 € | F13: =INDEX(PrévisionsBureau[],MATCH(INDEX(ÉcartsBureau[],ROW()-ROW(ÉcartsBureau[[#Headers],[Avr]]),1),INDEX(PrévisionsBureau[],,1),0),MATCH(ÉcartsBureau[[#Headers],[Avr]],PrévisionsBureau[#Headers],0))-INDEX(DépensesRéellesBureau[],MATCH(INDEX(ÉcartsBureau[],ROW()-ROW(ÉcartsBureau[[#Headers],[Avr]]),1),INDEX(PrévisionsBureau[],,1),0),MATCH(ÉcartsBureau[[#Headers],[Avr]],DépensesRéellesBureau[#Headers],0)) -> 1.00 € | G13: =INDEX(PrévisionsBureau[],MATCH(INDEX(ÉcartsBureau[],ROW()-ROW(ÉcartsBureau[[#Headers],[Mai]]),1),INDEX(PrévisionsBureau[],,1),0),MATCH(ÉcartsBureau[[#Headers],[Mai]],PrévisionsBureau[#Headers],0))-INDEX(DépensesRéellesBureau[],MATCH(INDEX(ÉcartsBureau[],ROW()-ROW(ÉcartsBureau[[#Headers],[Mai]]),1),INDEX(PrévisionsBureau[],,1),0),MATCH(ÉcartsBureau[[#Headers],[Mai]],DépensesRéellesBureau[#Headers],0)) -> -6.00 € | H13: =INDEX(PrévisionsBureau[],MATCH(INDEX(ÉcartsBureau[],ROW()-ROW(ÉcartsBureau[[#Headers],[Juin]]),1),INDEX(PrévisionsBureau[],,1),0),MATCH(ÉcartsBureau[[#Headers],[Juin]],PrévisionsBureau[#Headers],0))-INDEX(DépensesRéellesBureau[],MATCH(INDEX(ÉcartsBureau[],ROW()-ROW(ÉcartsBureau[[#Headers],[Juin]]),1),INDEX(PrévisionsBureau[],,1),0),MATCH(ÉcartsBureau[[#Headers],[Juin]],DépensesRéellesBureau[#Headers],0)) -> 10.00 € | I13: =INDEX(PrévisionsBureau[],MATCH(INDEX(ÉcartsBureau[],ROW()-ROW(ÉcartsBureau[[#Headers],[Juil]]),1),INDEX(PrévisionsBureau[],,1),0),MATCH(ÉcartsBureau[[#Headers],[Juil]],PrévisionsBureau[#Headers],0))-INDEX(DépensesRéellesBureau[],MATCH(INDEX(ÉcartsBureau[],ROW()-ROW(ÉcartsBureau[[#Headers],[Juil]]),1),INDEX(PrévisionsBureau[],,1),0),MATCH(ÉcartsBureau[[#Headers],[Juil]],DépensesRéellesBureau[#Headers],0)) -> 300.00 € | J13: =INDEX(PrévisionsBureau[],MATCH(INDEX(ÉcartsBureau[],ROW()-ROW(ÉcartsBureau[[#Headers],[Août]]),1),INDEX(PrévisionsBureau[],,1),0),MATCH(ÉcartsBureau[[#Headers],[Août]],PrévisionsBureau[#Headers],0))-INDEX(DépensesRéellesBureau[],MATCH(INDEX(ÉcartsBureau[],ROW()-ROW(ÉcartsBureau[[#Headers],[Août]]),1),INDEX(PrévisionsBureau[],,1),0),MATCH(ÉcartsBureau[[#Headers],[Août]],DépensesRéellesBureau[#Headers],0)) -> 300.00 € | K13: =INDEX(PrévisionsBureau[],MATCH(INDEX(ÉcartsBureau[],ROW()-ROW(ÉcartsBureau[[#Headers],[Sept]]),1),INDEX(PrévisionsBureau[],,1),0),MATCH(ÉcartsBureau[[#Headers],[Sept]],PrévisionsBureau[#Headers],0))-INDEX(DépensesRéellesBureau[],MATCH(INDEX(ÉcartsBureau[],ROW()-ROW(ÉcartsBureau[[#Headers],[Sept]]),1),INDEX(PrévisionsBureau[],,1),0),MATCH(ÉcartsBureau[[#Headers],[Sept]],DépensesRéellesBureau[#Headers],0)) -> 300.00 € | L13: =INDEX(PrévisionsBureau[],MATCH(INDEX(ÉcartsBureau[],ROW()-ROW(ÉcartsBureau[[#Headers],[Oct]]),1),INDEX(PrévisionsBureau[],,1),0),MATCH(ÉcartsBureau[[#Headers],[Oct]],PrévisionsBureau[#Headers],0))-INDEX(DépensesRéellesBureau[],MATCH(INDEX(ÉcartsBureau[],ROW()-ROW(ÉcartsBureau[[#Headers],[Oct]]),1),INDEX(PrévisionsBureau[],,1),0),MATCH(ÉcartsBureau[[#Headers],[Oct]],DépensesRéellesBureau[#Headers],0)) -> 300.00 € | M13: =INDEX(PrévisionsBureau[],MATCH(INDEX(ÉcartsBureau[],ROW()-ROW(ÉcartsBureau[[#Headers],[Nov]]),1),INDEX(PrévisionsBureau[],,1),0),MATCH(ÉcartsBureau[[#Headers],[Nov]],PrévisionsBureau[#Headers],0))-INDEX(DépensesRéellesBureau[],MATCH(INDEX(ÉcartsBureau[],ROW()-ROW(ÉcartsBureau[[#Headers],[Nov]]),1),INDEX(PrévisionsBureau[],,1),0),MATCH(ÉcartsBureau[[#Headers],[Nov]],DépensesRéellesBureau[#Headers],0)) -> 300.00 € | N13: =INDEX(PrévisionsBureau[],MATCH(INDEX(ÉcartsBureau[],ROW()-ROW(ÉcartsBureau[[#Headers],[Déc]]),1),INDEX(PrévisionsBureau[],,1),0),MATCH(ÉcartsBureau[[#Headers],[Déc]],PrévisionsBureau[#Headers],0))-INDEX(DépensesRéellesBureau[],MATCH(INDEX(ÉcartsBureau[],ROW()-ROW(ÉcartsBureau[[#Headers],[Déc]]),1),INDEX(PrévisionsBureau[],,1),0),MATCH(ÉcartsBureau[[#Headers],[Déc]],DépensesRéellesBureau[#Headers],0)) -> 300.00 € | O13: =SUM(ÉcartsBureau[[#This Row],[Jan]:[Déc]]) -> 1,871.00 €
B14: Eau | C14: =INDEX(PrévisionsBureau[],MATCH(INDEX(ÉcartsBureau[],ROW()-ROW(ÉcartsBureau[[#Headers],[Jan]]),1),INDEX(PrévisionsBureau[],,1),0),MATCH(ÉcartsBureau[[#Headers],[Jan]],PrévisionsBureau[#Headers],0))-INDEX(DépensesRéellesBureau[],MATCH(INDEX(ÉcartsBureau[],ROW()-ROW(ÉcartsBureau[[#Headers],[Jan]]),1),INDEX(PrévisionsBureau[],,1),0),MATCH(ÉcartsBureau[[#Headers],[Jan]],DépensesRéellesBureau[#Headers],0)) -> 5.00 € | D14: =INDEX(PrévisionsBureau[],MATCH(INDEX(ÉcartsBureau[],ROW()-ROW(ÉcartsBureau[[#Headers],[Fév]]),1),INDEX(PrévisionsBureau[],,1),0),MATCH(ÉcartsBureau[[#Headers],[Fév]],PrévisionsBureau[#Headers],0))-INDEX(DépensesRéellesBureau[],MATCH(INDEX(ÉcartsBureau[],ROW()-ROW(ÉcartsBureau[[#Headers],[Fév]]),1),INDEX(PrévisionsBureau[],,1),0),MATCH(ÉcartsBureau[[#Headers],[Fév]],DépensesRéellesBureau[#Headers],0)) -> 7.00 € | E14: =INDEX(PrévisionsBureau[],MATCH(INDEX(ÉcartsBureau[],ROW()-ROW(ÉcartsBureau[[#Headers],[Mar]]),1),INDEX(PrévisionsBureau[],,1),0),MATCH(ÉcartsBureau[[#Headers],[Mar]],PrévisionsBureau[#Headers],0))-INDEX(DépensesRéellesBureau[],MATCH(INDEX(ÉcartsBureau[],ROW()-ROW(ÉcartsBureau[[#Headers],[Mar]]),1),INDEX(PrévisionsBureau[],,1),0),MATCH(ÉcartsBureau[[#Headers],[Mar]],DépensesRéellesBureau[#Headers],0)) -> 6.00 € | F14: =INDEX(PrévisionsBureau[],MATCH(INDEX(ÉcartsBureau[],ROW()-ROW(ÉcartsBureau[[#Headers],[Avr]]),1),INDEX(PrévisionsBureau[],,1),0),MATCH(ÉcartsBureau[[#Headers],[Avr]],PrévisionsBureau[#Headers],0))-INDEX(DépensesRéellesBureau[],MATCH(INDEX(ÉcartsBureau[],ROW()-ROW(ÉcartsBureau[[#Headers],[Avr]]),1),INDEX(PrévisionsBureau[],,1),0),MATCH(ÉcartsBureau[[#Headers],[Avr]],DépensesRéellesBureau[#Headers],0)) -> 4.00 € | G14: =INDEX(PrévisionsBureau[],MATCH(INDEX(ÉcartsBureau[],ROW()-ROW(ÉcartsBureau[[#Headers],[Mai]]),1),INDEX(PrévisionsBureau[],,1),0),MATCH(ÉcartsBureau[[#Headers],[Mai]],PrévisionsBureau[#Headers],0))-INDEX(DépensesRéellesBureau[],MATCH(INDEX(ÉcartsBureau[],ROW()-ROW(ÉcartsBureau[[#Headers],[Mai]]),1),INDEX(PrévisionsBureau[],,1),0),MATCH(ÉcartsBureau[[#Headers],[Mai]],DépensesRéellesBureau[#Headers],0)) -> 6.00 € | H14: =INDEX(PrévisionsBureau[],MATCH(INDEX(ÉcartsBureau[],ROW()-ROW(ÉcartsBureau[[#Headers],[Juin]]),1),INDEX(PrévisionsBureau[],,1),0),MATCH(ÉcartsBureau[[#Headers],[Juin]],PrévisionsBureau[#Headers],0))-INDEX(DépensesRéellesBureau[],MATCH(INDEX(ÉcartsBureau[],ROW()-ROW(ÉcartsBureau[[#Headers],[Juin]]),1),INDEX(PrévisionsBureau[],,1),0),MATCH(ÉcartsBureau[[#Headers],[Juin]],DépensesRéellesBureau[#Headers],0)) -> 4.00 € | I14: =INDEX(PrévisionsBureau[],MATCH(INDEX(ÉcartsBureau[],ROW()-ROW(ÉcartsBureau[[#Headers],[Juil]]),1),INDEX(PrévisionsBureau[],,1),0),MATCH(ÉcartsBureau[[#Headers],[Juil]],PrévisionsBureau[#Headers],0))-INDEX(DépensesRéellesBureau[],MATCH(INDEX(ÉcartsBureau[],ROW()-ROW(ÉcartsBureau[[#Headers],[Juil]]),1),INDEX(PrévisionsBureau[],,1),0),MATCH(ÉcartsBureau[[#Headers],[Juil]],DépensesRéellesBureau[#Headers],0)) -> 40.00 € | J14: =INDEX(PrévisionsBureau[],MATCH(INDEX(ÉcartsBureau[],ROW()-ROW(ÉcartsBureau[[#Headers],[Août]]),1),INDEX(PrévisionsBureau[],,1),0),MATCH(ÉcartsBureau[[#Headers],[Août]],PrévisionsBureau[#Headers],0))-INDEX(DépensesRéellesBureau[],MATCH(INDEX(ÉcartsBureau[],ROW()-ROW(ÉcartsBureau[[#Headers],[Août]]),1),INDEX(PrévisionsBureau[],,1),0),MATCH(ÉcartsBureau[[#Headers],[Août]],DépensesRéellesBureau[#Headers],0)) -> 40.00 € | K14: =INDEX(PrévisionsBureau[],MATCH(INDEX(ÉcartsBureau[],ROW()-ROW(ÉcartsBureau[[#Headers],[Sept]]),1),INDEX(PrévisionsBureau[],,1),0),MATCH(ÉcartsBureau[[#Headers],[Sept]],PrévisionsBureau[#Headers],0))-INDEX(DépensesRéellesBureau[],MATCH(INDEX(ÉcartsBureau[],ROW()-ROW(ÉcartsBureau[[#Headers],[Sept]]),1),INDEX(PrévisionsBureau[],,1),0),MATCH(ÉcartsBureau[[#Headers],[Sept]],DépensesRéellesBureau[#Headers],0)) -> 40.00 € | L14: =INDEX(PrévisionsBureau[],MATCH(INDEX(ÉcartsBureau[],ROW()-ROW(ÉcartsBureau[[#Headers],[Oct]]),1),INDEX(PrévisionsBureau[],,1),0),MATCH(ÉcartsBureau[[#Headers],[Oct]],PrévisionsBureau[#Headers],0))-INDEX(DépensesRéellesBureau[],MATCH(INDEX(ÉcartsBureau[],ROW()-ROW(ÉcartsBureau[[#Headers],[Oct]]),1),INDEX(PrévisionsBureau[],,1),0),MATCH(ÉcartsBureau[[#Headers],[Oct]],DépensesRéellesBureau[#Headers],0)) -> 40.00 € | M14: =INDEX(PrévisionsBureau[],MATCH(INDEX(ÉcartsBureau[],ROW()-ROW(ÉcartsBureau[[#Headers],[Nov]]),1),INDEX(PrévisionsBureau[],,1),0),MATCH(ÉcartsBureau[[#Headers],[Nov]],PrévisionsBureau[#Headers],0))-INDEX(DépensesRéellesBureau[],MATCH(INDEX(ÉcartsBureau[],ROW()-ROW(ÉcartsBureau[[#Headers],[Nov]]),1),INDEX(PrévisionsBureau[],,1),0),MATCH(ÉcartsBureau[[#Headers],[Nov]],DépensesRéellesBureau[#Headers],0)) -> 40.00 € | N14: =INDEX(PrévisionsBureau[],MATCH(INDEX(ÉcartsBureau[],ROW()-ROW(ÉcartsBureau[[#Headers],[Déc]]),1),INDEX(PrévisionsBureau[],,1),0),MATCH(ÉcartsBureau[[#Headers],[Déc]],PrévisionsBureau[#Headers],0))-INDEX(DépensesRéellesBureau[],MATCH(INDEX(ÉcartsBureau[],ROW()-ROW(ÉcartsBureau[[#Headers],[Déc]]),1),INDEX(PrévisionsBureau[],,1),0),MATCH(ÉcartsBureau[[#Headers],[Déc]],DépensesRéellesBureau[#Headers],0)) -> 40.00 € | O14: =SUM(ÉcartsBureau[[#This Row],[Jan]:[Déc]]) -> 272.00 €
B15: Téléphone | C15: =INDEX(PrévisionsBureau[],MATCH(INDEX(ÉcartsBureau[],ROW()-ROW(ÉcartsBureau[[#Headers],[Jan]]),1),INDEX(PrévisionsBureau[],,1),0),MATCH(ÉcartsBureau[[#Headers],[Jan]],PrévisionsBureau[#Headers],0))-INDEX(DépensesRéellesBureau[],MATCH(INDEX(ÉcartsBureau[],ROW()-ROW(ÉcartsBureau[[#Headers],[Jan]]),1),INDEX(PrévisionsBureau[],,1),0),MATCH(ÉcartsBureau[[#Headers],[Jan]],DépensesRéellesBureau[#Headers],0)) -> 26.00 € | D15: =INDEX(PrévisionsBureau[],MATCH(INDEX(ÉcartsBureau[],ROW()-ROW(ÉcartsBureau[[#Headers],[Fév]]),1),INDEX(PrévisionsBureau[],,1),0),MATCH(ÉcartsBureau[[#Headers],[Fév]],PrévisionsBureau[#Headers],0))-INDEX(DépensesRéellesBureau[],MATCH(INDEX(ÉcartsBureau[],ROW()-ROW(ÉcartsBureau[[#Headers],[Fév]]),1),INDEX(PrévisionsBureau[],,1),0),MATCH(ÉcartsBureau[[#Headers],[Fév]],DépensesRéellesBureau[#Headers],0)) -> 15.00 € | E15: =INDEX(PrévisionsBureau[],MATCH(INDEX(ÉcartsBureau[],ROW()-ROW(ÉcartsBureau[[#Headers],[Mar]]),1),INDEX(PrévisionsBureau[],,1),0),MATCH(ÉcartsBureau[[#Headers],[Mar]],PrévisionsBureau[#Headers],0))-INDEX(DépensesRéellesBureau[],MATCH(INDEX(ÉcartsBureau[],ROW()-ROW(ÉcartsBureau[[#Headers],[Mar]]),1),INDEX(PrévisionsBureau[],,1),0),MATCH(ÉcartsBureau[[#Headers],[Mar]],DépensesRéellesBureau[#Headers],0)) -> -15.00 € | F15: =INDEX(PrévisionsBureau[],MATCH(INDEX(ÉcartsBureau[],ROW()-ROW(ÉcartsBureau[[#Headers],[Avr]]),1),INDEX(PrévisionsBureau[],,1),0),MATCH(ÉcartsBureau[[#Headers],[Avr]],PrévisionsBureau[#Headers],0))-INDEX(DépensesRéellesBureau[],MATCH(INDEX(ÉcartsBureau[],ROW()-ROW(ÉcartsBureau[[#Headers],[Avr]]),1),INDEX(PrévisionsBureau[],,1),0),MATCH(ÉcartsBureau[[#Headers],[Avr]],DépensesRéellesBureau[#Headers],0)) -> 5.00 € | G15: =INDEX(PrévisionsBureau[],MATCH(INDEX(ÉcartsBureau[],ROW()-ROW(ÉcartsBureau[[#Headers],[Mai]]),1),INDEX(PrévisionsBureau[],,1),0),MATCH(ÉcartsBureau[[#Headers],[Mai]],PrévisionsBureau[#Headers],0))-INDEX(DépensesRéellesBureau[],MATCH(INDEX(ÉcartsBureau[],ROW()-ROW(ÉcartsBureau[[#Headers],[Mai]]),1),INDEX(PrévisionsBureau[],,1),0),MATCH(ÉcartsBureau[[#Headers],[Mai]],DépensesRéellesBureau[#Headers],0)) -> 5.00 € | H15: =INDEX(PrévisionsBureau[],MATCH(INDEX(ÉcartsBureau[],ROW()-ROW(ÉcartsBureau[[#Headers],[Juin]]),1),INDEX(PrévisionsBureau[],,1),0),MATCH(ÉcartsBureau[[#Headers],[Juin]],PrévisionsBureau[#Headers],0))-INDEX(DépensesRéellesBureau[],MATCH(INDEX(ÉcartsBureau[],ROW()-ROW(ÉcartsBureau[[#Headers],[Juin]]),1),INDEX(PrévisionsBureau[],,1),0),MATCH(ÉcartsBureau[[#Headers],[Juin]],DépensesRéellesBureau[#Headers],0)) -> 30.00 € | I15: =INDEX(PrévisionsBureau[],MATCH(INDEX(ÉcartsBureau[],ROW()-ROW(ÉcartsBureau[[#Headers],[Juil]]),1),INDEX(PrévisionsBureau[],,1),0),MATCH(ÉcartsBureau[[#Headers],[Juil]],PrévisionsBureau[#Headers],0))-INDEX(DépensesRéellesBureau[],MATCH(INDEX(ÉcartsBureau[],ROW()-ROW(ÉcartsBureau[[#Headers],[Juil]]),1),INDEX(PrévisionsBureau[],,1),0),MATCH(ÉcartsBureau[[#Headers],[Juil]],DépensesRéellesBureau[#Headers],0)) -> 250.00 € | J15: =INDEX(PrévisionsBureau[],MATCH(INDEX(ÉcartsBureau[],ROW()-ROW(ÉcartsBureau[[#Headers],[Août]]),1),INDEX(PrévisionsBureau[],,1),0),MATCH(ÉcartsBureau[[#Headers],[Août]],PrévisionsBureau[#Headers],0))-INDEX(DépensesRéellesBureau[],MATCH(INDEX(ÉcartsBureau[],ROW()-ROW(ÉcartsBureau[[#Headers],[Août]]),1),INDEX(PrévisionsBureau[],,1),0),MATCH(ÉcartsBureau[[#Headers],[Août]],DépensesRéellesBureau[#Headers],0)) -> 250.00 € | K15: =INDEX(PrévisionsBureau[],MATCH(INDEX(ÉcartsBureau[],ROW()-ROW(ÉcartsBureau[[#Headers],[Sept]]),1),INDEX(PrévisionsBureau[],,1),0),MATCH(ÉcartsBureau[[#Headers],[Sept]],PrévisionsBureau[#Headers],0))-INDEX(DépensesRéellesBureau[],MATCH(INDEX(ÉcartsBureau[],ROW()-ROW(ÉcartsBureau[[#Headers],[Sept]]),1),INDEX(PrévisionsBureau[],,1),0),MATCH(ÉcartsBureau[[#Headers],[Sept]],DépensesRéellesBureau[#Headers],0)) -> 250.00 € | L15: =INDEX(PrévisionsBureau[],MATCH(INDEX(ÉcartsBureau[],ROW()-ROW(ÉcartsBureau[[#Headers],[Oct]]),1),INDEX(PrévisionsBureau[],,1),0),MATCH(ÉcartsBureau[[#Headers],[Oct]],PrévisionsBureau[#Headers],0))-INDEX(DépensesRéellesBureau[],MATCH(INDEX(ÉcartsBureau[],ROW()-ROW(ÉcartsBureau[[#Headers],[Oct]]),1),INDEX(PrévisionsBureau[],,1),0),MATCH(ÉcartsBureau[[#Headers],[Oct]],DépensesRéellesBureau[#Headers],0)) -> 250.00 € | M15: =INDEX(PrévisionsBureau[],MATCH(INDEX(ÉcartsBureau[],ROW()-ROW(ÉcartsBureau[[#Headers],[Nov]]),1),INDEX(PrévisionsBureau[],,1),0),MATCH(ÉcartsBureau[[#Headers],[Nov]],PrévisionsBureau[#Headers],0))-INDEX(DépensesRéellesBureau[],MATCH(INDEX(ÉcartsBureau[],ROW()-ROW(ÉcartsBureau[[#Headers],[Nov]]),1),INDEX(PrévisionsBureau[],,1),0),MATCH(ÉcartsBureau[[#Headers],[Nov]],DépensesRéellesBureau[#Headers],0)) -> 250.00 € | N15: =INDEX(PrévisionsBureau[],MATCH(INDEX(ÉcartsBureau[],ROW()-ROW(ÉcartsBureau[[#Headers],[Déc]]),1),INDEX(PrévisionsBureau[],,1),0),MATCH(ÉcartsBureau[[#Headers],[Déc]],PrévisionsBureau[#Headers],0))-INDEX(DépensesRéellesBureau[],MATCH(INDEX(ÉcartsBureau[],ROW()-ROW(ÉcartsBureau[[#Headers],[Déc]]),1),INDEX(PrévisionsBureau[],,1),0),MATCH(ÉcartsBureau[[#Headers],[Déc]],DépensesRéellesBureau[#Headers],0)) -> 250.00 € | O15: =SUM(ÉcartsBureau[[#This Row],[Jan]:[Déc]]) -> 1,566.00 €
B16: Accès à Internet | C16: =INDEX(PrévisionsBureau[],MATCH(INDEX(ÉcartsBureau[],ROW()-ROW(ÉcartsBureau[[#Headers],[Jan]]),1),INDEX(PrévisionsBureau[],,1),0),MATCH(ÉcartsBureau[[#Headers],[Jan]],PrévisionsBureau[#Headers],0))-INDEX(DépensesRéellesBureau[],MATCH(INDEX(ÉcartsBureau[],ROW()-ROW(ÉcartsBureau[[#Headers],[Jan]]),1),INDEX(PrévisionsBureau[],,1),0),MATCH(ÉcartsBureau[[#Headers],[Jan]],DépensesRéellesBureau[#Headers],0)) -> 0.00 € | D16: =INDEX(PrévisionsBureau[],MATCH(INDEX(ÉcartsBureau[],ROW()-ROW(ÉcartsBureau[[#Headers],[Fév]]),1),INDEX(PrévisionsBureau[],,1),0),MATCH(ÉcartsBureau[[#Headers],[Fév]],PrévisionsBureau[#Headers],0))-INDEX(DépensesRéellesBureau[],MATCH(INDEX(ÉcartsBureau[],ROW()-ROW(ÉcartsBureau[[#Headers],[Fév]]),1),INDEX(PrévisionsBureau[],,1),0),MATCH(ÉcartsBureau[[#Headers],[Fév]],DépensesRéellesBureau[#Headers],0)) -> 0.00 € | E16: =INDEX(PrévisionsBureau[],MATCH(INDEX(ÉcartsBureau[],ROW()-ROW(ÉcartsBureau[[#Headers],[Mar]]),1),INDEX(PrévisionsBureau[],,1),0),MATCH(ÉcartsBureau[[#Headers],[Mar]],PrévisionsBureau[#Headers],0))-INDEX(DépensesRéellesBureau[],MATCH(INDEX(ÉcartsBureau[],ROW()-ROW(ÉcartsBureau[[#Headers],[Mar]]),1),INDEX(PrévisionsBureau[],,1),0),MATCH(ÉcartsBureau[[#Headers],[Mar]],DépensesRéellesBureau[#Headers],0)) -> 0.00 € | F16: =INDEX(PrévisionsBureau[],MATCH(INDEX(ÉcartsBureau[],ROW()-ROW(ÉcartsBureau[[#Headers],[Avr]]),1),INDEX(PrévisionsBureau[],,1),0),MATCH(ÉcartsBureau[[#Headers],[Avr]],PrévisionsBureau[#Headers],0))-INDEX(DépensesRéellesBureau[],MATCH(INDEX(ÉcartsBureau[],ROW()-ROW(ÉcartsBureau[[#Headers],[Avr]]),1),INDEX(PrévisionsBureau[],,1),0),MATCH(ÉcartsBureau[[#Headers],[Avr]],DépensesRéellesBureau[#Headers],0)) -> 0.00 € | G16: =INDEX(PrévisionsBureau[],MATCH(INDEX(ÉcartsBureau[],ROW()-ROW(ÉcartsBureau[[#Headers],[Mai]]),1),INDEX(PrévisionsBureau[],,1),0),MATCH(ÉcartsBureau[[#Headers],[Mai]],PrévisionsBureau[#Headers],0))-INDEX(DépensesRéellesBureau[],MATCH(INDEX(ÉcartsBureau[],ROW()-ROW(ÉcartsBureau[[#Headers],[Mai]]),1),INDEX(PrévisionsBureau[],,1),0),MATCH(ÉcartsBureau[[#Headers],[Mai]],DépensesRéellesBureau[#Headers],0)) -> 0.00 € | H16: =INDEX(PrévisionsBureau[],MATCH(INDEX(ÉcartsBureau[],ROW()-ROW(ÉcartsBureau[[#Headers],[Juin]]),1),INDEX(PrévisionsBureau[],,1),0),MATCH(ÉcartsBureau[[#Headers],[Juin]],PrévisionsBureau[#Headers],0))-INDEX(DépensesRéellesBureau[],MATCH(INDEX(ÉcartsBureau[],ROW()-ROW(ÉcartsBureau[[#Headers],[Juin]]),1),INDEX(PrévisionsBureau[],,1),0),MATCH(ÉcartsBureau[[#Headers],[Juin]],DépensesRéellesBureau[#Headers],0)) -> 0.00 € | I16: =INDEX(PrévisionsBureau[],MATCH(INDEX(ÉcartsBureau[],ROW()-ROW(ÉcartsBureau[[#Headers],[Juil]]),1),INDEX(PrévisionsBureau[],,1),0),MATCH(ÉcartsBureau[[#Headers],[Juil]],PrévisionsBureau[#Headers],0))-INDEX(DépensesRéellesBureau[],MATCH(INDEX(ÉcartsBureau[],ROW()-ROW(ÉcartsBureau[[#Headers],[Juil]]),1),INDEX(PrévisionsBureau[],,1),0),MATCH(ÉcartsBureau[[#Headers],[Juil]],DépensesRéellesBureau[#Headers],0)) -> 180.00 € | J16: =INDEX(PrévisionsBureau[],MATCH(INDEX(ÉcartsBureau[],ROW()-ROW(ÉcartsBureau[[#Headers],[Août]]),1),INDEX(PrévisionsBureau[],,1),0),MATCH(ÉcartsBureau[[#Headers],[Août]],PrévisionsBureau[#Headers],0))-INDEX(DépensesRéellesBureau[],MATCH(INDEX(ÉcartsBureau[],ROW()-ROW(ÉcartsBureau[[#Headers],[Août]]),1),INDEX(PrévisionsBureau[],,1),0),MATCH(ÉcartsBureau[[#Headers],[Août]],DépensesRéellesBureau[#Headers],0)) -> 180.00 € | K16: =INDEX(PrévisionsBureau[],MATCH(INDEX(ÉcartsBureau[],ROW()-ROW(ÉcartsBureau[[#Headers],[Sept]]),1),INDEX(PrévisionsBureau[],,1),0),MATCH(ÉcartsBureau[[#Headers],[Sept]],PrévisionsBureau[#Headers],0))-INDEX(DépensesRéellesBureau[],MATCH(INDEX(ÉcartsBureau[],ROW()-ROW(ÉcartsBureau[[#Headers],[Sept]]),1),INDEX(PrévisionsBureau[],,1),0),MATCH(ÉcartsBureau[[#Headers],[Sept]],DépensesRéellesBureau[#Headers],0)) -> 180.00 € | L16: =INDEX(PrévisionsBureau[],MATCH(INDEX(ÉcartsBureau[],ROW()-ROW(ÉcartsBureau[[#Headers],[Oct]]),1),INDEX(PrévisionsBureau[],,1),0),MATCH(ÉcartsBureau[[#Headers],[Oct]],PrévisionsBureau[#Headers],0))-INDEX(DépensesRéellesBureau[],MATCH(INDEX(ÉcartsBureau[],ROW()-ROW(ÉcartsBureau[[#Headers],[Oct]]),1),INDEX(PrévisionsBureau[],,1),0),MATCH(ÉcartsBureau[[#Headers],[Oct]],DépensesRéellesBureau[#Headers],0)) -> 180.00 € | M16: =INDEX(PrévisionsBureau[],MATCH(INDEX(ÉcartsBureau[],ROW()-ROW(ÉcartsBureau[[#Headers],[Nov]]),1),INDEX(PrévisionsBureau[],,1),0),MATCH(ÉcartsBureau[[#Headers],[Nov]],PrévisionsBureau[#Headers],0))-INDEX(DépensesRéellesBureau[],MATCH(INDEX(ÉcartsBureau[],ROW()-ROW(ÉcartsBureau[[#Headers],[Nov]]),1),INDEX(PrévisionsBureau[],,1),0),MATCH(ÉcartsBureau[[#Headers],[Nov]],DépensesRéellesBureau[#Headers],0)) -> 180.00 € | N16: =INDEX(PrévisionsBureau[],MATCH(INDEX(ÉcartsBureau[],ROW()-ROW(ÉcartsBureau[[#Headers],[Déc]]),1),INDEX(PrévisionsBureau[],,1),0),MATCH(ÉcartsBureau[[#Headers],[Déc]],PrévisionsBureau[#Headers],0))-INDEX(DépensesRéellesBureau[],MATCH(INDEX(ÉcartsBureau[],ROW()-ROW(ÉcartsBureau[[#Headers],[Déc]]),1),INDEX(PrévisionsBureau[],,1),0),MATCH(ÉcartsBureau[[#Headers],[Déc]],DépensesRéellesBureau[#Headers],0)) -> 180.00 € | O16: =SUM(ÉcartsBureau[[#This Row],[Jan]:[Déc]]) -> 1,080.00 €
B17: Fournitures de bureau | C17: =INDEX(PrévisionsBureau[],MATCH(INDEX(ÉcartsBureau[],ROW()-ROW(ÉcartsBureau[[#Headers],[Jan]]),1),INDEX(PrévisionsBureau[],,1),0),MATCH(ÉcartsBureau[[#Headers],[Jan]],PrévisionsBureau[#Headers],0))-INDEX(DépensesRéellesBureau[],MATCH(INDEX(ÉcartsBureau[],ROW()-ROW(ÉcartsBureau[[#Headers],[Jan]]),1),INDEX(PrévisionsBureau[],,1),0),MATCH(ÉcartsBureau[[#Headers],[Jan]],DépensesRéellesBureau[#Headers],0)) -> -56.00 € | D17: =INDEX(PrévisionsBureau[],MATCH(INDEX(ÉcartsBureau[],ROW()-ROW(ÉcartsBureau[[#Headers],[Fév]]),1),INDEX(PrévisionsBureau[],,1),0),MATCH(ÉcartsBureau[[#Headers],[Fév]],PrévisionsBureau[#Headers],0))-INDEX(DépensesRéellesBureau[],MATCH(INDEX(ÉcartsBureau[],ROW()-ROW(ÉcartsBureau[[#Headers],[Fév]]),1),INDEX(PrévisionsBureau[],,1),0),MATCH(ÉcartsBureau[[#Headers],[Fév]],DépensesRéellesBureau[#Headers],0)) -> 58.00 € | E17: =INDEX(PrévisionsBureau[],MATCH(INDEX(ÉcartsBureau[],ROW()-ROW(ÉcartsBureau[[#Headers],[Mar]]),1),INDEX(PrévisionsBureau[],,1),0),MATCH(ÉcartsBureau[[#Headers],[Mar]],PrévisionsBureau[#Headers],0))-INDEX(DépensesRéellesBureau[],MATCH(INDEX(ÉcartsBureau[],ROW()-ROW(ÉcartsBureau[[#Headers],[Mar]]),1),INDEX(PrévisionsBureau[],,1),0),MATCH(ÉcartsBureau[[#Headers],[Mar]],DépensesRéellesBureau[#Headers],0)) -> 40.00 € | F17: =INDEX(PrévisionsBureau[],MATCH(INDEX(ÉcartsBureau[],ROW()-ROW(ÉcartsBureau[[#Headers],[Avr]]),1),INDEX(PrévisionsBureau[],,1),0),MATCH(ÉcartsBureau[[#Headers],[Avr]],PrévisionsBureau[#Headers],0))-INDEX(DépensesRéellesBureau[],MATCH(INDEX(ÉcartsBureau[],ROW()-ROW(ÉcartsBureau[[#Headers],[Avr]]),1),INDEX(PrévisionsBureau[],,1),0),MATCH(ÉcartsBureau[[#Headers],[Avr]],DépensesRéellesBureau[#Headers],0)) -> -21.00 € | G17: =INDEX(PrévisionsBureau[],MATCH(INDEX(ÉcartsBureau[],ROW()-ROW(ÉcartsBureau[[#Headers],[Mai]]),1),INDEX(PrévisionsBureau[],,1),0),MATCH(ÉcartsBureau[[#Headers],[Mai]],PrévisionsBureau[#Headers],0))-INDEX(DépensesRéellesBureau[],MATCH(INDEX(ÉcartsBureau[],ROW()-ROW(ÉcartsBureau[[#Headers],[Mai]]),1),INDEX(PrévisionsBureau[],,1),0),MATCH(ÉcartsBureau[[#Headers],[Mai]],DépensesRéellesBureau[#Headers],0)) -> -56.00 € | H17: =INDEX(PrévisionsBureau[],MATCH(INDEX(ÉcartsBureau[],ROW()-ROW(ÉcartsBureau[[#Headers],[Juin]]),1),INDEX(PrévisionsBureau[],,1),0),MATCH(ÉcartsBureau[[#Headers],[Juin]],PrévisionsBureau[#Headers],0))-INDEX(DépensesRéellesBureau[],MATCH(INDEX(ÉcartsBureau[],ROW()-ROW(ÉcartsBureau[[#Headers],[Juin]]),1),INDEX(PrévisionsBureau[],,1),0),MATCH(ÉcartsBureau[[#Headers],[Juin]],DépensesRéellesBureau[#Headers],0)) -> -40.00 € | I17: =INDEX(PrévisionsBureau[],MATCH(INDEX(ÉcartsBureau[],ROW()-ROW(ÉcartsBureau[[#Headers],[Juil]]),1),INDEX(PrévisionsBureau[],,1),0),MATCH(ÉcartsBureau[[#Headers],[Juil]],PrévisionsBureau[#Headers],0))-INDEX(DépensesRéellesBureau[],MATCH(INDEX(ÉcartsBureau[],ROW()-ROW(ÉcartsBureau[[#Headers],[Juil]]),1),INDEX(PrévisionsBureau[],,1),0),MATCH(ÉcartsBureau[[#Headers],[Juil]],DépensesRéellesBureau[#Headers],0)) -> 200.00 € | J17: =INDEX(PrévisionsBureau[],MATCH(INDEX(ÉcartsBureau[],ROW()-ROW(ÉcartsBureau[[#Headers],[Août]]),1),INDEX(PrévisionsBureau[],,1),0),MATCH(ÉcartsBureau[[#Headers],[Août]],PrévisionsBureau[#Headers],0))-INDEX(DépensesRéellesBureau[],MATCH(INDEX(ÉcartsBureau[],ROW()-ROW(ÉcartsBureau[[#Headers],[Août]]),1),INDEX(PrévisionsBureau[],,1),0),MATCH(ÉcartsBureau[[#Headers],[Août]],DépensesRéellesBureau[#Headers],0)) -> 200.00 € | K17: =INDEX(PrévisionsBureau[],MATCH(INDEX(ÉcartsBureau[],ROW()-ROW(ÉcartsBureau[[#Headers],[Sept]]),1),INDEX(PrévisionsBureau[],,1),0),MATCH(ÉcartsBureau[[#Headers],[Sept]],PrévisionsBureau[#Headers],0))-INDEX(DépensesRéellesBureau[],MATCH(INDEX(ÉcartsBureau[],ROW()-ROW(ÉcartsBureau[[#Headers],[Sept]]),1),INDEX(PrévisionsBureau[],,1),0),MATCH(ÉcartsBureau[[#Headers],[Sept]],DépensesRéellesBureau[#Headers],0)) -> 200.00 € | L17: =INDEX(PrévisionsBureau[],MATCH(INDEX(ÉcartsBureau[],ROW()-ROW(ÉcartsBureau[[#Headers],[Oct]]),1),INDEX(PrévisionsBureau[],,1),0),MATCH(ÉcartsBureau[[#Headers],[Oct]],PrévisionsBureau[#Headers],0))-INDEX(DépensesRéellesBureau[],MATCH(INDEX(ÉcartsBureau[],ROW()-ROW(ÉcartsBureau[[#Headers],[Oct]]),1),INDEX(PrévisionsBureau[],,1),0),MATCH(ÉcartsBureau[[#Headers],[Oct]],DépensesRéellesBureau[#Headers],0)) -> 200.00 € | M17: =INDEX(PrévisionsBureau[],MATCH(INDEX(ÉcartsBureau[],ROW()-ROW(ÉcartsBureau[[#Headers],[Nov]]),1),INDEX(PrévisionsBureau[],,1),0),MATCH(ÉcartsBureau[[#Headers],[Nov]],PrévisionsBureau[#Headers],0))-INDEX(DépensesRéellesBureau[],MATCH(INDEX(ÉcartsBureau[],ROW()-ROW(ÉcartsBureau[[#Headers],[Nov]]),1),INDEX(PrévisionsBureau[],,1),0),MATCH(ÉcartsBureau[[#Headers],[Nov]],DépensesRéellesBureau[#Headers],0)) -> 200.00 € | N17: =INDEX(PrévisionsBureau[],MATCH(INDEX(ÉcartsBureau[],ROW()-ROW(ÉcartsBureau[[#Headers],[Déc]]),1),INDEX(PrévisionsBureau[],,1),0),MATCH(ÉcartsBureau[[#Headers],[Déc]],PrévisionsBureau[#Headers],0))-INDEX(DépensesRéellesBureau[],MATCH(INDEX(ÉcartsBureau[],ROW()-ROW(ÉcartsBureau[[#Headers],[Déc]]),1),INDEX(PrévisionsBureau[],,1),0),MATCH(ÉcartsBureau[[#Headers],[Déc]],DépensesRéellesBureau[#Headers],0)) -> 200.00 € | O17: =SUM(ÉcartsBureau[[#This Row],[Jan]:[Déc]]) -> 1,125.00 €
B18: Sécurité | C18: =INDEX(PrévisionsBureau[],MATCH(INDEX(ÉcartsBureau[],ROW()-ROW(ÉcartsBureau[[#Headers],[Jan]]),1),INDEX(PrévisionsBureau[],,1),0),MATCH(ÉcartsBureau[[#Headers],[Jan]],PrévisionsBureau[#Headers],0))-INDEX(DépensesRéellesBureau[],MATCH(INDEX(ÉcartsBureau[],ROW()-ROW(ÉcartsBureau[[#Headers],[Jan]]),1),INDEX(PrévisionsBureau[],,1),0),MATCH(ÉcartsBureau[[#Headers],[Jan]],DépensesRéellesBureau[#Headers],0)) -> 0.00 € | D18: =INDEX(PrévisionsBureau[],MATCH(INDEX(ÉcartsBureau[],ROW()-ROW(ÉcartsBureau[[#Headers],[Fév]]),1),INDEX(PrévisionsBureau[],,1),0),MATCH(ÉcartsBureau[[#Headers],[Fév]],PrévisionsBureau[#Headers],0))-INDEX(DépensesRéellesBureau[],MATCH(INDEX(ÉcartsBureau[],ROW()-ROW(ÉcartsBureau[[#Headers],[Fév]]),1),INDEX(PrévisionsBureau[],,1),0),MATCH(ÉcartsBureau[[#Headers],[Fév]],DépensesRéellesBureau[#Headers],0)) -> 0.00 € | E18: =INDEX(PrévisionsBureau[],MATCH(INDEX(ÉcartsBureau[],ROW()-ROW(ÉcartsBureau[[#Headers],[Mar]]),1),INDEX(PrévisionsBureau[],,1),0),MATCH(ÉcartsBureau[[#Headers],[Mar]],PrévisionsBureau[#Headers],0))-INDEX(DépensesRéellesBureau[],MATCH(INDEX(ÉcartsBureau[],ROW()-ROW(ÉcartsBureau[[#Headers],[Mar]]),1),INDEX(PrévisionsBureau[],,1),0),MATCH(ÉcartsBureau[[#Headers],[Mar]],DépensesRéellesBureau[#Headers],0)) -> 0.00 € | F18: =INDEX(PrévisionsBureau[],MATCH(INDEX(ÉcartsBureau[],ROW()-ROW(ÉcartsBureau[[#Headers],[Avr]]),1),INDEX(PrévisionsBureau[],,1),0),MATCH(ÉcartsBureau[[#Headers],[Avr]],PrévisionsBureau[#Headers],0))-INDEX(DépensesRéellesBureau[],MATCH(INDEX(ÉcartsBureau[],ROW()-ROW(ÉcartsBureau[[#Headers],[Avr]]),1),INDEX(PrévisionsBureau[],,1),0),MATCH(ÉcartsBureau[[#Headers],[Avr]],DépensesRéellesBureau[#Headers],0)) -> 0.00 € | G18: =INDEX(PrévisionsBureau[],MATCH(INDEX(ÉcartsBureau[],ROW()-ROW(ÉcartsBureau[[#Headers],[Mai]]),1),INDEX(PrévisionsBureau[],,1),0),MATCH(ÉcartsBureau[[#Headers],[Mai]],PrévisionsBureau[#Headers],0))-INDEX(DépensesRéellesBureau[],MATCH(INDEX(ÉcartsBureau[],ROW()-ROW(ÉcartsBureau[[#Headers],[Mai]]),1),INDEX(PrévisionsBureau[],,1),0),MATCH(ÉcartsBureau[[#Headers],[Mai]],DépensesRéellesBureau[#Headers],0)) -> 0.00 € | H18: =INDEX(PrévisionsBureau[],MATCH(INDEX(ÉcartsBureau[],ROW()-ROW(ÉcartsBureau[[#Headers],[Juin]]),1),INDEX(PrévisionsBureau[],,1),0),MATCH(ÉcartsBureau[[#Headers],[Juin]],PrévisionsBureau[#Headers],0))-INDEX(DépensesRéellesBureau[],MATCH(INDEX(ÉcartsBureau[],ROW()-ROW(ÉcartsBureau[[#Headers],[Juin]]),1),INDEX(PrévisionsBureau[],,1),0),MATCH(ÉcartsBureau[[#Headers],[Juin]],DépensesRéellesBureau[#Headers],0)) -> 0.00 € | I18: =INDEX(PrévisionsBureau[],MATCH(INDEX(ÉcartsBureau[],ROW()-ROW(ÉcartsBureau[[#Headers],[Juil]]),1),INDEX(PrévisionsBureau[],,1),0),MATCH(ÉcartsBureau[[#Headers],[Juil]],PrévisionsBureau[#Headers],0))-INDEX(DépensesRéellesBureau[],MATCH(INDEX(ÉcartsBureau[],ROW()-ROW(ÉcartsBureau[[#Headers],[Juil]]),1),INDEX(PrévisionsBureau[],,1),0),MATCH(ÉcartsBureau[[#Headers],[Juil]],DépensesRéellesBureau[#Headers],0)) -> 600.00 € | J18: =INDEX(PrévisionsBureau[],MATCH(INDEX(ÉcartsBureau[],ROW()-ROW(ÉcartsBureau[[#Headers],[Août]]),1),INDEX(PrévisionsBureau[],,1),0),MATCH(ÉcartsBureau[[#Headers],[Août]],PrévisionsBureau[#Headers],0))-INDEX(DépensesRéellesBureau[],MATCH(INDEX(ÉcartsBureau[],ROW()-ROW(ÉcartsBureau[[#Headers],[Août]]),1),INDEX(PrévisionsBureau[],,1),0),MATCH(ÉcartsBureau[[#Headers],[Août]],DépensesRéellesBureau[#Headers],0)) -> 600.00 € | K18: =INDEX(PrévisionsBureau[],MATCH(INDEX(ÉcartsBureau[],ROW()-ROW(ÉcartsBureau[[#Headers],[Sept]]),1),INDEX(PrévisionsBureau[],,1),0),MATCH(ÉcartsBureau[[#Headers],[Sept]],PrévisionsBureau[#Headers],0))-INDEX(DépensesRéellesBureau[],MATCH(INDEX(ÉcartsBureau[],ROW()-ROW(ÉcartsBureau[[#Headers],[Sept]]),1),INDEX(PrévisionsBureau[],,1),0),MATCH(ÉcartsBureau[[#Headers],[Sept]],DépensesRéellesBureau[#Headers],0)) -> 600.00 € | L18: =INDEX(PrévisionsBureau[],MATCH(INDEX(ÉcartsBureau[],ROW()-ROW(ÉcartsBureau[[#Headers],[Oct]]),1),INDEX(PrévisionsBureau[],,1),0),MATCH(ÉcartsBureau[[#Headers],[Oct]],PrévisionsBureau[#Headers],0))-INDEX(DépensesRéellesBureau[],MATCH(INDEX(ÉcartsBureau[],ROW()-ROW(ÉcartsBureau[[#Headers],[Oct]]),1),INDEX(PrévisionsBureau[],,1),0),MATCH(ÉcartsBureau[[#Headers],[Oct]],DépensesRéellesBureau[#Headers],0)) -> 600.00 € | M18: =INDEX(PrévisionsBureau[],MATCH(INDEX(ÉcartsBureau[],ROW()-ROW(ÉcartsBureau[[#Headers],[Nov]]),1),INDEX(PrévisionsBureau[],,1),0),MATCH(ÉcartsBureau[[#Headers],[Nov]],PrévisionsBureau[#Headers],0))-INDEX(DépensesRéellesBureau[],MATCH(INDEX(ÉcartsBureau[],ROW()-ROW(ÉcartsBureau[[#Headers],[Nov]]),1),INDEX(PrévisionsBureau[],,1),0),MATCH(ÉcartsBureau[[#Headers],[Nov]],DépensesRéellesBureau[#Headers],0)) -> 600.00 € | N18: =INDEX(PrévisionsBureau[],MATCH(INDEX(ÉcartsBureau[],ROW()-ROW(ÉcartsBureau[[#Headers],[Déc]]),1),INDEX(PrévisionsBureau[],,1),0),MATCH(ÉcartsBureau[[#Headers],[Déc]],PrévisionsBureau[#Headers],0))-INDEX(DépensesRéellesBureau[],MATCH(INDEX(ÉcartsBureau[],ROW()-ROW(ÉcartsBureau[[#Headers],[Déc]]),1),INDEX(PrévisionsBureau[],,1),0),MATCH(ÉcartsBureau[[#Headers],[Déc]],DépensesRéellesBureau[#Headers],0)) -> 600.00 € | O18: =SUM(ÉcartsBureau[[#This Row],[Jan]:[Déc]]) -> 3,600.00 €
B19: Sous-total | C19: =SUBTOTAL(109,ÉcartsBureau[Jan]) -> -17.00 € | D19: =SUBTOTAL(109,ÉcartsBureau[Fév]) -> 72.00 € | E19: =SUBTOTAL(109,ÉcartsBureau[Mar]) -> 78.00 € | F19: =SUBTOTAL(109,ÉcartsBureau[Avr]) -> -141.00 € | G19: =SUBTOTAL(109,ÉcartsBureau[Mai]) -> -38.00 € | H19: =SUBTOTAL(109,ÉcartsBureau[Juin]) -> 16.00 € | I19: =SUBTOTAL(109,ÉcartsBureau[Juil]) -> 11,470.00 € | J19: =SUBTOTAL(109,ÉcartsBureau[Août]) -> 11,470.00 € | K19: =SUBTOTAL(109,ÉcartsBureau[Sept]) -> 11,470.00 € | L19: =SUBTOTAL(109,ÉcartsBureau[Oct]) -> 11,470.00 € | M19: =SUBTOTAL(109,ÉcartsBureau[Nov]) -> 11,770.00 € | N19: =SUBTOTAL(109,ÉcartsBureau[Déc]) -> 11,770.00 € | O19: =SUBTOTAL(109,ÉcartsBureau[ANNÉE]) -> 69,390.00 €
A21: L’écart relatif aux coûts marketing est automatiquement calculé dans la table Écarts marketing en commençant par la cellule de droite. L’instruction suivante figure dans la cellule A30. | B21: Coûts marketing | C21: Jan | D21: Fév | E21: Mar | F21: Avr | G21: Mai | H21: Juin | I21: Juil | J21: Août | K21: Sept | L21: Oct | M21: Nov | N21: Déc | O21: ANNÉE
B22: Hébergement du site web | C22: =INDEX(PrévisionsMarketing[],MATCH(INDEX(ÉcartsMarketing[],ROW()-ROW(ÉcartsMarketing[[#Headers],[Jan]]),1),INDEX(PrévisionsMarketing[],,1),0),MATCH(ÉcartsMarketing[[#Headers],[Jan]],PrévisionsMarketing[#Headers],0))-INDEX(DépensesRéellesMarketing[],MATCH(INDEX(ÉcartsMarketing[],ROW()-ROW(ÉcartsMarketing[[#Headers],[Jan]]),1),INDEX(PrévisionsMarketing[],,1),0),MATCH(ÉcartsMarketing[[#Headers],[Jan]],DépensesRéellesMarketing[#Headers],0)) -> 0.00 € | D22: =INDEX(PrévisionsMarketing[],MATCH(INDEX(ÉcartsMarketing[],ROW()-ROW(ÉcartsMarketing[[#Headers],[Fév]]),1),INDEX(PrévisionsMarketing[],,1),0),MATCH(ÉcartsMarketing[[#Headers],[Fév]],PrévisionsMarketing[#Headers],0))-INDEX(DépensesRéellesMarketing[],MATCH(INDEX(ÉcartsMarketing[],ROW()-ROW(ÉcartsMarketing[[#Headers],[Fév]]),1),INDEX(PrévisionsMarketing[],,1),0),MATCH(ÉcartsMarketing[[#Headers],[Fév]],DépensesRéellesMarketing[#Headers],0)) -> 0.00 € | E22: =INDEX(PrévisionsMarketing[],MATCH(INDEX(ÉcartsMarketing[],ROW()-ROW(ÉcartsMarketing[[#Headers],[Mar]]),1),INDEX(PrévisionsMarketing[],,1),0),MATCH(ÉcartsMarketing[[#Headers],[Mar]],PrévisionsMarketing[#Headers],0))-INDEX(DépensesRéellesMarketing[],MATCH(INDEX(ÉcartsMarketing[],ROW()-ROW(ÉcartsMarketing[[#Headers],[Mar]]),1),INDEX(PrévisionsMarketing[],,1),0),MATCH(ÉcartsMarketing[[#Headers],[Mar]],DépensesRéellesMarketing[#Headers],0)) -> 0.00 € | F22: =INDEX(PrévisionsMarketing[],MATCH(INDEX(ÉcartsMarketing[],ROW()-ROW(ÉcartsMarketing[[#Headers],[Avr]]),1),INDEX(PrévisionsMarketing[],,1),0),MATCH(ÉcartsMarketing[[#Headers],[Avr]],PrévisionsMarketing[#Headers],0))-INDEX(DépensesRéellesMarketing[],MATCH(INDEX(ÉcartsMarketing[],ROW()-ROW(ÉcartsMarketing[[#Headers],[Avr]]),1),INDEX(PrévisionsMarketing[],,1),0),MATCH(ÉcartsMarketing[[#Headers],[Avr]],DépensesRéellesMarketing[#Headers],0)) -> 0.00 € | G22: =INDEX(PrévisionsMarketing[],MATCH(INDEX(ÉcartsMarketing[],ROW()-ROW(ÉcartsMarketing[[#Headers],[Mai]]),1),INDEX(PrévisionsMarketing[],,1),0),MATCH(ÉcartsMarketing[[#Headers],[Mai]],PrévisionsMarketing[#Headers],0))-INDEX(DépensesRéellesMarketing[],MATCH(INDEX(ÉcartsMarketing[],ROW()-ROW(ÉcartsMarketing[[#Headers],[Mai]]),1),INDEX(PrévisionsMarketing[],,1),0),MATCH(ÉcartsMarketing[[#Headers],[Mai]],DépensesRéellesMarketing[#Headers],0)) -> 0.00 € | H22: =INDEX(PrévisionsMarketing[],MATCH(INDEX(ÉcartsMarketing[],ROW()-ROW(ÉcartsMarketing[[#Headers],[Juin]]),1),INDEX(PrévisionsMarketing[],,1),0),MATCH(ÉcartsMarketing[[#Headers],[Juin]],PrévisionsMarketing[#Headers],0))-INDEX(DépensesRéellesMarketing[],MATCH(INDEX(ÉcartsMarketing[],ROW()-ROW(ÉcartsMarketing[[#Headers],[Juin]]),1),INDEX(PrévisionsMarketing[],,1),0),MATCH(ÉcartsMarketing[[#Headers],[Juin]],DépensesRéellesMarketing[#Headers],0)) -> 0.00 € | I22: =INDEX(PrévisionsMarketing[],MATCH(INDEX(ÉcartsMarketing[],ROW()-ROW(ÉcartsMarketing[[#Headers],[Juil]]),1),INDEX(PrévisionsMarketing[],,1),0),MATCH(ÉcartsMarketing[[#Headers],[Juil]],PrévisionsMarketing[#Headers],0))-INDEX(DépensesRéellesMarketing[],MATCH(INDEX(ÉcartsMarketing[],ROW()-ROW(ÉcartsMarketing[[#Headers],[Juil]]),1),INDEX(PrévisionsMarketing[],,1),0),MATCH(ÉcartsMarketing[[#Headers],[Juil]],DépensesRéellesMarketing[#Headers],0)) -> 500.00 € | J22: =INDEX(PrévisionsMarketing[],MATCH(INDEX(ÉcartsMarketing[],ROW()-ROW(ÉcartsMarketing[[#Headers],[Août]]),1),INDEX(PrévisionsMarketing[],,1),0),MATCH(ÉcartsMarketing[[#Headers],[Août]],PrévisionsMarketing[#Headers],0))-INDEX(DépensesRéellesMarketing[],MATCH(INDEX(ÉcartsMarketing[],ROW()-ROW(ÉcartsMarketing[[#Headers],[Août]]),1),INDEX(PrévisionsMarketing[],,1),0),MATCH(ÉcartsMarketing[[#Headers],[Août]],DépensesRéellesMarketing[#Headers],0)) -> 500.00 € | K22: =INDEX(PrévisionsMarketing[],MATCH(INDEX(ÉcartsMarketing[],ROW()-ROW(ÉcartsMarketing[[#Headers],[Sept]]),1),INDEX(PrévisionsMarketing[],,1),0),MATCH(ÉcartsMarketing[[#Headers],[Sept]],PrévisionsMarketing[#Headers],0))-INDEX(DépensesRéellesMarketing[],MATCH(INDEX(ÉcartsMarketing[],ROW()-ROW(ÉcartsMarketing[[#Headers],[Sept]]),1),INDEX(PrévisionsMarketing[],,1),0),MATCH(ÉcartsMarketing[[#Headers],[Sept]],DépensesRéellesMarketing[#Headers],0)) -> 500.00 € | L22: =INDEX(PrévisionsMarketing[],MATCH(INDEX(ÉcartsMarketing[],ROW()-ROW(ÉcartsMarketing[[#Headers],[Oct]]),1),INDEX(PrévisionsMarketing[],,1),0),MATCH(ÉcartsMarketing[[#Headers],[Oct]],PrévisionsMarketing[#Headers],0))-INDEX(DépensesRéellesMarketing[],MATCH(INDEX(ÉcartsMarketing[],ROW()-ROW(ÉcartsMarketing[[#Headers],[Oct]]),1),INDEX(PrévisionsMarketing[],,1),0),MATCH(ÉcartsMarketing[[#Headers],[Oct]],DépensesRéellesMarketing[#Headers],0)) -> 500.00 € | M22: =INDEX(PrévisionsMarketing[],MATCH(INDEX(ÉcartsMarketing[],ROW()-ROW(ÉcartsMarketing[[#Headers],[Nov]]),1),INDEX(PrévisionsMarketing[],,1),0),MATCH(ÉcartsMarketing[[#Headers],[Nov]],PrévisionsMarketing[#Headers],0))-INDEX(DépensesRéellesMarketing[],MATCH(INDEX(ÉcartsMarketing[],ROW()-ROW(ÉcartsMarketing[[#Headers],[Nov]]),1),INDEX(PrévisionsMarketing[],,1),0),MATCH(ÉcartsMarketing[[#Headers],[Nov]],DépensesRéellesMarketing[#Headers],0)) -> 500.00 € | N22: =INDEX(PrévisionsMarketing[],MATCH(INDEX(ÉcartsMarketing[],ROW()-ROW(ÉcartsMarketing[[#Headers],[Déc]]),1),INDEX(PrévisionsMarketing[],,1),0),MATCH(ÉcartsMarketing[[#Headers],[Déc]],PrévisionsMarketing[#Headers],0))-INDEX(DépensesRéellesMarketing[],MATCH(INDEX(ÉcartsMarketing[],ROW()-ROW(ÉcartsMarketing[[#Headers],[Déc]]),1),INDEX(PrévisionsMarketing[],,1),0),MATCH(ÉcartsMarketing[[#Headers],[Déc]],DépensesRéellesMarketing[#Headers],0)) -> 500.00 € | O22: =SUM(ÉcartsMarketing[[#This Row],[Jan]:[Déc]]) -> 3,000.00 €
B23: Mises à jour du site web | C23: =INDEX(PrévisionsMarketing[],MATCH(INDEX(ÉcartsMarketing[],ROW()-ROW(ÉcartsMarketing[[#Headers],[Jan]]),1),INDEX(PrévisionsMarketing[],,1),0),MATCH(ÉcartsMarketing[[#Headers],[Jan]],PrévisionsMarketing[#Headers],0))-INDEX(DépensesRéellesMarketing[],MATCH(INDEX(ÉcartsMarketing[],ROW()-ROW(ÉcartsMarketing[[#Headers],[Jan]]),1),INDEX(PrévisionsMarketing[],,1),0),MATCH(ÉcartsMarketing[[#Headers],[Jan]],DépensesRéellesMarketing[#Headers],0)) -> 0.00 € | D23: =INDEX(PrévisionsMarketing[],MATCH(INDEX(ÉcartsMarketing[],ROW()-ROW(ÉcartsMarketing[[#Headers],[Fév]]),1),INDEX(PrévisionsMarketing[],,1),0),MATCH(ÉcartsMarketing[[#Headers],[Fév]],PrévisionsMarketing[#Headers],0))-INDEX(DépensesRéellesMarketing[],MATCH(INDEX(ÉcartsMarketing[],ROW()-ROW(ÉcartsMarketing[[#Headers],[Fév]]),1),INDEX(PrévisionsMarketing[],,1),0),MATCH(ÉcartsMarketing[[#Headers],[Fév]],DépensesRéellesMarketing[#Headers],0)) -> 0.00 € | E23: =INDEX(PrévisionsMarketing[],MATCH(INDEX(ÉcartsMarketing[],ROW()-ROW(ÉcartsMarketing[[#Headers],[Mar]]),1),INDEX(PrévisionsMarketing[],,1),0),MATCH(ÉcartsMarketing[[#Headers],[Mar]],PrévisionsMarketing[#Headers],0))-INDEX(DépensesRéellesMarketing[],MATCH(INDEX(ÉcartsMarketing[],ROW()-ROW(ÉcartsMarketing[[#Headers],[Mar]]),1),INDEX(PrévisionsMarketing[],,1),0),MATCH(ÉcartsMarketing[[#Headers],[Mar]],DépensesRéellesMarketing[#Headers],0)) -> 0.00 € | F23: =INDEX(PrévisionsMarketing[],MATCH(INDEX(ÉcartsMarketing[],ROW()-ROW(ÉcartsMarketing[[#Headers],[Avr]]),1),INDEX(PrévisionsMarketing[],,1),0),MATCH(ÉcartsMarketing[[#Headers],[Avr]],PrévisionsMarketing[#Headers],0))-INDEX(DépensesRéellesMarketing[],MATCH(INDEX(ÉcartsMarketing[],ROW()-ROW(ÉcartsMarketing[[#Headers],[Avr]]),1),INDEX(PrévisionsMarketing[],,1),0),MATCH(ÉcartsMarketing[[#Headers],[Avr]],DépensesRéellesMarketing[#Headers],0)) -> 0.00 € | G23: =INDEX(PrévisionsMarketing[],MATCH(INDEX(ÉcartsMarketing[],ROW()-ROW(ÉcartsMarketing[[#Headers],[Mai]]),1),INDEX(PrévisionsMarketing[],,1),0),MATCH(ÉcartsMarketing[[#Headers],[Mai]],PrévisionsMarketing[#Headers],0))-INDEX(DépensesRéellesMarketing[],MATCH(INDEX(ÉcartsMarketing[],ROW()-ROW(ÉcartsMarketing[[#Headers],[Mai]]),1),INDEX(PrévisionsMarketing[],,1),0),MATCH(ÉcartsMarketing[[#Headers],[Mai]],DépensesRéellesMarketing[#Headers],0)) -> 0.00 € | H23: =INDEX(PrévisionsMarketing[],MATCH(INDEX(ÉcartsMarketing[],ROW()-ROW(ÉcartsMarketing[[#Headers],[Juin]]),1),INDEX(PrévisionsMarketing[],,1),0),MATCH(ÉcartsMarketing[[#Headers],[Juin]],PrévisionsMarketing[#Headers],0))-INDEX(DépensesRéellesMarketing[],MATCH(INDEX(ÉcartsMarketing[],ROW()-ROW(ÉcartsMarketing[[#Headers],[Juin]]),1),INDEX(PrévisionsMarketing[],,1),0),MATCH(ÉcartsMarketing[[#Headers],[Juin]],DépensesRéellesMarketing[#Headers],0)) -> -500.00 € | I23: =INDEX(PrévisionsMarketing[],MATCH(INDEX(ÉcartsMarketing[],ROW()-ROW(ÉcartsMarketing[[#Headers],[Juil]]),1),INDEX(PrévisionsMarketing[],,1),0),MATCH(ÉcartsMarketing[[#Headers],[Juil]],PrévisionsMarketing[#Headers],0))-INDEX(DépensesRéellesMarketing[],MATCH(INDEX(ÉcartsMarketing[],ROW()-ROW(ÉcartsMarketing[[#Headers],[Juil]]),1),INDEX(PrévisionsMarketing[],,1),0),MATCH(ÉcartsMarketing[[#Headers],[Juil]],DépensesRéellesMarketing[#Headers],0)) -> 200.00 € | J23: =INDEX(PrévisionsMarketing[],MATCH(INDEX(ÉcartsMarketing[],ROW()-ROW(ÉcartsMarketing[[#Headers],[Août]]),1),INDEX(PrévisionsMarketing[],,1),0),MATCH(ÉcartsMarketing[[#Headers],[Août]],PrévisionsMarketing[#Headers],0))-INDEX(DépensesRéellesMarketing[],MATCH(INDEX(ÉcartsMarketing[],ROW()-ROW(ÉcartsMarketing[[#Headers],[Août]]),1),INDEX(PrévisionsMarketing[],,1),0),MATCH(ÉcartsMarketing[[#Headers],[Août]],DépensesRéellesMarketing[#Headers],0)) -> 200.00 € | K23: =INDEX(PrévisionsMarketing[],MATCH(INDEX(ÉcartsMarketing[],ROW()-ROW(ÉcartsMarketing[[#Headers],[Sept]]),1),INDEX(PrévisionsMarketing[],,1),0),MATCH(ÉcartsMarketing[[#Headers],[Sept]],PrévisionsMarketing[#Headers],0))-INDEX(DépensesRéellesMarketing[],MATCH(INDEX(ÉcartsMarketing[],ROW()-ROW(ÉcartsMarketing[[#Headers],[Sept]]),1),INDEX(PrévisionsMarketing[],,1),0),MATCH(ÉcartsMarketing[[#Headers],[Sept]],DépensesRéellesMarketing[#Headers],0)) -> 200.00 € | L23: =INDEX(PrévisionsMarketing[],MATCH(INDEX(ÉcartsMarketing[],ROW()-ROW(ÉcartsMarketing[[#Headers],[Oct]]),1),INDEX(PrévisionsMarketing[],,1),0),MATCH(ÉcartsMarketing[[#Headers],[Oct]],PrévisionsMarketing[#Headers],0))-INDEX(DépensesRéellesMarketing[],MATCH(INDEX(ÉcartsMarketing[],ROW()-ROW(ÉcartsMarketing[[#Headers],[Oct]]),1),INDEX(PrévisionsMarketing[],,1),0),MATCH(ÉcartsMarketing[[#Headers],[Oct]],DépensesRéellesMarketing[#Headers],0)) -> 200.00 € | M23: =INDEX(PrévisionsMarketing[],MATCH(INDEX(ÉcartsMarketing[],ROW()-ROW(ÉcartsMarketing[[#Headers],[Nov]]),1),INDEX(PrévisionsMarketing[],,1),0),MATCH(ÉcartsMarketing[[#Headers],[Nov]],PrévisionsMarketing[#Headers],0))-INDEX(DépensesRéellesMarketing[],MATCH(INDEX(ÉcartsMarketing[],ROW()-ROW(ÉcartsMarketing[[#Headers],[Nov]]),1),INDEX(PrévisionsMarketing[],,1),0),MATCH(ÉcartsMarketing[[#Headers],[Nov]],DépensesRéellesMarketing[#Headers],0)) -> 200.00 € | N23: =INDEX(PrévisionsMarketing[],MATCH(INDEX(ÉcartsMarketing[],ROW()-ROW(ÉcartsMarketing[[#Headers],[Déc]]),1),INDEX(PrévisionsMarketing[],,1),0),MATCH(ÉcartsMarketing[[#Headers],[Déc]],PrévisionsMarketing[#Headers],0))-INDEX(DépensesRéellesMarketing[],MATCH(INDEX(ÉcartsMarketing[],ROW()-ROW(ÉcartsMarketing[[#Headers],[Déc]]),1),INDEX(PrévisionsMarketing[],,1),0),MATCH(ÉcartsMarketing[[#Headers],[Déc]],DépensesRéellesMarketing[#Headers],0)) -> 1,000.00 € | O23: =SUM(ÉcartsMarketing[[#This Row],[Jan]:[Déc]]) -> 1,500.00 €
B24: Préparation contrat de garantie | C24: =INDEX(PrévisionsMarketing[],MATCH(INDEX(ÉcartsMarketing[],ROW()-ROW(ÉcartsMarketing[[#Headers],[Jan]]),1),INDEX(PrévisionsMarketing[],,1),0),MATCH(ÉcartsMarketing[[#Headers],[Jan]],PrévisionsMarketing[#Headers],0))-INDEX(DépensesRéellesMarketing[],MATCH(INDEX(ÉcartsMarketing[],ROW()-ROW(ÉcartsMarketing[[#Headers],[Jan]]),1),INDEX(PrévisionsMarketing[],,1),0),MATCH(ÉcartsMarketing[[#Headers],[Jan]],DépensesRéellesMarketing[#Headers],0)) -> 200.00 € | D24: =INDEX(PrévisionsMarketing[],MATCH(INDEX(ÉcartsMarketing[],ROW()-ROW(ÉcartsMarketing[[#Headers],[Fév]]),1),INDEX(PrévisionsMarketing[],,1),0),MATCH(ÉcartsMarketing[[#Headers],[Fév]],PrévisionsMarketing[#Headers],0))-INDEX(DépensesRéellesMarketing[],MATCH(INDEX(ÉcartsMarketing[],ROW()-ROW(ÉcartsMarketing[[#Headers],[Fév]]),1),INDEX(PrévisionsMarketing[],,1),0),MATCH(ÉcartsMarketing[[#Headers],[Fév]],DépensesRéellesMarketing[#Headers],0)) -> 0.00 € | E24: =INDEX(PrévisionsMarketing[],MATCH(INDEX(ÉcartsMarketing[],ROW()-ROW(ÉcartsMarketing[[#Headers],[Mar]]),1),INDEX(PrévisionsMarketing[],,1),0),MATCH(ÉcartsMarketing[[#Headers],[Mar]],PrévisionsMarketing[#Headers],0))-INDEX(DépensesRéellesMarketing[],MATCH(INDEX(ÉcartsMarketing[],ROW()-ROW(ÉcartsMarketing[[#Headers],[Mar]]),1),INDEX(PrévisionsMarketing[],,1),0),MATCH(ÉcartsMarketing[[#Headers],[Mar]],DépensesRéellesMarketing[#Headers],0)) -> 0.00 € | F24: =INDEX(PrévisionsMarketing[],MATCH(INDEX(ÉcartsMarketing[],ROW()-ROW(ÉcartsMarketing[[#Headers],[Avr]]),1),INDEX(PrévisionsMarketing[],,1),0),MATCH(ÉcartsMarketing[[#Headers],[Avr]],PrévisionsMarketing[#Headers],0))-INDEX(DépensesRéellesMarketing[],MATCH(INDEX(ÉcartsMarketing[],ROW()-ROW(ÉcartsMarketing[[#Headers],[Avr]]),1),INDEX(PrévisionsMarketing[],,1),0),MATCH(ÉcartsMarketing[[#Headers],[Avr]],DépensesRéellesMarketing[#Headers],0)) -> -500.00 € | G24: =INDEX(PrévisionsMarketing[],MATCH(INDEX(ÉcartsMarketing[],ROW()-ROW(ÉcartsMarketing[[#Headers],[Mai]]),1),INDEX(PrévisionsMarketing[],,1),0),MATCH(ÉcartsMarketing[[#Headers],[Mai]],PrévisionsMarketing[#Headers],0))-INDEX(DépensesRéellesMarketing[],MATCH(INDEX(ÉcartsMarketing[],ROW()-ROW(ÉcartsMarketing[[#Headers],[Mai]]),1),INDEX(PrévisionsMarketing[],,1),0),MATCH(ÉcartsMarketing[[#Headers],[Mai]],DépensesRéellesMarketing[#Headers],0)) -> 0.00 € | H24: =INDEX(PrévisionsMarketing[],MATCH(INDEX(ÉcartsMarketing[],ROW()-ROW(ÉcartsMarketing[[#Headers],[Juin]]),1),INDEX(PrévisionsMarketing[],,1),0),MATCH(ÉcartsMarketing[[#Headers],[Juin]],PrévisionsMarketing[#Headers],0))-INDEX(DépensesRéellesMarketing[],MATCH(INDEX(ÉcartsMarketing[],ROW()-ROW(ÉcartsMarketing[[#Headers],[Juin]]),1),INDEX(PrévisionsMarketing[],,1),0),MATCH(ÉcartsMarketing[[#Headers],[Juin]],DépensesRéellesMarketing[#Headers],0)) -> 0.00 € | I24: =INDEX(PrévisionsMarketing[],MATCH(INDEX(ÉcartsMarketing[],ROW()-ROW(ÉcartsMarketing[[#Headers],[Juil]]),1),INDEX(PrévisionsMarketing[],,1),0),MATCH(ÉcartsMarketing[[#Headers],[Juil]],PrévisionsMarketing[#Headers],0))-INDEX(DépensesRéellesMarketing[],MATCH(INDEX(ÉcartsMarketing[],ROW()-ROW(ÉcartsMarketing[[#Headers],[Juil]]),1),INDEX(PrévisionsMarketing[],,1),0),MATCH(ÉcartsMarketing[[#Headers],[Juil]],DépensesRéellesMarketing[#Headers],0)) -> 5,000.00 € | J24: =INDEX(PrévisionsMarketing[],MATCH(INDEX(ÉcartsMarketing[],ROW()-ROW(ÉcartsMarketing[[#Headers],[Août]]),1),INDEX(PrévisionsMarketing[],,1),0),MATCH(ÉcartsMarketing[[#Headers],[Août]],PrévisionsMarketing[#Headers],0))-INDEX(DépensesRéellesMarketing[],MATCH(INDEX(ÉcartsMarketing[],ROW()-ROW(ÉcartsMarketing[[#Headers],[Août]]),1),INDEX(PrévisionsMarketing[],,1),0),MATCH(ÉcartsMarketing[[#Headers],[Août]],DépensesRéellesMarketing[#Headers],0)) -> 0.00 € | K24: =INDEX(PrévisionsMarketing[],MATCH(INDEX(ÉcartsMarketing[],ROW()-ROW(ÉcartsMarketing[[#Headers],[Sept]]),1),INDEX(PrévisionsMarketing[],,1),0),MATCH(ÉcartsMarketing[[#Headers],[Sept]],PrévisionsMarketing[#Headers],0))-INDEX(DépensesRéellesMarketing[],MATCH(INDEX(ÉcartsMarketing[],ROW()-ROW(ÉcartsMarketing[[#Headers],[Sept]]),1),INDEX(PrévisionsMarketing[],,1),0),MATCH(ÉcartsMarketing[[#Headers],[Sept]],DépensesRéellesMarketing[#Headers],0)) -> 0.00 € | L24: =INDEX(PrévisionsMarketing[],MATCH(INDEX(ÉcartsMarketing[],ROW()-ROW(ÉcartsMarketing[[#Headers],[Oct]]),1),INDEX(PrévisionsMarketing[],,1),0),MATCH(ÉcartsMarketing[[#Headers],[Oct]],PrévisionsMarketing[#Headers],0))-INDEX(DépensesRéellesMarketing[],MATCH(INDEX(ÉcartsMarketing[],ROW()-ROW(ÉcartsMarketing[[#Headers],[Oct]]),1),INDEX(PrévisionsMarketing[],,1),0),MATCH(ÉcartsMarketing[[#Headers],[Oct]],DépensesRéellesMarketing[#Headers],0)) -> 5,000.00 € | M24: =INDEX(PrévisionsMarketing[],MATCH(INDEX(ÉcartsMarketing[],ROW()-ROW(ÉcartsMarketing[[#Headers],[Nov]]),1),INDEX(PrévisionsMarketing[],,1),0),MATCH(ÉcartsMarketing[[#Headers],[Nov]],PrévisionsMarketing[#Headers],0))-INDEX(DépensesRéellesMarketing[],MATCH(INDEX(ÉcartsMarketing[],ROW()-ROW(ÉcartsMarketing[[#Headers],[Nov]]),1),INDEX(PrévisionsMarketing[],,1),0),MATCH(ÉcartsMarketing[[#Headers],[Nov]],DépensesRéellesMarketing[#Headers],0)) -> 0.00 € | N24: =INDEX(PrévisionsMarketing[],MATCH(INDEX(ÉcartsMarketing[],ROW()-ROW(ÉcartsMarketing[[#Headers],[Déc]]),1),INDEX(PrévisionsMarketing[],,1),0),MATCH(ÉcartsMarketing[[#Headers],[Déc]],PrévisionsMarketing[#Headers],0))-INDEX(DépensesRéellesMarketing[],MATCH(INDEX(ÉcartsMarketing[],ROW()-ROW(ÉcartsMarketing[[#Headers],[Déc]]),1),INDEX(PrévisionsMarketing[],,1),0),MATCH(ÉcartsMarketing[[#Headers],[Déc]],DépensesRéellesMarketing[#Headers],0)) -> 0.00 € | O24: =SUM(ÉcartsMarketing[[#This Row],[Jan]:[Déc]]) -> 9,700.00 €
B25: Impression contrat de garantie | C25: =INDEX(PrévisionsMarketing[],MATCH(INDEX(ÉcartsMarketing[],ROW()-ROW(ÉcartsMarketing[[#Headers],[Jan]]),1),INDEX(PrévisionsMarketing[],,1),0),MATCH(ÉcartsMarketing[[#Headers],[Jan]],PrévisionsMarketing[#Headers],0))-INDEX(DépensesRéellesMarketing[],MATCH(INDEX(ÉcartsMarketing[],ROW()-ROW(ÉcartsMarketing[[#Headers],[Jan]]),1),INDEX(PrévisionsMarketing[],,1),0),MATCH(ÉcartsMarketing[[#Headers],[Jan]],DépensesRéellesMarketing[#Headers],0)) -> 100.00 € | D25: =INDEX(PrévisionsMarketing[],MATCH(INDEX(ÉcartsMarketing[],ROW()-ROW(ÉcartsMarketing[[#Headers],[Fév]]),1),INDEX(PrévisionsMarketing[],,1),0),MATCH(ÉcartsMarketing[[#Headers],[Fév]],PrévisionsMarketing[#Headers],0))-INDEX(DépensesRéellesMarketing[],MATCH(INDEX(ÉcartsMarketing[],ROW()-ROW(ÉcartsMarketing[[#Headers],[Fév]]),1),INDEX(PrévisionsMarketing[],,1),0),MATCH(ÉcartsMarketing[[#Headers],[Fév]],DépensesRéellesMarketing[#Headers],0)) -> -300.00 € | E25: =INDEX(PrévisionsMarketing[],MATCH(INDEX(ÉcartsMarketing[],ROW()-ROW(ÉcartsMarketing[[#Headers],[Mar]]),1),INDEX(PrévisionsMarketing[],,1),0),MATCH(ÉcartsMarketing[[#Headers],[Mar]],PrévisionsMarketing[#Headers],0))-INDEX(DépensesRéellesMarketing[],MATCH(INDEX(ÉcartsMarketing[],ROW()-ROW(ÉcartsMarketing[[#Headers],[Mar]]),1),INDEX(PrévisionsMarketing[],,1),0),MATCH(ÉcartsMarketing[[#Headers],[Mar]],DépensesRéellesMarketing[#Headers],0)) -> 100.00 € | F25: =INDEX(PrévisionsMarketing[],MATCH(INDEX(ÉcartsMarketing[],ROW()-ROW(ÉcartsMarketing[[#Headers],[Avr]]),1),INDEX(PrévisionsMarketing[],,1),0),MATCH(ÉcartsMarketing[[#Headers],[Avr]],PrévisionsMarketing[#Headers],0))-INDEX(DépensesRéellesMarketing[],MATCH(INDEX(ÉcartsMarketing[],ROW()-ROW(ÉcartsMarketing[[#Headers],[Avr]]),1),INDEX(PrévisionsMarketing[],,1),0),MATCH(ÉcartsMarketing[[#Headers],[Avr]],DépensesRéellesMarketing[#Headers],0)) -> 100.00 € | G25: =INDEX(PrévisionsMarketing[],MATCH(INDEX(ÉcartsMarketing[],ROW()-ROW(ÉcartsMarketing[[#Headers],[Mai]]),1),INDEX(PrévisionsMarketing[],,1),0),MATCH(ÉcartsMarketing[[#Headers],[Mai]],PrévisionsMarketing[#Headers],0))-INDEX(DépensesRéellesMarketing[],MATCH(INDEX(ÉcartsMarketing[],ROW()-ROW(ÉcartsMarketing[[#Headers],[Mai]]),1),INDEX(PrévisionsMarketing[],,1),0),MATCH(ÉcartsMarketing[[#Headers],[Mai]],DépensesRéellesMarketing[#Headers],0)) -> -400.00 € | H25: =INDEX(PrévisionsMarketing[],MATCH(INDEX(ÉcartsMarketing[],ROW()-ROW(ÉcartsMarketing[[#Headers],[Juin]]),1),INDEX(PrévisionsMarketing[],,1),0),MATCH(ÉcartsMarketing[[#Headers],[Juin]],PrévisionsMarketing[#Headers],0))-INDEX(DépensesRéellesMarketing[],MATCH(INDEX(ÉcartsMarketing[],ROW()-ROW(ÉcartsMarketing[[#Headers],[Juin]]),1),INDEX(PrévisionsMarketing[],,1),0),MATCH(ÉcartsMarketing[[#Headers],[Juin]],DépensesRéellesMarketing[#Headers],0)) -> 20.00 € | I25: =INDEX(PrévisionsMarketing[],MATCH(INDEX(ÉcartsMarketing[],ROW()-ROW(ÉcartsMarketing[[#Headers],[Juil]]),1),INDEX(PrévisionsMarketing[],,1),0),MATCH(ÉcartsMarketing[[#Headers],[Juil]],PrévisionsMarketing[#Headers],0))-INDEX(DépensesRéellesMarketing[],MATCH(INDEX(ÉcartsMarketing[],ROW()-ROW(ÉcartsMarketing[[#Headers],[Juil]]),1),INDEX(PrévisionsMarketing[],,1),0),MATCH(ÉcartsMarketing[[#Headers],[Juil]],DépensesRéellesMarketing[#Headers],0)) -> 200.00 € | J25: =INDEX(PrévisionsMarketing[],MATCH(INDEX(ÉcartsMarketing[],ROW()-ROW(ÉcartsMarketing[[#Headers],[Août]]),1),INDEX(PrévisionsMarketing[],,1),0),MATCH(ÉcartsMarketing[[#Headers],[Août]],PrévisionsMarketing[#Headers],0))-INDEX(DépensesRéellesMarketing[],MATCH(INDEX(ÉcartsMarketing[],ROW()-ROW(ÉcartsMarketing[[#Headers],[Août]]),1),INDEX(PrévisionsMarketing[],,1),0),MATCH(ÉcartsMarketing[[#Headers],[Août]],DépensesRéellesMarketing[#Headers],0)) -> 200.00 € | K25: =INDEX(PrévisionsMarketing[],MATCH(INDEX(ÉcartsMarketing[],ROW()-ROW(ÉcartsMarketing[[#Headers],[Sept]]),1),INDEX(PrévisionsMarketing[],,1),0),MATCH(ÉcartsMarketing[[#Headers],[Sept]],PrévisionsMarketing[#Headers],0))-INDEX(DépensesRéellesMarketing[],MATCH(INDEX(ÉcartsMarketing[],ROW()-ROW(ÉcartsMarketing[[#Headers],[Sept]]),1),INDEX(PrévisionsMarketing[],,1),0),MATCH(ÉcartsMarketing[[#Headers],[Sept]],DépensesRéellesMarketing[#Headers],0)) -> 200.00 € | L25: =INDEX(PrévisionsMarketing[],MATCH(INDEX(ÉcartsMarketing[],ROW()-ROW(ÉcartsMarketing[[#Headers],[Oct]]),1),INDEX(PrévisionsMarketing[],,1),0),MATCH(ÉcartsMarketing[[#Headers],[Oct]],PrévisionsMarketing[#Headers],0))-INDEX(DépensesRéellesMarketing[],MATCH(INDEX(ÉcartsMarketing[],ROW()-ROW(ÉcartsMarketing[[#Headers],[Oct]]),1),INDEX(PrévisionsMarketing[],,1),0),MATCH(ÉcartsMarketing[[#Headers],[Oct]],DépensesRéellesMarketing[#Headers],0)) -> 200.00 € | M25: =INDEX(PrévisionsMarketing[],MATCH(INDEX(ÉcartsMarketing[],ROW()-ROW(ÉcartsMarketing[[#Headers],[Nov]]),1),INDEX(PrévisionsMarketing[],,1),0),MATCH(ÉcartsMarketing[[#Headers],[Nov]],PrévisionsMarketing[#Headers],0))-INDEX(DépensesRéellesMarketing[],MATCH(INDEX(ÉcartsMarketing[],ROW()-ROW(ÉcartsMarketing[[#Headers],[Nov]]),1),INDEX(PrévisionsMarketing[],,1),0),MATCH(ÉcartsMarketing[[#Headers],[Nov]],DépensesRéellesMarketing[#Headers],0)) -> 200.00 € | N25: =INDEX(PrévisionsMarketing[],MATCH(INDEX(ÉcartsMarketing[],ROW()-ROW(ÉcartsMarketing[[#Headers],[Déc]]),1),INDEX(PrévisionsMarketing[],,1),0),MATCH(ÉcartsMarketing[[#Headers],[Déc]],PrévisionsMarketing[#Headers],0))-INDEX(DépensesRéellesMarketing[],MATCH(INDEX(ÉcartsMarketing[],ROW()-ROW(ÉcartsMarketing[[#Headers],[Déc]]),1),INDEX(PrévisionsMarketing[],,1),0),MATCH(ÉcartsMarketing[[#Headers],[Déc]],DépensesRéellesMarketing[#Headers],0)) -> 200.00 € | O25: =SUM(ÉcartsMarketing[[#This Row],[Jan]:[Déc]]) -> 820.00 €
B26: Événements marketing | C26: =INDEX(PrévisionsMarketing[],MATCH(INDEX(ÉcartsMarketing[],ROW()-ROW(ÉcartsMarketing[[#Headers],[Jan]]),1),INDEX(PrévisionsMarketing[],,1),0),MATCH(ÉcartsMarketing[[#Headers],[Jan]],PrévisionsMarketing[#Headers],0))-INDEX(DépensesRéellesMarketing[],MATCH(INDEX(ÉcartsMarketing[],ROW()-ROW(ÉcartsMarketing[[#Headers],[Jan]]),1),INDEX(PrévisionsMarketing[],,1),0),MATCH(ÉcartsMarketing[[#Headers],[Jan]],DépensesRéellesMarketing[#Headers],0)) -> 200.00 € | D26: =INDEX(PrévisionsMarketing[],MATCH(INDEX(ÉcartsMarketing[],ROW()-ROW(ÉcartsMarketing[[#Headers],[Fév]]),1),INDEX(PrévisionsMarketing[],,1),0),MATCH(ÉcartsMarketing[[#Headers],[Fév]],PrévisionsMarketing[#Headers],0))-INDEX(DépensesRéellesMarketing[],MATCH(INDEX(ÉcartsMarketing[],ROW()-ROW(ÉcartsMarketing[[#Headers],[Fév]]),1),INDEX(PrévisionsMarketing[],,1),0),MATCH(ÉcartsMarketing[[#Headers],[Fév]],DépensesRéellesMarketing[#Headers],0)) -> -200.00 € | E26: =INDEX(PrévisionsMarketing[],MATCH(INDEX(ÉcartsMarketing[],ROW()-ROW(ÉcartsMarketing[[#Headers],[Mar]]),1),INDEX(PrévisionsMarketing[],,1),0),MATCH(ÉcartsMarketing[[#Headers],[Mar]],PrévisionsMarketing[#Headers],0))-INDEX(DépensesRéellesMarketing[],MATCH(INDEX(ÉcartsMarketing[],ROW()-ROW(ÉcartsMarketing[[#Headers],[Mar]]),1),INDEX(PrévisionsMarketing[],,1),0),MATCH(ÉcartsMarketing[[#Headers],[Mar]],DépensesRéellesMarketing[#Headers],0)) -> -200.00 € | F26: =INDEX(PrévisionsMarketing[],MATCH(INDEX(ÉcartsMarketing[],ROW()-ROW(ÉcartsMarketing[[#Headers],[Avr]]),1),INDEX(PrévisionsMarketing[],,1),0),MATCH(ÉcartsMarketing[[#Headers],[Avr]],PrévisionsMarketing[#Headers],0))-INDEX(DépensesRéellesMarketing[],MATCH(INDEX(ÉcartsMarketing[],ROW()-ROW(ÉcartsMarketing[[#Headers],[Avr]]),1),INDEX(PrévisionsMarketing[],,1),0),MATCH(ÉcartsMarketing[[#Headers],[Avr]],DépensesRéellesMarketing[#Headers],0)) -> 300.00 € | G26: =INDEX(PrévisionsMarketing[],MATCH(INDEX(ÉcartsMarketing[],ROW()-ROW(ÉcartsMarketing[[#Headers],[Mai]]),1),INDEX(PrévisionsMarketing[],,1),0),MATCH(ÉcartsMarketing[[#Headers],[Mai]],PrévisionsMarketing[#Headers],0))-INDEX(DépensesRéellesMarketing[],MATCH(INDEX(ÉcartsMarketing[],ROW()-ROW(ÉcartsMarketing[[#Headers],[Mai]]),1),INDEX(PrévisionsMarketing[],,1),0),MATCH(ÉcartsMarketing[[#Headers],[Mai]],DépensesRéellesMarketing[#Headers],0)) -> 500.00 € | H26: =INDEX(PrévisionsMarketing[],MATCH(INDEX(ÉcartsMarketing[],ROW()-ROW(ÉcartsMarketing[[#Headers],[Juin]]),1),INDEX(PrévisionsMarketing[],,1),0),MATCH(ÉcartsMarketing[[#Headers],[Juin]],PrévisionsMarketing[#Headers],0))-INDEX(DépensesRéellesMarketing[],MATCH(INDEX(ÉcartsMarketing[],ROW()-ROW(ÉcartsMarketing[[#Headers],[Juin]]),1),INDEX(PrévisionsMarketing[],,1),0),MATCH(ÉcartsMarketing[[#Headers],[Juin]],DépensesRéellesMarketing[#Headers],0)) -> -300.00 € | I26: =INDEX(PrévisionsMarketing[],MATCH(INDEX(ÉcartsMarketing[],ROW()-ROW(ÉcartsMarketing[[#Headers],[Juil]]),1),INDEX(PrévisionsMarketing[],,1),0),MATCH(ÉcartsMarketing[[#Headers],[Juil]],PrévisionsMarketing[#Headers],0))-INDEX(DépensesRéellesMarketing[],MATCH(INDEX(ÉcartsMarketing[],ROW()-ROW(ÉcartsMarketing[[#Headers],[Juil]]),1),INDEX(PrévisionsMarketing[],,1),0),MATCH(ÉcartsMarketing[[#Headers],[Juil]],DépensesRéellesMarketing[#Headers],0)) -> 2,000.00 € | J26: =INDEX(PrévisionsMarketing[],MATCH(INDEX(ÉcartsMarketing[],ROW()-ROW(ÉcartsMarketing[[#Headers],[Août]]),1),INDEX(PrévisionsMarketing[],,1),0),MATCH(ÉcartsMarketing[[#Headers],[Août]],PrévisionsMarketing[#Headers],0))-INDEX(DépensesRéellesMarketing[],MATCH(INDEX(ÉcartsMarketing[],ROW()-ROW(ÉcartsMarketing[[#Headers],[Août]]),1),INDEX(PrévisionsMarketing[],,1),0),MATCH(ÉcartsMarketing[[#Headers],[Août]],DépensesRéellesMarketing[#Headers],0)) -> 5,000.00 € | K26: =INDEX(PrévisionsMarketing[],MATCH(INDEX(ÉcartsMarketing[],ROW()-ROW(ÉcartsMarketing[[#Headers],[Sept]]),1),INDEX(PrévisionsMarketing[],,1),0),MATCH(ÉcartsMarketing[[#Headers],[Sept]],PrévisionsMarketing[#Headers],0))-INDEX(DépensesRéellesMarketing[],MATCH(INDEX(ÉcartsMarketing[],ROW()-ROW(ÉcartsMarketing[[#Headers],[Sept]]),1),INDEX(PrévisionsMarketing[],,1),0),MATCH(ÉcartsMarketing[[#Headers],[Sept]],DépensesRéellesMarketing[#Headers],0)) -> 2,000.00 € | L26: =INDEX(PrévisionsMarketing[],MATCH(INDEX(ÉcartsMarketing[],ROW()-ROW(ÉcartsMarketing[[#Headers],[Oct]]),1),INDEX(PrévisionsMarketing[],,1),0),MATCH(ÉcartsMarketing[[#Headers],[Oct]],PrévisionsMarketing[#Headers],0))-INDEX(DépensesRéellesMarketing[],MATCH(INDEX(ÉcartsMarketing[],ROW()-ROW(ÉcartsMarketing[[#Headers],[Oct]]),1),INDEX(PrévisionsMarketing[],,1),0),MATCH(ÉcartsMarketing[[#Headers],[Oct]],DépensesRéellesMarketing[#Headers],0)) -> 2,000.00 € | M26: =INDEX(PrévisionsMarketing[],MATCH(INDEX(ÉcartsMarketing[],ROW()-ROW(ÉcartsMarketing[[#Headers],[Nov]]),1),INDEX(PrévisionsMarketing[],,1),0),MATCH(ÉcartsMarketing[[#Headers],[Nov]],PrévisionsMarketing[#Headers],0))-INDEX(DépensesRéellesMarketing[],MATCH(INDEX(ÉcartsMarketing[],ROW()-ROW(ÉcartsMarketing[[#Headers],[Nov]]),1),INDEX(PrévisionsMarketing[],,1),0),MATCH(ÉcartsMarketing[[#Headers],[Nov]],DépensesRéellesMarketing[#Headers],0)) -> 2,000.00 € | N26: =INDEX(PrévisionsMarketing[],MATCH(INDEX(ÉcartsMarketing[],ROW()-ROW(ÉcartsMarketing[[#Headers],[Déc]]),1),INDEX(PrévisionsMarketing[],,1),0),MATCH(ÉcartsMarketing[[#Headers],[Déc]],PrévisionsMarketing[#Headers],0))-INDEX(DépensesRéellesMarketing[],MATCH(INDEX(ÉcartsMarketing[],ROW()-ROW(ÉcartsMarketing[[#Headers],[Déc]]),1),INDEX(PrévisionsMarketing[],,1),0),MATCH(ÉcartsMarketing[[#Headers],[Déc]],DépensesRéellesMarketing[#Headers],0)) -> 5,000.00 € | O26: =SUM(ÉcartsMarketing[[#This Row],[Jan]:[Déc]]) -> 18,300.00 €
B27: Dépenses diverses | C27: =INDEX(PrévisionsMarketing[],MATCH(INDEX(ÉcartsMarketing[],ROW()-ROW(ÉcartsMarketing[[#Headers],[Jan]]),1),INDEX(PrévisionsMarketing[],,1),0),MATCH(ÉcartsMarketing[[#Headers],[Jan]],PrévisionsMarketing[#Headers],0))-INDEX(DépensesRéellesMarketing[],MATCH(INDEX(ÉcartsMarketing[],ROW()-ROW(ÉcartsMarketing[[#Headers],[Jan]]),1),INDEX(PrévisionsMarketing[],,1),0),MATCH(ÉcartsMarketing[[#Headers],[Jan]],DépensesRéellesMarketing[#Headers],0)) -> 55.00 € | D27: =INDEX(PrévisionsMarketing[],MATCH(INDEX(ÉcartsMarketing[],ROW()-ROW(ÉcartsMarketing[[#Headers],[Fév]]),1),INDEX(PrévisionsMarketing[],,1),0),MATCH(ÉcartsMarketing[[#Headers],[Fév]],PrévisionsMarketing[#Headers],0))-INDEX(DépensesRéellesMarketing[],MATCH(INDEX(ÉcartsMarketing[],ROW()-ROW(ÉcartsMarketing[[#Headers],[Fév]]),1),INDEX(PrévisionsMarketing[],,1),0),MATCH(ÉcartsMarketing[[#Headers],[Fév]],DépensesRéellesMarketing[#Headers],0)) -> 44.00 € | E27: =INDEX(PrévisionsMarketing[],MATCH(INDEX(ÉcartsMarketing[],ROW()-ROW(ÉcartsMarketing[[#Headers],[Mar]]),1),INDEX(PrévisionsMarketing[],,1),0),MATCH(ÉcartsMarketing[[#Headers],[Mar]],PrévisionsMarketing[#Headers],0))-INDEX(DépensesRéellesMarketing[],MATCH(INDEX(ÉcartsMarketing[],ROW()-ROW(ÉcartsMarketing[[#Headers],[Mar]]),1),INDEX(PrévisionsMarketing[],,1),0),MATCH(ÉcartsMarketing[[#Headers],[Mar]],DépensesRéellesMarketing[#Headers],0)) -> 77.00 € | F27: =INDEX(PrévisionsMarketing[],MATCH(INDEX(ÉcartsMarketing[],ROW()-ROW(ÉcartsMarketing[[#Headers],[Avr]]),1),INDEX(PrévisionsMarketing[],,1),0),MATCH(ÉcartsMarketing[[#Headers],[Avr]],PrévisionsMarketing[#Headers],0))-INDEX(DépensesRéellesMarketing[],MATCH(INDEX(ÉcartsMarketing[],ROW()-ROW(ÉcartsMarketing[[#Headers],[Avr]]),1),INDEX(PrévisionsMarketing[],,1),0),MATCH(ÉcartsMarketing[[#Headers],[Avr]],DépensesRéellesMarketing[#Headers],0)) -> -23.00 € | G27: =INDEX(PrévisionsMarketing[],MATCH(INDEX(ÉcartsMarketing[],ROW()-ROW(ÉcartsMarketing[[#Headers],[Mai]]),1),INDEX(PrévisionsMarketing[],,1),0),MATCH(ÉcartsMarketing[[#Headers],[Mai]],PrévisionsMarketing[#Headers],0))-INDEX(DépensesRéellesMarketing[],MATCH(INDEX(ÉcartsMarketing[],ROW()-ROW(ÉcartsMarketing[[#Headers],[Mai]]),1),INDEX(PrévisionsMarketing[],,1),0),MATCH(ÉcartsMarketing[[#Headers],[Mai]],DépensesRéellesMarketing[#Headers],0)) -> 13.00 € | H27: =INDEX(PrévisionsMarketing[],MATCH(INDEX(ÉcartsMarketing[],ROW()-ROW(ÉcartsMarketing[[#Headers],[Juin]]),1),INDEX(PrévisionsMarketing[],,1),0),MATCH(ÉcartsMarketing[[#Headers],[Juin]],PrévisionsMarketing[#Headers],0))-INDEX(DépensesRéellesMarketing[],MATCH(INDEX(ÉcartsMarketing[],ROW()-ROW(ÉcartsMarketing[[#Headers],[Juin]]),1),INDEX(PrévisionsMarketing[],,1),0),MATCH(ÉcartsMarketing[[#Headers],[Juin]],DépensesRéellesMarketing[#Headers],0)) -> -45.00 € | I27: =INDEX(PrévisionsMarketing[],MATCH(INDEX(ÉcartsMarketing[],ROW()-ROW(ÉcartsMarketing[[#Headers],[Juil]]),1),INDEX(PrévisionsMarketing[],,1),0),MATCH(ÉcartsMarketing[[#Headers],[Juil]],PrévisionsMarketing[#Headers],0))-INDEX(DépensesRéellesMarketing[],MATCH(INDEX(ÉcartsMarketing[],ROW()-ROW(ÉcartsMarketing[[#Headers],[Juil]]),1),INDEX(PrévisionsMarketing[],,1),0),MATCH(ÉcartsMarketing[[#Headers],[Juil]],DépensesRéellesMarketing[#Headers],0)) -> 200.00 € | J27: =INDEX(PrévisionsMarketing[],MATCH(INDEX(ÉcartsMarketing[],ROW()-ROW(ÉcartsMarketing[[#Headers],[Août]]),1),INDEX(PrévisionsMarketing[],,1),0),MATCH(ÉcartsMarketing[[#Headers],[Août]],PrévisionsMarketing[#Headers],0))-INDEX(DépensesRéellesMarketing[],MATCH(INDEX(ÉcartsMarketing[],ROW()-ROW(ÉcartsMarketing[[#Headers],[Août]]),1),INDEX(PrévisionsMarketing[],,1),0),MATCH(ÉcartsMarketing[[#Headers],[Août]],DépensesRéellesMarketing[#Headers],0)) -> 200.00 € | K27: =INDEX(PrévisionsMarketing[],MATCH(INDEX(ÉcartsMarketing[],ROW()-ROW(ÉcartsMarketing[[#Headers],[Sept]]),1),INDEX(PrévisionsMarketing[],,1),0),MATCH(ÉcartsMarketing[[#Headers],[Sept]],PrévisionsMarketing[#Headers],0))-INDEX(DépensesRéellesMarketing[],MATCH(INDEX(ÉcartsMarketing[],ROW()-ROW(ÉcartsMarketing[[#Headers],[Sept]]),1),INDEX(PrévisionsMarketing[],,1),0),MATCH(ÉcartsMarketing[[#Headers],[Sept]],DépensesRéellesMarketing[#Headers],0)) -> 200.00 € | L27: =INDEX(PrévisionsMarketing[],MATCH(INDEX(ÉcartsMarketing[],ROW()-ROW(ÉcartsMarketing[[#Headers],[Oct]]),1),INDEX(PrévisionsMarketing[],,1),0),MATCH(ÉcartsMarketing[[#Headers],[Oct]],PrévisionsMarketing[#Headers],0))-INDEX(DépensesRéellesMarketing[],MATCH(INDEX(ÉcartsMarketing[],ROW()-ROW(ÉcartsMarketing[[#Headers],[Oct]]),1),INDEX(PrévisionsMarketing[],,1),0),MATCH(ÉcartsMarketing[[#Headers],[Oct]],DépensesRéellesMarketing[#Headers],0)) -> 200.00 € | M27: =INDEX(PrévisionsMarketing[],MATCH(INDEX(ÉcartsMarketing[],ROW()-ROW(ÉcartsMarketing[[#Headers],[Nov]]),1),INDEX(PrévisionsMarketing[],,1),0),MATCH(ÉcartsMarketing[[#Headers],[Nov]],PrévisionsMarketing[#Headers],0))-INDEX(DépensesRéellesMarketing[],MATCH(INDEX(ÉcartsMarketing[],ROW()-ROW(ÉcartsMarketing[[#Headers],[Nov]]),1),INDEX(PrévisionsMarketing[],,1),0),MATCH(ÉcartsMarketing[[#Headers],[Nov]],DépensesRéellesMarketing[#Headers],0)) -> 200.00 € | N27: =INDEX(PrévisionsMarketing[],MATCH(INDEX(ÉcartsMarketing[],ROW()-ROW(ÉcartsMarketing[[#Headers],[Déc]]),1),INDEX(PrévisionsMarketing[],,1),0),MATCH(ÉcartsMarketing[[#Headers],[Déc]],PrévisionsMarketing[#Headers],0))-INDEX(DépensesRéellesMarketing[],MATCH(INDEX(ÉcartsMarketing[],ROW()-ROW(ÉcartsMarketing[[#Headers],[Déc]]),1),INDEX(PrévisionsMarketing[],,1),0),MATCH(ÉcartsMarketing[[#Headers],[Déc]],DépensesRéellesMarketing[#Headers],0)) -> 200.00 € | O27: =SUM(ÉcartsMarketing[[#This Row],[Jan]:[Déc]]) -> 1,321.00 €
B28: Sous-total | C28: =SUBTOTAL(109,ÉcartsMarketing[Jan]) -> 555.00 € | D28: =SUBTOTAL(109,ÉcartsMarketing[Fév]) -> -456.00 € | E28: =SUBTOTAL(109,ÉcartsMarketing[Mar]) -> -23.00 € | F28: =SUBTOTAL(109,ÉcartsMarketing[Avr]) -> -123.00 € | G28: =SUBTOTAL(109,ÉcartsMarketing[Mai]) -> 113.00 € | H28: =SUBTOTAL(109,ÉcartsMarketing[Juin]) -> -825.00 € | I28: =SUBTOTAL(109,ÉcartsMarketing[Juil]) -> 8,100.00 € | J28: =SUBTOTAL(109,ÉcartsMarketing[Août]) -> 6,100.00 € | K28: =SUBTOTAL(109,ÉcartsMarketing[Sept]) -> 3,100.00 € | L28: =SUBTOTAL(109,ÉcartsMarketing[Oct]) -> 8,100.00 € | M28: =SUBTOTAL(109,ÉcartsMarketing[Nov]) -> 3,100.00 € | N28: =SUBTOTAL(109,ÉcartsMarketing[Déc]) -> 6,900.00 € | O28: =SUBTOTAL(109,ÉcartsMarketing[ANNÉE]) -> 34,641.00 €
A30: L’écart relatif aux coûts de formation/déplacements est automatiquement calculé dans la table Écarts formation et déplacements en commençant par la cellule de droite. L’instruction suivante figure dans la cellule A35. | B30: Formation/Déplacements | C30: Jan | D30: Fév | E30: Mar | F30: Avr | G30: Mai | H30: Juin | I30: Juil | J30: Août | K30: Sept | L30: Oct | M30: Nov | N30: Déc | O30: ANNÉE
B31: Sessions de formation | C31: =INDEX(PrévisionsFormationEtDéplacements[],MATCH(INDEX(ÉcartsFormationEtDéplacements[],ROW()-ROW(ÉcartsFormationEtDéplacements[[#Headers],[Jan]]),1),INDEX(PrévisionsFormationEtDéplacements[],,1),0),MATCH(ÉcartsFormationEtDéplacements[[#Headers],[Jan]],PrévisionsFormationEtDéplacements[#Headers],0))-INDEX(DépensesRéellesFormationEtDéplacements[],MATCH(INDEX(ÉcartsFormationEtDéplacements[],ROW()-ROW(ÉcartsFormationEtDéplacements[[#Headers],[Jan]]),1),INDEX(PrévisionsFormationEtDéplacements[],,1),0),MATCH(ÉcartsFormationEtDéplacements[[#Headers],[Jan]],DépensesRéellesFormationEtDéplacements[#Headers],0)) -> 400.00 € | D31: =INDEX(PrévisionsFormationEtDéplacements[],MATCH(INDEX(ÉcartsFormationEtDéplacements[],ROW()-ROW(ÉcartsFormationEtDéplacements[[#Headers],[Fév]]),1),INDEX(PrévisionsFormationEtDéplacements[],,1),0),MATCH(ÉcartsFormationEtDéplacements[[#Headers],[Fév]],PrévisionsFormationEtDéplacements[#Headers],0))-INDEX(DépensesRéellesFormationEtDéplacements[],MATCH(INDEX(ÉcartsFormationEtDéplacements[],ROW()-ROW(ÉcartsFormationEtDéplacements[[#Headers],[Fév]]),1),INDEX(PrévisionsFormationEtDéplacements[],,1),0),MATCH(ÉcartsFormationEtDéplacements[[#Headers],[Fév]],DépensesRéellesFormationEtDéplacements[#Headers],0)) -> -400.00 € | E31: =INDEX(PrévisionsFormationEtDéplacements[],MATCH(INDEX(ÉcartsFormationEtDéplacements[],ROW()-ROW(ÉcartsFormationEtDéplacements[[#Headers],[Mar]]),1),INDEX(PrévisionsFormationEtDéplacements[],,1),0),MATCH(ÉcartsFormationEtDéplacements[[#Headers],[Mar]],PrévisionsFormationEtDéplacements[#Headers],0))-INDEX(DépensesRéellesFormationEtDéplacements[],MATCH(INDEX(ÉcartsFormationEtDéplacements[],ROW()-ROW(ÉcartsFormationEtDéplacements[[#Headers],[Mar]]),1),INDEX(PrévisionsFormationEtDéplacements[],,1),0),MATCH(ÉcartsFormationEtDéplacements[[#Headers],[Mar]],DépensesRéellesFormationEtDéplacements[#Headers],0)) -> 600.00 € | F31: =INDEX(PrévisionsFormationEtDéplacements[],MATCH(INDEX(ÉcartsFormationEtDéplacements[],ROW()-ROW(ÉcartsFormationEtDéplacements[[#Headers],[Avr]]),1),INDEX(PrévisionsFormationEtDéplacements[],,1),0),MATCH(ÉcartsFormationEtDéplacements[[#Headers],[Avr]],PrévisionsFormationEtDéplacements[#Headers],0))-INDEX(DépensesRéellesFormationEtDéplacements[],MATCH(INDEX(ÉcartsFormationEtDéplacements[],ROW()-ROW(ÉcartsFormationEtDéplacements[[#Headers],[Avr]]),1),INDEX(PrévisionsFormationEtDéplacements[],,1),0),MATCH(ÉcartsFormationEtDéplacements[[#Headers],[Avr]],DépensesRéellesFormationEtDéplacements[#Headers],0)) -> 400.00 € | G31: =INDEX(PrévisionsFormationEtDéplacements[],MATCH(INDEX(ÉcartsFormationEtDéplacements[],ROW()-ROW(ÉcartsFormationEtDéplacements[[#Headers],[Mai]]),1),INDEX(PrévisionsFormationEtDéplacements[],,1),0),MATCH(ÉcartsFormationEtDéplacements[[#Headers],[Mai]],PrévisionsFormationEtDéplacements[#Headers],0))-INDEX(DépensesRéellesFormationEtDéplacements[],MATCH(INDEX(ÉcartsFormationEtDéplacements[],ROW()-ROW(ÉcartsFormationEtDéplacements[[#Headers],[Mai]]),1),INDEX(PrévisionsFormationEtDéplacements[],,1),0),MATCH(ÉcartsFormationEtDéplacements[[#Headers],[Mai]],DépensesRéellesFormationEtDéplacements[#Headers],0)) -> 800.00 € | H31: =INDEX(PrévisionsFormationEtDéplacements[],MATCH(INDEX(ÉcartsFormationEtDéplacements[],ROW()-ROW(ÉcartsFormationEtDéplacements[[#Headers],[Juin]]),1),INDEX(PrévisionsFormationEtDéplacements[],,1),0),MATCH(ÉcartsFormationEtDéplacements[[#Headers],[Juin]],PrévisionsFormationEtDéplacements[#Headers],0))-INDEX(DépensesRéellesFormationEtDéplacements[],MATCH(INDEX(ÉcartsFormationEtDéplacements[],ROW()-ROW(ÉcartsFormationEtDéplacements[[#Headers],[Juin]]),1),INDEX(PrévisionsFormationEtDéplacements[],,1),0),MATCH(ÉcartsFormationEtDéplacements[[#Headers],[Juin]],DépensesRéellesFormationEtDéplacements[#Headers],0)) -> -800.00 € | I31: =INDEX(PrévisionsFormationEtDéplacements[],MATCH(INDEX(ÉcartsFormationEtDéplacements[],ROW()-ROW(ÉcartsFormationEtDéplacements[[#Headers],[Juil]]),1),INDEX(PrévisionsFormationEtDéplacements[],,1),0),MATCH(ÉcartsFormationEtDéplacements[[#Headers],[Juil]],PrévisionsFormationEtDéplacements[#Headers],0))-INDEX(DépensesRéellesFormationEtDéplacements[],MATCH(INDEX(ÉcartsFormationEtDéplacements[],ROW()-ROW(ÉcartsFormationEtDéplacements[[#Headers],[Juil]]),1),INDEX(PrévisionsFormationEtDéplacements[],,1),0),MATCH(ÉcartsFormationEtDéplacements[[#Headers],[Juil]],DépensesRéellesFormationEtDéplacements[#Headers],0)) -> 2,000.00 € | J31: =INDEX(PrévisionsFormationEtDéplacements[],MATCH(INDEX(ÉcartsFormationEtDéplacements[],ROW()-ROW(ÉcartsFormationEtDéplacements[[#Headers],[Août]]),1),INDEX(PrévisionsFormationEtDéplacements[],,1),0),MATCH(ÉcartsFormationEtDéplacements[[#Headers],[Août]],PrévisionsFormationEtDéplacements[#Headers],0))-INDEX(DépensesRéellesFormationEtDéplacements[],MATCH(INDEX(ÉcartsFormationEtDéplacements[],ROW()-ROW(ÉcartsFormationEtDéplacements[[#Headers],[Août]]),1),INDEX(PrévisionsFormationEtDéplacements[],,1),0),MATCH(ÉcartsFormationEtDéplacements[[#Headers],[Août]],DépensesRéellesFormationEtDéplacements[#Headers],0)) -> 2,000.00 € | K31: =INDEX(PrévisionsFormationEtDéplacements[],MATCH(INDEX(ÉcartsFormationEtDéplacements[],ROW()-ROW(ÉcartsFormationEtDéplacements[[#Headers],[Sept]]),1),INDEX(PrévisionsFormationEtDéplacements[],,1),0),MATCH(ÉcartsFormationEtDéplacements[[#Headers],[Sept]],PrévisionsFormationEtDéplacements[#Headers],0))-INDEX(DépensesRéellesFormationEtDéplacements[],MATCH(INDEX(ÉcartsFormationEtDéplacements[],ROW()-ROW(ÉcartsFormationEtDéplacements[[#Headers],[Sept]]),1),INDEX(PrévisionsFormationEtDéplacements[],,1),0),MATCH(ÉcartsFormationEtDéplacements[[#Headers],[Sept]],DépensesRéellesFormationEtDéplacements[#Headers],0)) -> 2,000.00 € | L31: =INDEX(PrévisionsFormationEtDéplacements[],MATCH(INDEX(ÉcartsFormationEtDéplacements[],ROW()-ROW(ÉcartsFormationEtDéplacements[[#Headers],[Oct]]),1),INDEX(PrévisionsFormationEtDéplacements[],,1),0),MATCH(ÉcartsFormationEtDéplacements[[#Headers],[Oct]],PrévisionsFormationEtDéplacements[#Headers],0))-INDEX(DépensesRéellesFormationEtDéplacements[],MATCH(INDEX(ÉcartsFormationEtDéplacements[],ROW()-ROW(ÉcartsFormationEtDéplacements[[#Headers],[Oct]]),1),INDEX(PrévisionsFormationEtDéplacements[],,1),0),MATCH(ÉcartsFormationEtDéplacements[[#Headers],[Oct]],DépensesRéellesFormationEtDéplacements[#Headers],0)) -> 2,000.00 € | M31: =INDEX(PrévisionsFormationEtDéplacements[],MATCH(INDEX(ÉcartsFormationEtDéplacements[],ROW()-ROW(ÉcartsFormationEtDéplacements[[#Headers],[Nov]]),1),INDEX(PrévisionsFormationEtDéplacements[],,1),0),MATCH(ÉcartsFormationEtDéplacements[[#Headers],[Nov]],PrévisionsFormationEtDéplacements[#Headers],0))-INDEX(DépensesRéellesFormationEtDéplacements[],MATCH(INDEX(ÉcartsFormationEtDéplacements[],ROW()-ROW(ÉcartsFormationEtDéplacements[[#Headers],[Nov]]),1),INDEX(PrévisionsFormationEtDéplacements[],,1),0),MATCH(ÉcartsFormationEtDéplacements[[#Headers],[Nov]],DépensesRéellesFormationEtDéplacements[#Headers],0)) -> 2,000.00 € | N31: =INDEX(PrévisionsFormationEtDéplacements[],MATCH(INDEX(ÉcartsFormationEtDéplacements[],ROW()-ROW(ÉcartsFormationEtDéplacements[[#Headers],[Déc]]),1),INDEX(PrévisionsFormationEtDéplacements[],,1),0),MATCH(ÉcartsFormationEtDéplacements[[#Headers],[Déc]],PrévisionsFormationEtDéplacements[#Headers],0))-INDEX(DépensesRéellesFormationEtDéplacements[],MATCH(INDEX(ÉcartsFormationEtDéplacements[],ROW()-ROW(ÉcartsFormationEtDéplacements[[#Headers],[Déc]]),1),INDEX(PrévisionsFormationEtDéplacements[],,1),0),MATCH(ÉcartsFormationEtDéplacements[[#Headers],[Déc]],DépensesRéellesFormationEtDéplacements[#Headers],0)) -> 2,000.00 € | O31: =SUM(ÉcartsFormationEtDéplacements[[#This Row],[Jan]:[Déc]]) -> 13,000.00 €
B32: Frais de déplacement liés aux formations | C32: =INDEX(PrévisionsFormationEtDéplacements[],MATCH(INDEX(ÉcartsFormationEtDéplacements[],ROW()-ROW(ÉcartsFormationEtDéplacements[[#Headers],[Jan]]),1),INDEX(PrévisionsFormationEtDéplacements[],,1),0),MATCH(ÉcartsFormationEtDéplacements[[#Headers],[Jan]],PrévisionsFormationEtDéplacements[#Headers],0))-INDEX(DépensesRéellesFormationEtDéplacements[],MATCH(INDEX(ÉcartsFormationEtDéplacements[],ROW()-ROW(ÉcartsFormationEtDéplacements[[#Headers],[Jan]]),1),INDEX(PrévisionsFormationEtDéplacements[],,1),0),MATCH(ÉcartsFormationEtDéplacements[[#Headers],[Jan]],DépensesRéellesFormationEtDéplacements[#Headers],0)) -> 800.00 € | D32: =INDEX(PrévisionsFormationEtDéplacements[],MATCH(INDEX(ÉcartsFormationEtDéplacements[],ROW()-ROW(ÉcartsFormationEtDéplacements[[#Headers],[Fév]]),1),INDEX(PrévisionsFormationEtDéplacements[],,1),0),MATCH(ÉcartsFormationEtDéplacements[[#Headers],[Fév]],PrévisionsFormationEtDéplacements[#Headers],0))-INDEX(DépensesRéellesFormationEtDéplacements[],MATCH(INDEX(ÉcartsFormationEtDéplacements[],ROW()-ROW(ÉcartsFormationEtDéplacements[[#Headers],[Fév]]),1),INDEX(PrévisionsFormationEtDéplacements[],,1),0),MATCH(ÉcartsFormationEtDéplacements[[#Headers],[Fév]],DépensesRéellesFormationEtDéplacements[#Headers],0)) -> -200.00 € | E32: =INDEX(PrévisionsFormationEtDéplacements[],MATCH(INDEX(ÉcartsFormationEtDéplacements[],ROW()-ROW(ÉcartsFormationEtDéplacements[[#Headers],[Mar]]),1),INDEX(PrévisionsFormationEtDéplacements[],,1),0),MATCH(ÉcartsFormationEtDéplacements[[#Headers],[Mar]],PrévisionsFormationEtDéplacements[#Headers],0))-INDEX(DépensesRéellesFormationEtDéplacements[],MATCH(INDEX(ÉcartsFormationEtDéplacements[],ROW()-ROW(ÉcartsFormationEtDéplacements[[#Headers],[Mar]]),1),INDEX(PrévisionsFormationEtDéplacements[],,1),0),MATCH(ÉcartsFormationEtDéplacements[[#Headers],[Mar]],DépensesRéellesFormationEtDéplacements[#Headers],0)) -> 600.00 € | F32: =INDEX(PrévisionsFormationEtDéplacements[],MATCH(INDEX(ÉcartsFormationEtDéplacements[],ROW()-ROW(ÉcartsFormationEtDéplacements[[#Headers],[Avr]]),1),INDEX(PrévisionsFormationEtDéplacements[],,1),0),MATCH(ÉcartsFormationEtDéplacements[[#Headers],[Avr]],PrévisionsFormationEtDéplacements[#Headers],0))-INDEX(DépensesRéellesFormationEtDéplacements[],MATCH(INDEX(ÉcartsFormationEtDéplacements[],ROW()-ROW(ÉcartsFormationEtDéplacements[[#Headers],[Avr]]),1),INDEX(PrévisionsFormationEtDéplacements[],,1),0),MATCH(ÉcartsFormationEtDéplacements[[#Headers],[Avr]],DépensesRéellesFormationEtDéplacements[#Headers],0)) -> 800.00 € | G32: =INDEX(PrévisionsFormationEtDéplacements[],MATCH(INDEX(ÉcartsFormationEtDéplacements[],ROW()-ROW(ÉcartsFormationEtDéplacements[[#Headers],[Mai]]),1),INDEX(PrévisionsFormationEtDéplacements[],,1),0),MATCH(ÉcartsFormationEtDéplacements[[#Headers],[Mai]],PrévisionsFormationEtDéplacements[#Headers],0))-INDEX(DépensesRéellesFormationEtDéplacements[],MATCH(INDEX(ÉcartsFormationEtDéplacements[],ROW()-ROW(ÉcartsFormationEtDéplacements[[#Headers],[Mai]]),1),INDEX(PrévisionsFormationEtDéplacements[],,1),0),MATCH(ÉcartsFormationEtDéplacements[[#Headers],[Mai]],DépensesRéellesFormationEtDéplacements[#Headers],0)) -> 1,200.00 € | H32: =INDEX(PrévisionsFormationEtDéplacements[],MATCH(INDEX(ÉcartsFormationEtDéplacements[],ROW()-ROW(ÉcartsFormationEtDéplacements[[#Headers],[Juin]]),1),INDEX(PrévisionsFormationEtDéplacements[],,1),0),MATCH(ÉcartsFormationEtDéplacements[[#Headers],[Juin]],PrévisionsFormationEtDéplacements[#Headers],0))-INDEX(DépensesRéellesFormationEtDéplacements[],MATCH(INDEX(ÉcartsFormationEtDéplacements[],ROW()-ROW(ÉcartsFormationEtDéplacements[[#Headers],[Juin]]),1),INDEX(PrévisionsFormationEtDéplacements[],,1),0),MATCH(ÉcartsFormationEtDéplacements[[#Headers],[Juin]],DépensesRéellesFormationEtDéplacements[#Headers],0)) -> -1,500.00 € | I32: =INDEX(PrévisionsFormationEtDéplacements[],MATCH(INDEX(ÉcartsFormationEtDéplacements[],ROW()-ROW(ÉcartsFormationEtDéplacements[[#Headers],[Juil]]),1),INDEX(PrévisionsFormationEtDéplacements[],,1),0),MATCH(ÉcartsFormationEtDéplacements[[#Headers],[Juil]],PrévisionsFormationEtDéplacements[#Headers],0))-INDEX(DépensesRéellesFormationEtDéplacements[],MATCH(INDEX(ÉcartsFormationEtDéplacements[],ROW()-ROW(ÉcartsFormationEtDéplacements[[#Headers],[Juil]]),1),INDEX(PrévisionsFormationEtDéplacements[],,1),0),MATCH(ÉcartsFormationEtDéplacements[[#Headers],[Juil]],DépensesRéellesFormationEtDéplacements[#Headers],0)) -> 2,000.00 € | J32: =INDEX(PrévisionsFormationEtDéplacements[],MATCH(INDEX(ÉcartsFormationEtDéplacements[],ROW()-ROW(ÉcartsFormationEtDéplacements[[#Headers],[Août]]),1),INDEX(PrévisionsFormationEtDéplacements[],,1),0),MATCH(ÉcartsFormationEtDéplacements[[#Headers],[Août]],PrévisionsFormationEtDéplacements[#Headers],0))-INDEX(DépensesRéellesFormationEtDéplacements[],MATCH(INDEX(ÉcartsFormationEtDéplacements[],ROW()-ROW(ÉcartsFormationEtDéplacements[[#Headers],[Août]]),1),INDEX(PrévisionsFormationEtDéplacements[],,1),0),MATCH(ÉcartsFormationEtDéplacements[[#Headers],[Août]],DépensesRéellesFormationEtDéplacements[#Headers],0)) -> 2,000.00 € | K32: =INDEX(PrévisionsFormationEtDéplacements[],MATCH(INDEX(ÉcartsFormationEtDéplacements[],ROW()-ROW(ÉcartsFormationEtDéplacements[[#Headers],[Sept]]),1),INDEX(PrévisionsFormationEtDéplacements[],,1),0),MATCH(ÉcartsFormationEtDéplacements[[#Headers],[Sept]],PrévisionsFormationEtDéplacements[#Headers],0))-INDEX(DépensesRéellesFormationEtDéplacements[],MATCH(INDEX(ÉcartsFormationEtDéplacements[],ROW()-ROW(ÉcartsFormationEtDéplacements[[#Headers],[Sept]]),1),INDEX(PrévisionsFormationEtDéplacements[],,1),0),MATCH(ÉcartsFormationEtDéplacements[[#Headers],[Sept]],DépensesRéellesFormationEtDéplacements[#Headers],0)) -> 2,000.00 € | L32: =INDEX(PrévisionsFormationEtDéplacements[],MATCH(INDEX(ÉcartsFormationEtDéplacements[],ROW()-ROW(ÉcartsFormationEtDéplacements[[#Headers],[Oct]]),1),INDEX(PrévisionsFormationEtDéplacements[],,1),0),MATCH(ÉcartsFormationEtDéplacements[[#Headers],[Oct]],PrévisionsFormationEtDéplacements[#Headers],0))-INDEX(DépensesRéellesFormationEtDéplacements[],MATCH(INDEX(ÉcartsFormationEtDéplacements[],ROW()-ROW(ÉcartsFormationEtDéplacements[[#Headers],[Oct]]),1),INDEX(PrévisionsFormationEtDéplacements[],,1),0),MATCH(ÉcartsFormationEtDéplacements[[#Headers],[Oct]],DépensesRéellesFormationEtDéplacements[#Headers],0)) -> 2,000.00 € | M32: =INDEX(PrévisionsFormationEtDéplacements[],MATCH(INDEX(ÉcartsFormationEtDéplacements[],ROW()-ROW(ÉcartsFormationEtDéplacements[[#Headers],[Nov]]),1),INDEX(PrévisionsFormationEtDéplacements[],,1),0),MATCH(ÉcartsFormationEtDéplacements[[#Headers],[Nov]],PrévisionsFormationEtDéplacements[#Headers],0))-INDEX(DépensesRéellesFormationEtDéplacements[],MATCH(INDEX(ÉcartsFormationEtDéplacements[],ROW()-ROW(ÉcartsFormationEtDéplacements[[#Headers],[Nov]]),1),INDEX(PrévisionsFormationEtDéplacements[],,1),0),MATCH(ÉcartsFormationEtDéplacements[[#Headers],[Nov]],DépensesRéellesFormationEtDéplacements[#Headers],0)) -> 2,000.00 € | N32: =INDEX(PrévisionsFormationEtDéplacements[],MATCH(INDEX(ÉcartsFormationEtDéplacements[],ROW()-ROW(ÉcartsFormationEtDéplacements[[#Headers],[Déc]]),1),INDEX(PrévisionsFormationEtDéplacements[],,1),0),MATCH(ÉcartsFormationEtDéplacements[[#Headers],[Déc]],PrévisionsFormationEtDéplacements[#Headers],0))-INDEX(DépensesRéellesFormationEtDéplacements[],MATCH(INDEX(ÉcartsFormationEtDéplacements[],ROW()-ROW(ÉcartsFormationEtDéplacements[[#Headers],[Déc]]),1),INDEX(PrévisionsFormationEtDéplacements[],,1),0),MATCH(ÉcartsFormationEtDéplacements[[#Headers],[Déc]],DépensesRéellesFormationEtDéplacements[#Headers],0)) -> 2,000.00 € | O32: =SUM(ÉcartsFormationEtDéplacements[[#This Row],[Jan]:[Déc]]) -> 13,700.00 €
B33: Sous-total | C33: =SUBTOTAL(109,ÉcartsFormationEtDéplacements[Jan]) -> 1,200.00 € | D33: =SUBTOTAL(109,ÉcartsFormationEtDéplacements[Fév]) -> -600.00 € | E33: =SUBTOTAL(109,ÉcartsFormationEtDéplacements[Mar]) -> 1,200.00 € | F33: =SUBTOTAL(109,ÉcartsFormationEtDéplacements[Avr]) -> 1,200.00 € | G33: =SUBTOTAL(109,ÉcartsFormationEtDéplacements[Mai]) -> 2,000.00 € | H33: =SUBTOTAL(109,ÉcartsFormationEtDéplacements[Juin]) -> -2,300.00 € | I33: =SUBTOTAL(109,ÉcartsFormationEtDéplacements[Juil]) -> 4,000.00 € | J33: =SUBTOTAL(109,ÉcartsFormationEtDéplacements[Août]) -> 4,000.00 € | K33: =SUBTOTAL(109,ÉcartsFormationEtDéplacements[Sept]) -> 4,000.00 € | L33: =SUBTOTAL(109,ÉcartsFormationEtDéplacements[Oct]) -> 4,000.00 € | M33: =SUBTOTAL(109,ÉcartsFormationEtDéplacements[Nov]) -> 4,000.00 € | N33: =SUBTOTAL(109,ÉcartsFormationEtDéplacements[Déc]) -> 4,000.00 € | O33: =SUBTOTAL(109,ÉcartsFormationEtDéplacements[ANNÉE]) -> 26,700.00 €
A35: Les écarts de dépenses sont automatiquement calculés dans la table Total écarts en commençant par la cellule de droite. | B35: TOTAUX | C35: Jan | D35: Fév | E35: Mar | F35: Avr | G35: Mai | H35: Juin | I35: Juil | J35: Août | K35: Sept | L35: Oct | M35: Nov | N35: Déc | O35: Année
B36: Dépenses réelles mensuelles | C36: =ÉcartsFormationEtDéplacements[[#Totals],[Jan]]+ÉcartsMarketing[[#Totals],[Jan]]+ÉcartsBureau[[#Totals],[Jan]]+ÉcartsEmployés[[#Totals],[Jan]] -> 1,738.00 € | D36: =ÉcartsFormationEtDéplacements[[#Totals],[Fév]]+ÉcartsMarketing[[#Totals],[Fév]]+ÉcartsBureau[[#Totals],[Fév]]+ÉcartsEmployés[[#Totals],[Fév]] -> -984.00 € | E36: =ÉcartsFormationEtDéplacements[[#Totals],[Mar]]+ÉcartsMarketing[[#Totals],[Mar]]+ÉcartsBureau[[#Totals],[Mar]]+ÉcartsEmployés[[#Totals],[Mar]] -> 1,255.00 € | F36: =ÉcartsFormationEtDéplacements[[#Totals],[Avr]]+ÉcartsMarketing[[#Totals],[Avr]]+ÉcartsBureau[[#Totals],[Avr]]+ÉcartsEmployés[[#Totals],[Avr]] -> 301.00 € | G36: =ÉcartsFormationEtDéplacements[[#Totals],[Mai]]+ÉcartsMarketing[[#Totals],[Mai]]+ÉcartsBureau[[#Totals],[Mai]]+ÉcartsEmployés[[#Totals],[Mai]] -> 1,440.00 € | H36: =ÉcartsFormationEtDéplacements[[#Totals],[Juin]]+ÉcartsMarketing[[#Totals],[Juin]]+ÉcartsBureau[[#Totals],[Juin]]+ÉcartsEmployés[[#Totals],[Juin]] -> -3,744.00 € | I36: =ÉcartsFormationEtDéplacements[[#Totals],[Juil]]+ÉcartsMarketing[[#Totals],[Juil]]+ÉcartsBureau[[#Totals],[Juil]]+ÉcartsEmployés[[#Totals],[Juil]] -> 134,695.00 € | J36: =ÉcartsFormationEtDéplacements[[#Totals],[Août]]+ÉcartsMarketing[[#Totals],[Août]]+ÉcartsBureau[[#Totals],[Août]]+ÉcartsEmployés[[#Totals],[Août]] -> 138,918.00 € | K36: =ÉcartsFormationEtDéplacements[[#Totals],[Sept]]+ÉcartsMarketing[[#Totals],[Sept]]+ÉcartsBureau[[#Totals],[Sept]]+ÉcartsEmployés[[#Totals],[Sept]] -> 135,918.00 € | L36: =ÉcartsFormationEtDéplacements[[#Totals],[Oct]]+ÉcartsMarketing[[#Totals],[Oct]]+ÉcartsBureau[[#Totals],[Oct]]+ÉcartsEmployés[[#Totals],[Oct]] -> 140,918.00 € | M36: =ÉcartsFormationEtDéplacements[[#Totals],[Nov]]+ÉcartsMarketing[[#Totals],[Nov]]+ÉcartsBureau[[#Totals],[Nov]]+ÉcartsEmployés[[#Totals],[Nov]] -> 136,218.00 € | N36: =ÉcartsFormationEtDéplacements[[#Totals],[Déc]]+ÉcartsMarketing[[#Totals],[Déc]]+ÉcartsBureau[[#Totals],[Déc]]+ÉcartsEmployés[[#Totals],[Déc]] -> 140,018.00 € | O36: =ÉcartsFormationEtDéplacements[[#Totals],[ANNÉE]]+ÉcartsMarketing[[#Totals],[ANNÉE]]+ÉcartsBureau[[#Totals],[ANNÉE]]+ÉcartsEmployés[[#Totals],[ANNÉE]] -> 826,691.00 €
B37: TOTAL des dépenses réelles | C37: =SUM($C$36:C36) -> 1,738.00 € | D37: =SUM($C$36:D36) -> 754.00 € | E37: =SUM($C$36:E36) -> 2,009.00 € | F37: =SUM($C$36:F36) -> 2,310.00 € | G37: =SUM($C$36:G36) -> 3,750.00 € | H37: =SUM($C$36:H36) -> 6.00 € | I37: =SUM($C$36:I36) -> 134,701.00 € | J37: =SUM($C$36:J36) -> 273,619.00 € | K37: =SUM($C$36:K36) -> 409,537.00 € | L37: =SUM($C$36:L36) -> 550,455.00 € | M37: =SUM($C$36:M36) -> 686,673.00 € | N37: =SUM($C$36:N36) -> 826,691.00 €

Sheet ANALYSE DES DÉPENSES
A1: Les dépenses prévues et réelles annuelles, les écarts de dépenses et le pourcentage d’écart sont automatiquement mis à jour pour chaque catégorie de dépenses dans cette feuille de calcul. Des instructions utiles sur l’utilisation de cette feuille de calcul sont disponibles dans les cellules dans cette colonne. Appuyez sur la flèche Bas pour commencer.
A2: Le nom de la société est automatiquement mis à jour dans la cellule de droite. Entrez le logo dans la cellule F2. | B2: ='DÉPENSES PRÉVUES'!B2:D3 -> Nom de la société | F2: L’espace réservé au logo figure dans cette cellule.
A3: Le titre de cette feuille de calcul figure dans la cellule E3. L’instruction suivante figure dans la cellule A5. | E3: =titre_feuille_de_calcul -> Détail des dépenses prévues
A5: Les dépenses prévues, les dépenses réelles, l’écart de dépenses et le pourcentage d’écart sont automatiquement calculés dans la table Analyse en commençant par la cellule de droite. L’instruction suivante figure dans la cellule A12. | B5: Catégorie de dépenses | C5: Dépenses prévues | D5: Dépenses réelles | E5: Écarts de dépenses | F5: Pourcentage d’écart
B6: Coûts employés | C6: =PrévisionsEmployés[[#Totals],[ANNÉE]] -> 1,355,090.00 € | D6: =DépensesRéellesEmployés[[#Totals],[ANNÉE]] -> 659,130.00 € | E6: =C6-D6 -> 695,960.00 € | F6: =E6/C6 -> 51%
B7: ='DÉPENSES PRÉVUES'!B10 -> Coûts bureau | C7: =PrévisionsBureau[[#Totals],[ANNÉE]] -> 138,740.00 € | D7: =DépensesRéellesBureau[[#Totals],[ANNÉE]] -> 69,350.00 € | E7: =C7-D7 -> 69,390.00 € | F7: =E7/C7 -> 50%
B8: ='DÉPENSES PRÉVUES'!B21 -> Coûts marketing | C8: =PrévisionsMarketing[[#Totals],[ANNÉE]] -> 67,800.00 € | D8: =DépensesRéellesMarketing[[#Totals],[ANNÉE]] -> 33,159.00 € | E8: =C8-D8 -> 34,641.00 € | F8: =E8/C8 -> 51%
B9: ='DÉPENSES PRÉVUES'!B30 -> Formation/Déplacements | C9: =PrévisionsFormationEtDéplacements[[#Totals],[ANNÉE]] -> 48,000.00 € | D9: =DépensesRéellesFormationEtDéplacements[[#Totals],[ANNÉE]] -> 21,300.00 € | E9: =C9-D9 -> 26,700.00 € | F9: =E9/C9 -> 56%
B10: ='DÉPENSES PRÉVUES'!B35 -> TOTAUX | C10: ='DÉPENSES PRÉVUES'!O36 -> 1,609,630.00 € | D10: ='DÉPENSES RÉELLES'!O36 -> 782,939.00 € | E10: =C10-D10 -> 826,691.00 € | F10: =E10/C10 -> 51%
A12: Le graphique en secteurs Dépenses prévues se trouve dans la cellule de droite et le graphique en secteurs Dépenses réelles dans la cellule D12. L’instruction suivante figure dans la cellule A14. | B12: Le graphique en secteurs présentant les dépenses prévues par catégories se trouve dans cette cellule. | D12: Le graphique en secteurs présentant les dépenses réelles par catégories se trouve dans cette cellule.
A14: Le graphique présentant les dépenses prévues, les dépenses réelles et l’écart en termes de dépenses mensuelles se trouve dans la cellule de droite.
